Workbook

Sheet Data_Main (hidden)
B4: Year | C4: 2024 | D4: Enter
B5: Year_Long | C5: =m_year&"/"&m_year+1 -> 2024/2025 | D5: Calculated
B6: Year_Short | C6: =RIGHT(m_year,2)&"/"&RIGHT(m_year,2)+1 -> 24/25 | D6: Calculated
B9: MODEL VERSION | C9: 8
B11: show_disclaimer | C11: FALSE | D11: Calculated

Sheet Data_Sheets (hidden)
E8: Reference only
E9: Michaels Sheet Names
B10: Sheet | C10: State(show to keep sheet visible or blank to hide)
B11: Data_Main
B12: Data_Sheets
B13: DV_TABLES
B14: Instructions | C14: Show
B15: Main | C15: Show
B16: Summary | C16: Show
B17: Prime Lambs Input | E17: PRIME LAMBS- HIGH RAINFALL
B18: Prime Lambs
B19: Prime Lambs Maternal Input
B20: Prime Lambs Maternal
B21: Prime Lambs Merino Ewes Input | E21: PRIME LAMBS- CEREAL ZONE
B22: Prime Lambs Merino Ewes
B23: Lamb Trading Input | E23: LAMB TRADING - HIGH RAINFALL
B24: Lamb Trading
B25: GM_INFO
B26: Merino SR Input | E26: MERINO S.R. - CEREAL ZONE
B27: Merino SR
B28: Wethers Input | E28: WETHERS - CEREAL ZONE
B29: Wethers
B30: Cleanskin Sheep Input | E30: Cleanskin Cereal Zone
B31: Cleanskin Sheep
B32: Beef Input | E32: BEEF - CEREAL ZONE
B33: Beef
B34: Beef Trading Input | E34: BEEF Trading- HIGH RAINFALL
B35: Beef Trading
B36: Beef Feed Lot Input | E36: Beef Feed Lot
B37: Beef Feed Lot

Sheet DV_TABLES (hidden)

Sheet Instructions
D2: Sheep Industry
D3: Fund
B7: ="Livestock Farm Gross Margin Guide -"&TEXT(m_year,"0000") -> Livestock Farm Gross Margin Guide -2024
B8: This spreadsheet can take a few moments to load
B9: PLEASE NOTE:THIS VERSION WILL ONLY WORK WITH EXCEL VERSIONS 2007 & ABOVE FOR WINDOWS ONLY. It will not work with Excel for Mac, Ipad, Android, tablets etc.
B12: Before you start you will need to enable macros, otherwise the program will not work.
B13: This may appear as a Security Warning at the top of your page. To do this, click on “Enable Content”.
B14: Clicking “Enable Content” allows you to enter data into the Excel Worksheet.
B22: You may also see a message about "PROTECTED VIEW". Please click "Enable Editing".
B29: Yellow cells = data entry (some yellow cells contain formulas, these usually represent default
B30: values but may be over written. To revert back to the default value formula click the blue 'Reset…'
B31: link next to the cell.
B32: Blue cells contain formulas, are protected and can not be overwritten.
B46: Start in the “Main” sheet and select “Livestock types” you want to use:
B74: Pasture costs are not included as part of the Gross Margins. To include pasture and overhead costs,
B75: download the “Crops Gross Margin Guide” and select the appropriate pasture types.
B76: The Livestock Gross Margin figures can be inserted as the “Income” for the Pasture Gross Margins.
B79: For technical support or to report errors/omissions regarding this spreadsheet please
B80: email Michael Wurst at:
B81: michaelwurst1@gmail.com

Sheet Main
C3: ="FARM GROSS MARGIN GUIDE - "&TEXT(m_year,"0000") -> FARM GROSS MARGIN GUIDE - 2024 | G3: ="Version-"&TEXT(MODEL_VERSION,"0.0") -> Version-8.0
C6: by clicking checkboxes or All or None buttons
B7: FALSE | C7: Prime Lambs 1st Cross Ewes | E7: High rainfall and cereal zones
B8: FALSE | C8: Prime Lambs Maternal | E8: High rainfall zone
B9: FALSE | C9: Prime Lambs Merino Ewes | E9: All production zones | F9: - will need to adjust wool type, lambing percentage and inputs
B10: FALSE | C10: Lamb Trading High Rainfall | E10: High rainfall and cereal zones
B11: TRUE | C11: Merino SR | E11: All production zones | F11: - will need to adjust wool type, lambing percentage and inputs
B12: FALSE | C12: Wethers | E12: All production zones | F12: - will need to adjust wool type, lambing percentage and inputs
B13: FALSE | C13: Cleanskin Sheep | E13: Cereal and pastoral zones | F13: - will need to adjust lambing percentage and inputs
B14: FALSE | C14: Beef | E14: All production zones | F14: - will need to adjust cattle sale type, calving percentage and inputs
B15: FALSE | C15: Beef Trading | E15: High rainfall zone
B16: FALSE
C18: a) DSE ratings are based on the maintenance feed requirements of a 2-year old, 50 kg liveweight merino wether, with a body condition score of 2
C20: b) The wool price is 90% of the price for fleece value for that micron. This takes into account the lower value of bellies, skirtings, locks etc
C22: c) Many contractors pay above Federal Award rates for shearing and crutching.
C24: d) Superannuation/Workcover expenses relate only to shearing.

Sheet GM_INFO (hidden)
A1: G.M. LINK SHEET
A3: COMMENT: spreadsheet is protected EXCEPT for highlighted cells,
A4: i.e. those cells which can be changed.
A6: DATE | B6: =m_year -> 2024
A10: _______________________________________________________________________________________________________________________
A11: Todays Date: | B11: =NOW() -> 2024-01-25T10:00:02.220
A14: ="FARM COSTS - "&m_year -> FARM COSTS - 2024
A17: SHEEP
A19: Drench
A20: Name | B20: Price1 | C20: UOM1 | D20: Price2 | E20: UOM2
A21: Avomec Dual | B21: 45.62 | C21: /litre | D21: 0.54744 | E21: /12ml dose
A22: Cydectin | B22: 24.91 | C22: /litre | D22: 0.29892 | E22: /12ml dose
A23: Cydectin Long Act Injectable | B23: 236.5 | C23: /500ml | D23: 1.419 | E23: /3ml dose
A24: Dynamax Capsules | B24: 381 | C24: /100 capsules | D24: 3.81 | E24: /capsule
A25: Q-Drench | B25: 55.25 | C25: /litre | D25: 0.663 | E25: /12ml dose
A26: Startect | B26: 92.29 | C26: /litre | D26: 1.10748 | E26: /12ml dose
A27: Triguard | B27: 34.75 | C27: /litre | D27: 0.417 | E27: /12ml dose
A28: Zolvix Plus | B28: 190.17 | C28: /litre | D28: 1.14102 | E28: /6ml dose
A32: Vaccine
A33: Name | B33: Price1 | C33: UOM1 | D33: Price2 | E33: UOM2
A34: Cobalife Vit B12 | B34: 55.98 | C34: /500ml | D34: 0.11196 | E34: /1ml dose
A35: Cobalife Vit B12 + S | B35: 63 | C35: /500mls | D35: 0.126 | E35: /1ml dose
A36: Eryvac | B36: 162.66 | C36: /250ml | D36: 0.65064 | E36: /1ml dose
A37: Eweguard B12 + S | B37: 278 | C37: /500ml | D37: 1.39 | E37: /2.5ml dose
A38: Glanvac 3 | B38: 54.4 | C38: /250ml | D38: 0.2176 | E38: /1ml dose
A39: Glanvac 3B12 | B39: 105 | C39: /250ml | D39: 0.42 | E39: /1ml dose
A40: Glanvac 3SB12 | B40: 114.1 | C40: /250ml dose | D40: 0.4564 | E40: /1ml dose
A41: Glanvac 6 | B41: 74.73 | C41: /250ml | D41: 0.29892 | E41: /1ml dose
A42: Glanvac 6B12 | B42: 140.12 | C42: /250ml | D42: 0.56048 | E42: /1ml dose
A43: Glanvac 6SB12 | B43: 146.74 | C43: /250ml | D43: 0.58696 | E43: /1ml dose
A44: Gudiar | B44: 670 | C44: /250ml | D44: 2.68 | E44: /1ml dose
A45: Multimin Injection | B45: 382.82 | C45: /500ml | D45: 1.9141 | E45: /5ml dose
A46: Scabigard | B46: 100.58 | C46: /5ml | D46: 0.40232 | E46: /0.02ml dose
A47: Ultravac 5 in 1 | B47: 55.59 | C47: /250ml | D47: 0.22236 | E47: /1ml dose
A48: Ultravac 5 in 1 with B12 | B48: 90 | C48: /500ml | D48: 0.36 | E48: /2ml dose
A49: Vit ADE | B49: 190.04 | C49: /500ml | D49: 0.9502 | E49: /5ml dose
A50: Weanerguard B12 + S | B50: 203.45 | C50: /500ml | D50: 1.2207 | E50: /3ml dose
A53: Blowfly Control
A54: Name | B54: Price1 | C54: UOM1 | D54: Price2 | E54: UOM2
A55: Clik | B55: 51.94 | C55: /litre | D55: 1.24656 | E55: /24 ml dose
A56: Vetrazin Spray On | B56: 10.84 | C56: /litre | D56: 0.71544 | E56: /66ml dose
A65: Lice Control | B65: Avenge | C65: 16.14 | D65: /litre
C66: 1.9875 | D66: /80ml dose
A67: Drench | B67: Triguard | C67: 34.75 | D67: /litre
C68: 0.952 | D68: /10ml dose
C69: 0.552
B70: Qdrench | C70: 0.9
A71: Vaccine | B71: Glanvac 3 | C71: 54.4 | D71: /250ml
C72: 0.328 | D72: /1ml dose
B73: Glanvac 6 | C73: 74.73 | D73: 250ml
C74: 0.436 | D74: /1ml dose
A75: Blowfly Control | B75: Clik | C75: 51.94 | D75: /litre
C76: 1.56 | D76: /24 ml dose
A77: Wool packs | B77: nylon | C77: 16 | D77: ea
A79: Shearing | B79: Sheep | C79: 367.89 | D79: /100
B80: rams | C80: 735.78 | D80: /100
B81: shed labour | C81: 278.64 | D81: /day
B82: wool classer | C82: 338.18 | D82: day
B83: superannuation | C83: 0.11 | D83: wages
B84: Work Cover-Allow | C84: 0.04 | D84: total
B85: shed sundries | C85: 0.22 | D85: /head
A87: Crutching | B87: sheep | C87: 106.69 | D87: /100
B88: rams | C88: 213.38 | D88: /100
A90: lamb marking | B90: mulesing / materials | C90: 1.5 | D90: /head
B91: marking only | C91: 1.25 | D91: /head
B92: ear tags | C92: 0.45 | D92: /head
A93: Tri-Solfen | B93: pain relief | C93: 1.71 | D93: /head
B94: pain relief | C94: 1.995 | D94: /head | E94: Merino SR only
A95: Stock purchaces | B95: purchase rams | C95: 1000 | D95: /head
B96: purchase wethers | C96: 80 | D96: /head
A98: Stock selling | B98: commission/insurance | C98: 0.055
B99: yard fees | C99: 0.85 | D99: /head
B100: sheep transaction levy | C100: 0.2 | D100: /head
B101: lamb transaction levy | C101: 1.5 | D101: /head
B102: SA sheep industry levy | C102: 0.67 | D102: /head
B103: wool brokerage / testing / insurance | C103: 0.27 | D103: /kg
B104: wool levy | C104: 0.015
A110: BEEF | H110: BEEF FEEDLOT
A111: Drench (backline) | B111: Genesis Pour-on | D111: 83.62 | E111: /litre | H111: Drench, Dectomax | I111: 5.64 | J111: /head
D112: 4.895 | E112: /25ml dose | H112: Ear Tags | I112: 0.5 | J112: /tag
A113: 5 in 1 vaccine | D113: 100.46 | E113: /500 ml | H113: HGP implant , Synovex | I113: 2.5 | J113: /dose
D114: 0.68 | E114: /4ml dose | H114: Lice Treatments | I114: 0 | J114: /dose
A115: Ultravac 7 in 1 | B115: 330 | C115: /250 ml | D115: =B115/100 -> 3.3 | E115: /2.5ml dose
A116: Fly and Lice | B116: Arrest Easy Dose | C116: 75/litre | D116: 2.25 | E116: /30ml dose | H116: Vaccine | I116: 0.58 | J116: /dose
A117: Eprinex Pour-on | B117: 120 | C117: /litre | D117: =B117*0.055 -> 6.6 | E117: /55ml dose | H117: Veterinary | I117: 1.25 | J117: /head
A118: Trace Element treatments | D118: 3 | E118: /head | H118: Vitamin injection | I118: 1.5 | J118: /head
A119: HGP implant | D119: 1.75 | H119: Premix cost per tonne mixed feed | I119: 50 | J119: /tonne
A120: Vitamin injection | D120: 1.3 | H120: Milling costs + Labour | I120: 28 | J120: /head
H121: Water | I121: 20 | J121: /head
H122: Insurance | I122: 3
H123: Transport In | I123: 15
A124: NLIS Breeder Tags (incl levy) | D124: 4.75 | E124: each | H124: Transport Out | I124: 30
H125: Commission | I125: 0.055
B126: freight cattle in | D126: 30 | E126: /head | H126: Levies | I126: 5
B127: freight cattle out | D127: 30 | E127: /head | H127: Losses | I127: 0.006 | J127: %
B128: Cattle levy | D128: 5 | E128: /head
D129: Prime Lambs | E129: Prime Lambs Cereal | F129: Merino SR Cereal | G129: Wethers Cereal | H129: Cleanskin | I129: Beef Cereal | J129: Beef Trading | K129: Lamb trading
A130: FEED & OTHER COSTS | B130: water | C130: /DSE | D130: 2.5 | E130: 2.5 | F130: 2.5 | G130: 2.5 | H130: 2.5 | I130: 2.5 | J130: 2.5 | K130: 2.5
B131: Veh fuel, R&M | C131: /DSE | D131: 1.5 | E131: 1.5 | F131: 1.2 | G131: 1.5 | H131: 1.5 | I131: 1.5 | J131: 1.5 | K131: 1.5
B132: other | C132: /DSE | D132: 0.5 | E132: 0.5 | F132: 0.5 | G132: 0.5 | H132: 0.5 | I132: 0.5 | J132: 0.5 | K132: 0.5
B133: hay | C133: /tonne incl freight | D133: 220
B134: Feed Cereal grain | C134: /tonne incl freight | D134: 300
B135: Lamb Feedlot Mix | C135: /tonne incl freight | D135: 300
B136: Blocks/ Mineral Mix | D136: 5.5
A140: ="FARM COSTS - "&m_year -> FARM COSTS - 2024
A144: STOCK RETURNS | F144: Budget Base (Greasy)
A145: WOOL- High Rainfall 28 mic 70%Yield | F145: 420
A146: - High Rainfall 19.5 mic 70% Yld | F146: 1500
A147: - Med Rainfall 21 mic 68% Yield | F147: 1200
A148: - Low Rainfall 22 mic 63% Yield | F148: 1150
A149: - Crossbred Ram 32 mic | F149: 210
A152: ="FARM COSTS - "&m_year -> FARM COSTS - 2024
A156: INSURANCE COSTS
A157: Livestock
A158: Sheep and cattle | B158: 4.5 | C158: /$1,000 insured
A161: FREIGHT COSTS | B161: Prime Lambs
A162: culls | B162: 7
A163: ewes | B163: 7
A164: prime lambs | B164: 7
A165: bales | B165: 15
A166: rams | B166: 7
A167: hoggets | B167: 7
A168: vealers | B168: 30
A170: BEEF
A171: Vealers | B171: 280 | C171: kg liveweight @ | D171: 2.68 | E171: /kg L/W
A172: Yearling | B172: 400 | C172: kg liveweight @ | D172: 2.38 | E172: /kg L/W
A173: Cows | B173: 550 | C173: kg liveweight @ | D173: 1.9 | E173: /kg L/W
A175: BEEF TRADING
A176: Vealers | B176: 280 | C176: kg liveweight @ | D176: 3 | E176: /kg L/W
A177: Yearling | B177: 420 | C177: kg liveweight @ | D177: 2.8 | E177: /kg L/W
A178: Cows | B178: 550 | C178: kg liveweight @ | D178: 1.9 | E178: /kg L/W

Sheet Summary
B2: ="GROSS MARGINS SUMMARY - "&TEXT(m_year,"0000") -> GROSS MARGINS SUMMARY - 2024
D4: Gross Margin
B5: Type | C5: No of head
B6: Prime Lambs 1st Cross Ewes | C6: ='Prime Lambs Input'!E7*rng_Prime_Lambs_DATA -> 0 | D6: ='Prime Lambs'!Q174*rng_Prime_Lambs_DATA -> 0 | E6: ='Prime Lambs'!Q172*rng_Prime_Lambs_DATA -> 0 | F6: ='Prime Lambs'!Q37*rng_Prime_Lambs_DATA -> 0 | G6: ='Prime Lambs'!Q170*rng_Prime_Lambs_DATA -> 0
B7: Prime Lambs Maternal | C7: ='Prime Lambs Maternal Input'!E7*rng_Prime_Lambs_Maternal_DATA -> 0 | D7: ='Prime Lambs Maternal'!Q174*rng_Prime_Lambs_Maternal_DATA -> 0 | E7: ='Prime Lambs Maternal'!Q172*rng_Prime_Lambs_Maternal_DATA -> 0 | F7: ='Prime Lambs Maternal'!Q37*rng_Prime_Lambs_Maternal_DATA -> 0 | G7: ='Prime Lambs Maternal'!Q170*rng_Prime_Lambs_Maternal_DATA -> 0
B8: Prime Lambs Merino Ewes | C8: ='Prime Lambs Merino Ewes Input'!E7*rng_Prime_LambsMerino_DATA -> 0 | D8: ='Prime Lambs Merino Ewes'!Q174*rng_Prime_LambsMerino_DATA -> 0 | E8: ='Prime Lambs Merino Ewes'!Q172*rng_Prime_LambsMerino_DATA -> 0 | F8: ='Prime Lambs Merino Ewes'!Q37*rng_Prime_LambsMerino_DATA -> 0 | G8: ='Prime Lambs Merino Ewes'!Q170*rng_Prime_LambsMerino_DATA -> 0
B9: Lamb Trading High Rainfall | C9: ='Lamb Trading Input'!E7*rng_Lambtrading_DATA -> 0 | D9: ='Lamb Trading'!Q174*rng_Lambtrading_DATA -> 0 | E9: ='Lamb Trading'!Q172*rng_Lambtrading_DATA -> 0 | F9: ='Lamb Trading'!Q37*rng_Lambtrading_DATA -> 0 | G9: ='Lamb Trading'!Q170*rng_Lambtrading_DATA -> 0
B10: Merino SR | C10: ='Merino SR Input'!E8*rng_Merino_SR_DATA -> 1000 | D10: ='Merino SR'!Q174*rng_Merino_SR_DATA -> 29.30927486 | E10: ='Merino SR'!Q172*rng_Merino_SR_DATA -> 70928.44516 | F10: ='Merino SR'!Q37*rng_Merino_SR_DATA -> 152552.7512 | G10: ='Merino SR'!Q170*rng_Merino_SR_DATA -> 81624.30609
B11: Wethers | C11: ='Wethers Input'!E7*rng_Whethers_DATA -> 0 | D11: =Wethers!Q7*rng_Whethers_DATA -> 0 | E11: =Wethers!Q172*rng_Whethers_DATA -> 0 | F11: =Wethers!Q37*rng_Whethers_DATA -> 0 | G11: =Wethers!Q170*rng_Whethers_DATA -> 0
B12: Cleanskin Sheep | C12: ='Cleanskin Sheep Input'!E7*rng_Cleanskin_Sheep_DATA -> 0 | D12: ='Cleanskin Sheep'!Q174*rng_Cleanskin_Sheep_DATA -> 0 | E12: ='Cleanskin Sheep'!Q172*rng_Cleanskin_Sheep_DATA -> 0 | F12: ='Cleanskin Sheep'!Q37*rng_Cleanskin_Sheep_DATA -> 0 | G12: ='Cleanskin Sheep'!Q170*rng_Cleanskin_Sheep_DATA -> 0
B13: Beef | C13: ='Beef Input'!E15*rng_Beef_DATA -> 0 | D13: =Beef!Q174*rng_Beef_DATA -> 0 | E13: =Beef!Q172*rng_Beef_DATA -> 0 | F13: =Beef!Q41*rng_Beef_DATA -> 0 | G13: =Beef!Q170*rng_Beef_DATA -> 0
B14: Beef Trading | C14: ='Beef Trading Input'!E10*rng_Beeftrading_DATA -> 0 | D14: ='Beef Trading'!Q174*rng_Beeftrading_DATA -> 0 | E14: ='Beef Trading'!Q172*rng_Beeftrading_DATA -> 0 | F14: ='Beef Trading'!Q41*rng_Beeftrading_DATA -> 0 | G14: ='Beef Trading'!Q170*rng_Beeftrading_DATA -> 0
B16: TOTAL | E16: =SUM(E6:E15) -> 70928.44516 | F16: =SUM(F6:F15) -> 152552.7512 | G16: =SUM(G6:G15) -> 81624.30609

Sheet Prime Lambs Input (hidden)
C1: Prime Lambs (1st cross ewes)
C2: =UPPER(var_animal)&" GROSS MARGIN - "&TEXT(m_year,"0000") -> PRIME LAMBS (1ST CROSS EWES) GROSS MARGIN - 2024
C4: GENERAL INFORMATION
C5: This represents a First Cross Ewe enterprise (Merino X Border Liecester) mated to a terminal sire. All ewe replacements are purchased, but age of replacements can be varied from 1.5 years to 4.5 years. Following are the various assumptions used in the calculation of the Gross Margin. Cells with yellow highlight can be changed. No allowance has been made for pasture expenses such as seed, fertiliser and chemicals. Refer to pasture gross margins in the “Cropping Gross Margin Plan” for annual and perennial pasture costs. Use the livestock gross margin per DSE as income for the pasture gross margin.
C7: Ewes mated | E7: 1000
C8: Age ewes purchased | E8: 0.5
C9: Age ewes sold | E9: 6.5
C10: Av Weaning % | E10: 1.3
C11: Ram percentage | E11: 0.02
C12: Years Rams Kept | E12: 3
C13: Flock death Rate | E13: 0.03
C14: % Lambs carried over | E14: 0
C17: LIVESTOCK SALES | E17: Price/Hd | F17: Number | G17: Total
C18: c.f.a Ewes | E18: 70 | F18: ='Prime Lambs'!AG220 -> 182.3692879 | G18: =E18*ROUND(F18,0) -> 12740
C19: c.f.a Rams | E19: 25 | F19: ='Prime Lambs'!AG238 -> 6.270727266 | G19: =E19*ROUND(F19,0) -> 150
C20: Lambs | E20: 142 | F20: ='Prime Lambs'!AG227 -> 1300 | G20: =E20*ROUND(F20,0) -> 184600
C25: TOTAL SALES | F25: =SUM(F18:F23) -> 1488.640015 | G25: =SUM(G18:G23) -> 197490
C28: LIVESTOCK PURCHASES | E28: Price/Hd | F28: Number | G28: Total
C29: Ewes | E29: 145 | F29: ='Prime Lambs'!AD220 -> 213.5699335 | G29: =E29*F29 -> 30967.64035
C30: Rams | E30: 1000 | F30: ='Prime Lambs'!AD238 -> 6.870727266 | G30: =E30*F30 -> 6870.727266
C32: TOTAL PURCHASES | F32: =SUM(F29:F30) -> 220.4406607 | G32: =SUM(G29:G30) -> 37838.36762
C35: WOOL PRICE (cents/kg) | F35: =TEXT(m_year-3,"0000")&" Average (Clean)" -> 2021 Average (Clean) | G35: =TEXT(m_year-2,"0000")&" Average (Clean)" -> 2022 Average (Clean) | H35: =TEXT(m_year-1,"0000")&" Average (Clean)" -> 2023 Average (Clean) | I35: Budget Base (Clean) | J35: Budget Base (Greasy)
E36: Wool- High Rainfall 28 mic 70% yield | F36: 484 | G36: 384 | H36: 347 | I36: 340 | J36: =I36*I37 -> 238
E37: Estimated wool yield | I37: 0.7
C38: Allow 90% to account for lower value of bellies, skirtings etc. | J38: =J36*0.9 -> 214.2
C42: WOOL SALES - SHEARING | F42: Wool Cut
E43: Number | F43: kg/hd | G43: Price | H43: Total
C44: Ewes | E44: ='Prime Lambs'!E226 -> 968.8208733 | F44: 3.5 | G44: 2.142 | H44: =E44*F44*G44 -> 7263.250087
C45: Crossbred Rams | E45: ='Prime Lambs'!E227 -> 19.4 | F45: 2.5 | G45: 1.5552 | H45: =E45*F45*G45 -> 75.4272
C47: TOTAL | E47: =SUM(E44:E46) -> 988.2208733 | F47: =(E44*F44)+(E45*F45) -> 3439.373056 | H47: =SUM(H44:H46) -> 7338.677287
C50: STOCK HEALTH REQUIREMENTS | E50: =HYPERLINK("http://paraboss.com.au","for more info on drench, lice and blowfly product selection refer to www.paraboss.com.au") -> for more info on drench, lice and blowfly product selection refer to www.paraboss.com.au
G51: Number of times
E52: Number | F52: Drench | G52: Vacc. | H52: Blowfly
C53: Ewes | E53: ='Prime Lambs'!E219 -> 1000 | F53: 3 | G53: 1 | H53: 1
C54: Rams | E54: ='Prime Lambs'!E220 -> 20 | F54: 3 | G54: 1 | H54: 0
C55: Lambs | E55: ='Prime Lambs'!E221 -> 1300 | F55: 2 | G55: 2 | H55: 0
C57: TOTAL | E57: =SUM(E53:E55) -> 2320 | F57: =SUMPRODUCT($E$53:$E$55,F53:F55) -> 5660 | G57: =SUMPRODUCT($E$53:$E$55,G53:G55) -> 3620 | H57: =SUMPRODUCT($E$53:$E$55,H53:H55) -> 1000
C60: FEEDING
C61: HAY | F61: Hay | G61: Kgs Fed | H61: No Weeks | I61: Total
E62: Number | F62: Cost ($/T) | G62: per Week | H62: of Feeding | I62: Cost ($)
C63: Ewes | E63: ='Prime Lambs'!E219 -> 1000 | F63: 220 | G63: 2.5 | H63: 8 | I63: =(H63*G63*E63)/1000*F63 -> 4400
C64: Rams | E64: ='Prime Lambs'!E220 -> 20 | F64: 220 | G64: 2.5 | H64: 8 | I64: =(H64*G64*E64)/1000*F64 -> 88
C66: Lambs | I66: =(H66*G66*E66)/1000*F66 -> 0
C68: GRAIN | F68: Grain | G68: Kgs Fed | H68: No weeks | I68: Total
E69: Number | F69: Cost ($/T) | G69: per week | H69: of Feeding | I69: Cost ($)
C70: Ewes | E70: ='Prime Lambs'!E219 -> 1000 | F70: 320 | G70: 3 | H70: 8 | I70: =(H70*G70*E70)/1000*F70 -> 7680
C71: Rams | E71: ='Prime Lambs'!E220 -> 20 | F71: 320 | G71: 3 | H71: 10 | I71: =(H71*G71*E71)/1000*F71 -> 192
C72: Lambs | I72: =(H72*G72*E72)/1000*F72 -> 0
C74: Supplements | G74: Kgs Fed | H74: No weeks | I74: Total
E75: Number | F75: Cost ($/kg) | G75: per week | H75: of Feeding | I75: Cost ($)
C76: Ewes | I76: =(H76*G76*E76)*F76 -> 0
C77: Rams | I77: =(H77*G77*E77)*F77 -> 0
C78: Lambs | I78: =(H78*G78*E78)*F78 -> 0
H80: Total Feed Cost | I80: =SUM(I63:I66,I70:I72,I76:I78) -> 12360

Sheet Prime Lambs (hidden)
C1: Prime Lambs (1st cross ewes)
C2: =UPPER(Var_Animal)&" GROSS MARGIN - "&TEXT(m_year,"0000") -> PRIME LAMBS (1ST CROSS EWES) GROSS MARGIN - 2024
C4: ASSUMPTIONS
C6: Ave Breeding Ewe Fibre Diameter | E6: 28 | O6: Total DSE's | Q6: =E197 -> 1840
C7: No. of breeding ewes (1st Cross) | E7: ='Prime Lambs Input'!$E$7 -> 1000
C8: 1st cross ewe - Terminal meat sire
C32: INCOME | Q32: $
C34: Wool (kg greasy) | E34: =G234 -> 3439.373056 | G34: kg | I34: av price | K34: =K234*100/G234*0.9 -> 192.0352765 | M34: c/kg | Q34: =K234 -> 7338.677287
C35: Sales | E35: =E212 -> 1488.640015 | G35: animals | I35: av price | K35: =G212 -> 132.6647127 | M35: /head | Q35: =E212*G212 -> 197490
C37: Gross Income | Q37: =SUM(Q34:Q35) -> 204828.6773
AA45: STOCK VALUE AND D.S.E REQUIREMENT | AG45: Non lamb related expenses | AM45: Lamb Costs | AN45: No: | AO45: per head | AS45: SHEEP GROSS MARGIN
C46: VARIABLE COSTS | AC46: Value | AD46: Ave Live | AE46: DSE | AS46: PRIME LAMB -
C47: Shearing | K47: Rate | AB47: Number | AC47: $/head | AD47: Wt (Kgs) | AE47: rating | AG47: Shearing | AJ47: =SUM(Q48:Q58) -> 10458.73138 | AM47: Marking | AN47: =$E$121 -> 1300 | AO47: =K76+K77 -> 1.7 | AP47: =AN47*AO47 -> 2210
C48: Shearing | E48: =E226 -> 968.8208733 | G48: sheep | I48: Reset Rate> | J48: =GM_INFO!C79 | K48: 367.89 | M48: /100 | Q48: =K48/100*ROUND(E48,0) -> 3564.8541 | AA48: ewes | AB48: ='Prime Lambs Input'!$E$7 -> 1000 | AC48: =(G209+G214)/2 -> 107.5 | AD48: 60 | AE48: =IF(AND(AD48>=55,AD48<60),1.7,IF(AND(AD48>=60,AD48<65),1.8,IF(AND(AD48>=65,AD48<70),1.9,IF(AND(AD48>=70,AD48<75),2,IF(AND(AD48>=75,AD48<80),2.1,IF(AND(AD48>=80,AD48<85),2.2,IF(AND(AD48>=85,AD48<90),2.3,IF(AD48>=90,2.4,0)))))))) -> 1.8 | AG48: Animal health | AJ48: =(E219*G219+E220*G220)*K90+(E219*I219+E220*I220)*K91+(E219*K219)*K92 -> 4917.84 | AM48: Animal health | AN48: =$E$121 -> 1300 | AO48: =G220*K91+I220*K90 -> 2.26 | AP48: =AN48*AO48 -> 2938
C49: (Federal awards) | E49: =E227 -> 19.4 | G49: rams | I49: Reset Rate> | J49: =GM_INFO!C80 | K49: 735.78 | M49: /100 | Q49: =K49/100*ROUND(E49,0) -> 139.7982 | AA49: rams | AB49: ='Prime Lambs Input'!E11*'Prime Lambs'!AB48 -> 20 | AC49: =(G210+G215)/2 -> 512.5 | AD49: 100 | AE49: 2 | AG49: Stock Purchase | AJ49: =SUM(Q105:Q105) -> 37838.36762 | AM49: Freight | AN49: =$E$121 -> 1300 | AO49: =K121 -> 7 | AP49: =AN49*AO49 -> 9100
C50: Shed labour | E50: 5 | G50: days | I50: Reset Rate> | J50: =GM_INFO!C81 | K50: 278.64 | M50: /day | Q50: =K50*ROUND(E50,0) -> 1393.2 | AA50: lambs | AB50: =AC227 -> 1300 | AC50: =G211/2 -> 71 | AD50: 35 | AE50: 0 | AG50: Freight | AH50: sheep | AJ50: =SUM(Q119:Q120) -> 2817.989534 | AM50: Yard Fees | AN50: =$E$121 -> 1300 | AO50: =K125 -> 0.85 | AP50: =AN50*AO50 -> 1105
C51: Woolclasser | E51: 2.5 | G51: days | I51: Reset Rate> | J51: =GM_INFO!C82 | K51: 338.18 | M51: /day | Q51: =K51*E51 -> 845.45 | AA51: TOTAL | AB51: =SUM(AB48:AB50) -> 2320 | AC51: =AB48*AC48+AB49*AC49+AB50*AC50/2 -> 163900 | AH51: Wool | AJ51: =Q122 -> 300 | AM51: Levies | AN51: =$E$121 -> 1300 | AO51: =K127+K128 -> 2.17 | AP51: =AN51*AO51 -> 2821 | AS51: Ewes mated | AU51: ='Prime Lambs Input'!$E$7 -> 1000 | AX51: Ram % | AY51: =E200 -> 0.02
C52: Superannuation (on ord wages only) | I52: Reset Rate> | J52: =GM_INFO!C83 | K52: 0.11 | M52: wages | Q52: =(Q48+Q49+Q50+Q51)*K52 -> 653.763253 | AG52: Commission on livestock sales | AJ52: =(K209+K210)*K124 -> 708.95 | AO52: =SUM(AO47:AO51) -> 13.98 | AQ52: =AO52*AD50 -> 489.3 | AS52: Age ewes purchased | AU52: =E201 -> 0.5 | AX52: Price of rams | AY52: =AL68 -> 0
C53: W/Cover (incl. super + otime etc) | I53: Reset Rate> | J53: =GM_INFO!C84 | K53: 0.04 | M53: total | Q53: =(Q48+Q49+Q50+Q51+Q52)*K53 -> 263.8826221 | AG53: Yard fees | AJ53: =E119*K125 -> 160.3440129 | AM53: Commission | AN53: =$E$121 -> 1300 | AO53: =G212 -> 132.6647127 | AP53: =K124 -> 0.055 | AQ53: =AD50*AO53*AP53 -> 255.379572 | AS53: Age ewes sold | AU53: =E202 -> 6.5 | AX53: Years rams kept | AY53: =E203 -> 3
C54: Wool packs | E54: 20 | G54: packs | I54: Reset Rate> | J54: =GM_INFO!C77 | K54: 16 | M54: /pack | Q54: =K54*ROUND(E54,0) -> 320 | AG54: Levies | AJ54: =E126*(K126+K128) -> 164.1168132 | AS54: Av Weaning % | AU54: ='Prime Lambs Input'!E10 -> 1.3 | AX54: Age wethers sold | AY54: 0.5
C55: Shed sundries | E55: =E48+E49 -> 988.2208733 | G55: sheep | I55: Reset Rate> | J55: =GM_INFO!C85 | K55: 0.22 | M55: /head | Q55: =K55*ROUND(E55,0) -> 217.36 | AG55: Wool Selling Charges | AJ55: =Q130+Q131 -> 1038.710885 | AQ55: =SUM(AQ43:AQ53) -> 744.679572 | AS55: dse/ewe | AU55: =AE48 -> 1.8 | AX55: Flock death rate | AY55: =E204 -> 0.03
C56: Lice control | E56: =E48+E49 -> 988.2208733 | G56: sheep | I56: Reset Rate> | J56: =GM_INFO!C66 | K56: 1.9875 | M56: /head | Q56: =K56*ROUND(E56,0) -> 1963.65 | AG56: Feed & other costs | AJ56: =SUM(Q144:Q149) -> 21377.55
C57: Crutch & Wig | E57: 990 | G57: ewes | I57: Reset Rate> | J57: =GM_INFO!C87 | K57: 106.69 | M57: /100 | Q57: =K57/100*ROUND(E57,0) -> 1056.231 | AK57: =SUM(AJ47:AJ56) -> 79782.60024
E58: =E49 -> 19.4 | G58: rams | I58: Reset Rate> | J58: =GM_INFO!C88 | K58: 213.38 | M58: /100 | Q58: =K58/100*ROUND(E58,0) -> 40.5422
AS60: EWES | AT60: OPENING | AU60: NATURAL | AV60: PURCHASES | AW60: DEATHS | AX60: % sold | AY60: SALES | AZ60: CLOSING
AS61: AGE | AT61: NUMBERS | AU61: INCREASE | AX61: culled | AZ61: NUMBERS
AS63: 0.5-1.5yr | AV63: =IF($N$78=1.5,AT64,AT63-AW63) -> 0 | AY63: =AT63-AW63 -> 0 | AZ63: =AT63+AU63+AV63-AW63-AY63 -> 0
AS64: 1.5-2.5yr | AT64: =IF(AU52=1.5,AU51/(1+(1-AY55)*(1-AX64)*(1+(1-AY55)*(1-AX65)*(1+(1-AY55)*(1-AX66)*(1+(1-AY55)*(1-AX67))))),0) -> 0 | AV64: =IF(AU52=2.5,AT65-AY64,0) -> 0 | AW64: =AT64*$R$81 -> 0 | AY64: =(AT64-AW64)*AX64 -> 0 | AZ64: 0
AS65: 2.5-3.5yr | AT65: =IF(AU52=2.5,AU51/(1+(1-AY55)*(1-AX65)*(1+(1-AY55)*(1-AX66)*(1+(1-AY55)*(1-AX67)))),AZ64) -> 0 | AV65: =IF(AU52=3.5,AT66-AY65,0) -> 0 | AW65: =AT65*$R$81 -> 0 | AY65: =(AT65-AW65)*AX65 -> 0 | AZ65: 0
AS66: 3.5-4.5yr | AT66: =IF(AU52=3.5,AU51/(1+(1-AY55)*(1-AX66)*(1+(1-AY55)*(1-AX67))),AZ65) -> 0 | AV66: =IF(AU52=4.5,AT67-AY66,0) -> 0 | AW66: =AT66*$R$81 -> 0 | AY66: =(AT66-AW66)*AX66 -> 0 | AZ66: 0
AS67: 4.5-5.5yr | AT67: =IF(AU52=4.5,AU51/(1+(1-AY55)*(1-AX67)),AZ66) -> 0 | AW67: =AT67*$R$81 -> 0 | AX67: =IF(AU53=5.5,1,0) -> 0 | AY67: =(AT67-AW67)*AX67 -> 0 | AZ67: 0
AS68: 5.5-6.5yr | AT68: =AZ67 -> 0 | AW68: =AT68*$R$81 -> 0 | AX68: =IF(AU53=6.5,1,0) -> 1 | AY68: =(AT68-AW68)*AX68 -> 0 | AZ68: 0
AS69: Ewes | AT69: =SUM(AT64:AT68) -> 0 | AV69: =AV63+AV64+AV65+AV66 -> 0 | AW69: =SUM(AW63:AW68) -> 0 | AY69: =SUM(AY64:AY68) -> 0 | AZ69: =SUM(AZ63:AZ67) -> 0
AS70: d.s.e's | AT70: =AT63+AT69*AU55 -> 0
AS73: LAMBS | AT73: OPENING | AU73: NATURAL | AV73: PURCHASES | AW73: DEATHS | AX73: % sold | AY73: SALES | AZ73: CLOSING
AS74: AGE | AT74: NUMBERS | AU74: INCREASE | AX74: culled | AZ74: NUMBERS
C75: Marking
C76: Lamb marking | E76: =AC227 -> 1300 | G76: lambs | I76: Reset Rate> | J76: =GM_INFO!C91 | K76: =GM_INFO!C91 -> 1.25 | M76: /head | Q76: =K76*ROUND(E76,0) -> 1625 | AS76: 0-0.5yr | AU76: =AU51*AU54 -> 1300 | AX76: 1 | AY76: =AU76*AX76 -> 1300 | AZ76: =AT76+AU76+AV76-AW76-AY76 -> 0
C77: Ear tags | E77: =AC227 -> 1300 | G77: lambs | I77: Reset Rate> | J77: =GM_INFO!C92 | K77: =GM_INFO!C92 -> 0.45 | M77: /head | Q77: =K77*ROUND(E77,0) -> 585
C78: Pain Relief | E78: =AC227 -> 1300 | G78: lambs | I78: Reset Rate> | J78: =GM_INFO!C93 | K78: =GM_INFO!C93 -> 1.71 | M78: /head | Q78: =K78*ROUND(E78,0) -> 2223
AS79: RAMS | AT79: OPENING | AU79: NATURAL | AV79: PURCHASES | AW79: DEATHS | AX79: % sold | AY79: SALES | AZ79: CLOSING
AS80: AGE | AT80: NUMBERS | AU80: INCREASE | AX80: culled | AZ80: NUMBERS
AS82: 0.5-1.5yr | AV82: =AT83/(1-AX82) -> 6.870727266 | AW82: =AT82*$R$81 -> 0 | AZ82: =AT82+AU82+AV82-AW82-AY82 -> 6.870727266
AS83: 1.5-2.5yr | AT83: =IF(AY53=3,(AU51*AY51)/(1+(1-AY55)*(1-AX83)*(1+(1-AY55)*(1-AX84)*(1+(1-AY55)*(1-AX85)))),IF(AY53=4,(AU51*AY51)/(1+(1-AY55)*(1-AX83)*(1+(1-AY55)*(1-AX84)*(1+(1-AY55)*(1-AX85)*(1+(1-AY55)*(1-AX86))))),0)) -> 6.870727266 | AW83: =AT83*$R$81 -> 0 | AZ83: =AT83+AU83+AV83-AW83-AY83 -> 6.870727266
AS84: 2.5-3.5yr | AT84: =AZ83 -> 6.870727266 | AW84: =AT84*$R$81 -> 0 | AZ84: =AT84+AU84+AV84-AW84-AY84 -> 6.870727266
AS85: 3.5-4.5yr | AT85: =AZ84 -> 6.870727266 | AW85: =AT85*$R$81 -> 0 | AX85: =IF(AY53=3,100%,0) -> 1 | AY85: =(AT85-AW85)*AX85 -> 6.870727266 | AZ85: =AT85+AU85+AV85-AW85-AY85 -> 0
AS86: 4.5-5.5yr | AT86: =AZ85 -> 0 | AW86: =AT86*$R$81 -> 0 | AX86: =IF(AY53=4,100%,0) -> 0 | AY86: =AT86-AW86 -> 0 | AZ86: =AT86+AU86+AV86-AW86-AY86 -> 0
AT87: =AT82+AT83+AT84+AT85+AT86 -> 20.6121818 | AV87: =AV82+AV83+AV84+AV85+AV86 -> 6.870727266 | AW87: =AW82+AW83+AW84+AW85+AW86 -> 0 | AY87: =AY82+AY83+AY84+AY85+AY86 -> 6.870727266 | AZ87: =AZ82+AZ83+AZ84+AZ85+AZ86 -> 20.6121818
AS88: d.s.e's | AT88: =AT87*AE49 -> 41.2243636
C89: Animal Health
C90: Drench | E90: =G222 -> 5660 | G90: sheep | I90: Reset Rate> | J90: =GM_INFO!C68 | K90: =GM_INFO!C68 -> 0.952 | M90: /head | Q90: =K90*ROUND(E90,0) -> 5388.32
C91: Vaccinate | E91: =I222 -> 3620 | G91: sheep | I91: Reset Rate> | J91: =GM_INFO!C74 | K91: =GM_INFO!C74 -> 0.436 | M91: /head | Q91: =K91*ROUND(E91,0) -> 1578.32
C92: Blowfly control | E92: =K222 -> 1000 | G92: sheep | I92: Reset Rate> | J92: =GM_INFO!C76 | K92: =GM_INFO!C76 -> 1.56 | M92: /head | Q92: =K92*ROUND(E92,0) -> 1560
C104: Stock purchases
C105: Purchases | Q105: =K214+K215 -> 37838.36762
C117: Sale Costs
C118: Freight
C119: Livestock | E119: =SUM(E209:E210) -> 188.6400152 | G119: culls | I119: Reset Rate> | J119: =GM_INFO!B161 | K119: =GM_INFO!B162 -> 7 | M119: /head | Q119: =K119*ROUND(E119,0) -> 1323
E120: =E214 -> 213.5699335 | G120: ewes | I120: Reset Rate> | J120: =GM_INFO!B162 | K120: =GM_INFO!B163 -> 7 | M120: /head | Q120: =K120*E120 -> 1494.989534
E121: =E211 -> 1300 | G121: prime lambs | I121: Reset Rate> | J121: =GM_INFO!B163 | K121: =GM_INFO!B164 -> 7 | M121: /head | Q121: =K121*ROUND(E121,0) -> 9100
C122: Wool | E122: =G234/170 -> 20.23160621 | G122: bales | I122: Reset Rate> | J122: =GM_INFO!B164 | K122: =GM_INFO!B165 -> 15 | M122: /bale | Q122: =K122*ROUND(E122,0) -> 300
C123: Stock selling charges
C124: Commission/insurance | I124: Reset Rate> | J124: =GM_INFO!C98 | K124: =GM_INFO!C98 -> 0.055 | M124: gross $ | Q124: =K124*Q35 -> 10861.95
C125: Yard fees | E125: =E212 -> 1488.640015 | G125: sheep | I125: Reset Rate> | J125: =GM_INFO!C99 | K125: =GM_INFO!C99 -> 0.85 | M125: /head | Q125: =K125*ROUND(E125,0) -> 1265.65
C126: Levy-sheep | E126: =E119 -> 188.6400152 | G126: sheep | I126: Reset Rate> | J126: =GM_INFO!C100 | K126: =GM_INFO!C100 -> 0.2 | M126: /head | Q126: =K126*ROUND(E126,0) -> 37.8
C127: Levy-lambs | E127: =E211 -> 1300 | G127: sheep | I127: Reset Rate> | J127: =GM_INFO!C101 | K127: =GM_INFO!C101 -> 1.5 | M127: /head | Q127: =K127*ROUND(E127,0) -> 1950
C128: SA sheep industry levy | E128: =E212 -> 1488.640015 | G128: sheep | I128: Reset Rate> | J128: =GM_INFO!C102 | K128: =GM_INFO!C102 -> 0.67 | M128: /head | Q128: =K128*E128 -> 997.3888102
C129: Wool selling charges
C130: Brokerage/testing/insurance | I130: Reset Rate> | J130: =GM_INFO!C103 | K130: =GM_INFO!C103 -> 0.27 | M130: /kg | Q130: =K130*E34 -> 928.6307252
C131: Wool levy | I131: Reset Rate> | J131: =GM_INFO!C104 | K131: =GM_INFO!C104 -> 0.015 | M131: gross | Q131: =K131*Q34 -> 110.0801593
C143: Feed and Other Costs
C144: Hay | Q144: =SUM('Prime Lambs Input'!I63:I65) -> 4488
C145: Grain | Q145: =SUM('Prime Lambs Input'!I70:I72,'Prime Lambs Input'!I76:I78) -> 7872
C146: Insurance | E146: =AC51 -> 163900 | G146: value | I146: Reset Rate> | J146: =GM_INFO!B157 | K146: =GM_INFO!B158 -> 4.5 | M146: /$'000 | Q146: =K146/1000*E146 -> 737.55
C147: Water | E147: =$Q$6 -> 1840 | G147: DSE's | I147: Reset Rate> | J147: =GM_INFO!D129 | K147: =GM_INFO!D130 -> 2.5 | M147: /DSE's | Q147: =K147*E147 -> 4600
C148: Veh Fuel, R&M | E148: =$Q$6 -> 1840 | G148: DSE's | I148: Reset Rate> | J148: =GM_INFO!D130 | K148: =GM_INFO!D131 -> 1.5 | M148: /DSE's | Q148: =K148*E148 -> 2760
C149: Other | E149: =$Q$6 -> 1840 | G149: DSE's | I149: Reset Rate> | J149: =GM_INFO!D131 | K149: =GM_INFO!D132 -> 0.5 | M149: /DSE's | Q149: =K149*E149 -> 920
C170: TOTAL VARIABLE COSTS | Q170: =SUM(Q48:Q166) -> 111003.7782
C172: GROSS MARGIN TOTAL | Q172: =Q37-Q170 -> 93824.89906
C174: GROSS MARGIN/DSE | Q174: =Q172/Q6 -> 50.99179297
C194: PRODUCTION DATA
C196: Stocking rate (DSE/Ha) | E196: 6 | K196: Culling Rate (% from each group) | AA196: SHEEP GROSS MARGIN
C197: Total DSE's | E197: =SUMPRODUCT(AB48:AB50,AE48:AE50) -> 1840 | K197: Age Group | M197: Ewes | O197: Wethers | AA197: PRIME LAMB -
C198: SHEEP GRAZING AREA | E198: =E197/E196 -> 306.6666667 | K198: 0.5 | M198: =AF214 -> 0
C199: Number of ewes mated | E199: ='Prime Lambs Input'!E7 -> 1000 | K199: 1.5 | M199: 0
C200: Ram percentage | E200: ='Prime Lambs Input'!E11 -> 0.02 | K200: 2.5 | M200: 0
C201: Age ewes bought (yrs) | E201: ='Prime Lambs Input'!E8 -> 0.5 | K201: 3.5 | M201: 0
C202: Age ewes culled | E202: ='Prime Lambs Input'!E9 -> 6.5 | K202: 4.5 | M202: 0 | AA202: Ewes mated | AC202: ='Prime Lambs Input'!E7 -> 1000 | AF202: Ram % | AG202: =E200 -> 0.02
B203: =VLOOKUP(r[0]c3&"No Ops",CHOOSE({1,2},tbl_ops[Name]&tbl_ops[Category],INDIRECT("tbl_ops["&var_crop&"]")),2,0) | C203: Years rams kept | E203: ='Prime Lambs Input'!E12 -> 3 | K203: 5.5 | M203: 1 | AA203: Age ewes purchased | AC203: =E201 -> 0.5 | AF203: Price of rams | AG203: =G215 -> 1000
B204: =VLOOKUP(r[0]c3&"No Ops",CHOOSE({1,2},tbl_ops[Name]&tbl_ops[Category],INDIRECT("tbl_ops["&var_crop&"]")),2,0) | C204: Flock death rate | E204: ='Prime Lambs Input'!E13 -> 0.03 | K204: 6.5 | M204: 0 | AA204: Age ewes sold | AC204: =E202 -> 6.5 | AF204: Years rams kept | AG204: =E203 -> 3
B205: =VLOOKUP(r[0]c3&"No Ops",CHOOSE({1,2},tbl_ops[Name]&tbl_ops[Category],INDIRECT("tbl_ops["&var_crop&"]")),2,0) | C205: Average weaning rate | E205: =AC205 -> 1.3 | AA205: Av Weaning % | AC205: ='Prime Lambs Input'!E10 -> 1.3 | AF205: Age wethers sold | AG205: 0.5
B206: =VLOOKUP(r[0]c3&"No Ops",CHOOSE({1,2},tbl_ops[Name]&tbl_ops[Category],INDIRECT("tbl_ops["&var_crop&"]")),2,0) | C206: % Lambs carried over | E206: 0 | AA206: dse/ewe | AC206: =AE48 -> 1.8 | AF206: Flock death rate | AG206: =E204 -> 0.03
B207: =VLOOKUP(r[0]c3&var_rain,CHOOSE({1,2},tbl_ops[Name]&tbl_ops[Rainfall],INDIRECT("tbl_ops["&var_crop&"]")),2,0)
B208: =VLOOKUP(r[0]c3&var_rain,CHOOSE({1,2},tbl_ops[Name]&tbl_ops[Rainfall],INDIRECT("tbl_ops["&var_crop&"]")),2,0) | C208: SALES | E208: Number | G208: Price/hd | I208: Age | K208: Total
B209: =VLOOKUP(r[0]c3&var_rain,CHOOSE({1,2},tbl_ops[Name]&tbl_ops[Rainfall],INDIRECT("tbl_ops["&var_crop&"]")),2,0) | C209: c.f.a ewes | E209: =AG220 -> 182.3692879 | G209: ='Prime Lambs Input'!E18 -> 70 | I209: =E202 -> 6.5 | K209: =ROUND(E209,0)*G209 -> 12740
B210: =VLOOKUP(r[0]c3&var_rain,CHOOSE({1,2},tbl_ops[Name]&tbl_ops[Rainfall],INDIRECT("tbl_ops["&var_crop&"]")),2,0) | C210: c.f.a rams | E210: =AG238 -> 6.270727266 | G210: ='Prime Lambs Input'!E19 -> 25 | I210: =E203+1.5 -> 4.5 | K210: =ROUND(E210,0)*G210 -> 150
C211: Lambs | E211: ='Prime Lambs Input'!F20 -> 1300 | G211: ='Prime Lambs Input'!E20 -> 142 | I211: 20 Weeks | K211: =ROUND(E211,0)*G211 -> 184600 | AA211: EWES | AB211: OPENING | AC211: NATURAL | AD211: PURCHASES | AE211: DEATHS | AF211: % sold | AG211: SALES | AH211: CLOSING
C212: TOTAL | E212: =SUM(E209:E211) -> 1488.640015 | G212: =K212/E212 -> 132.6647127 | K212: =SUM(K209:K211) -> 197490 | AA212: AGE | AB212: NUMBERS | AC212: INCREASE | AF212: culled | AH212: NUMBERS
C213: PURCHASES | E213: Number | G213: Price/hd | I213: Age | K213: Total | AD213: =IF($AC$203=0.5,AB214,AB213-AE213) -> 213.5699335
C214: Ewes | E214: =AD220 -> 213.5699335 | G214: ='Prime Lambs Input'!E29 -> 145 | I214: =E201 -> 0.5 | K214: =E214*G214 -> 30967.64035 | AA214: 0.5-1.5yr | AB214: =IF(AC203=0.5,AC202/(1+(1-AG206)*(1-AF214)*(1+(1-AG206)*(1-AF215)*(1+(1-AG206)*(1-AF216)*(1+(1-AG206)*(1-AF217)*(1+(-AG206)*(1-AF218)))))),0) -> 213.5699335 | AD214: =IF($AC$203=1.5,AB214-AE214,0) -> 0 | AE214: 1.2 | AG214: =(AB214-AE214)*AF214 -> 0 | AH214: =AB214+AC214+AD214-AE214-AG214 -> 212.3699335
C215: Rams | E215: =AD238 -> 6.870727266 | G215: ='Prime Lambs Input'!E30 -> 1000 | I215: 1.5 | K215: =E215*G215 -> 6870.727266 | AA215: 1.5-2.5yr | AB215: =IF(AC203=1.5,AC202/(1+(1-AG206)*(1-AF215)*(1+(1-AG206)*(1-AF216)*(1+(1-AG206)*(1-AF217)*(1+(1-AG206)*(1-AF218))))),AH214) -> 212.3699335 | AD215: =IF(AC203=2.5,AB216-AG215,0) -> 0 | AE215: =AB215*AG206 -> 6.371098004 | AG215: 0 | AH215: 205.9988355
AA216: 2.5-3.5yr | AB216: =IF(AC203=2.5,AC202/(1+(1-AG206)*(1-AF216)*(1+(1-AG206)*(1-AF217)*(1+(1-AG206)*(1-AF218)))),AH215) -> 205.9988355 | AD216: =IF(AC203=3.5,AB217-AG216,0) -> 0 | AE216: =AB216*AG206 -> 6.179965064 | AG216: 0 | AH216: 199.8188704
E217: Number of Times | AA217: 3.5-4.5yr | AB217: =IF(AC203=3.5,AC202/(1+(1-AG206)*(1-AF217)*(1+(1-AG206)*(1-AF218))),AH216) -> 199.8188704 | AD217: =IF(AC203=4.5,AB218-AG217,0) -> 0 | AE217: =AB217*AG206 -> 5.994566112 | AG217: 0 | AH217: 193.8243043
C218: STOCK HEALTH REQUIREMENTS | E218: Number | G218: Drench | I218: Vacc. | K218: Blowfly | M218: DSE | X218: Rotation between different drench groups generally does little to slow development of drench | AA218: 4.5-5.5yr | AB218: =IF(AC203=4.5,AC202/(1+(1-AG206)*(1-AF218)),AH217) -> 193.8243043 | AE218: =AB218*AG206 -> 5.814729129 | AF218: =IF(AC204=5.5,1,0) -> 0 | AG218: 0 | AH218: 188.0095752
C219: Ewes | E219: ='Prime Lambs Input'!E7 -> 1000 | G219: ='Prime Lambs Input'!F53 -> 3 | I219: ='Prime Lambs Input'!G53 -> 1 | K219: ='Prime Lambs Input'!H53 -> 1 | M219: 1.8 | X219: resistance and should not be used at the expense of these three highly effective practices: | AA219: 5.5-6.5yr | AB219: =AH218 -> 188.0095752 | AE219: =AB219*AG206 -> 5.640287255 | AF219: =IF(AC204=6.5,1,0) -> 1 | AG219: 182.3692879 | AH219: 0
C220: Rams | E220: =AB49 -> 20 | G220: ='Prime Lambs Input'!F54 -> 3 | I220: ='Prime Lambs Input'!G54 -> 1 | K220: ='Prime Lambs Input'!H54 -> 0 | M220: 2 | X220: • use products most effective on your property | AA220: Ewes | AB220: =SUM(AB215:AB219) -> 1000.021519 | AD220: =AD214+AD215+AD216+AD217+AD213 -> 213.5699335 | AE220: =SUM(AE214:AE219) -> 31.20064556 | AG220: =SUM(AG215:AG219) -> 182.3692879 | AH220: =SUM(AH214:AH218) -> 1000.021519
C221: Lambs | E221: =AC227 -> 1300 | G221: ='Prime Lambs Input'!F55 -> 2 | I221: ='Prime Lambs Input'!G55 -> 2 | K221: ='Prime Lambs Input'!H55 -> 0 | X221: • use multi-active (combination) products | AA221: d.s.e's | AB221: =AB214+AB220*AC206 -> 2013.608667
C222: TOTAL | E222: =SUM(E219:E221) -> 2320 | G222: =SUMPRODUCT($E$219:$E$221,G219:G221) -> 5660 | I222: =SUMPRODUCT($E$219:$E$221,I219:I221) -> 3620 | K222: =SUMPRODUCT($E$219:$E$221,K219:K221) -> 1000 | M222: =SUMPRODUCT($E$219:$E$221,M219:M221) -> 1840 | X222: • use short-acting products
BG223: For more information: https://wormboss.com.au/tests-tools/drench-rotation-versus-combinations-to-combat-drench-resistance/
G224: Wool Cut kg/hd | AA224: LAMBS | AB224: OPENING | AC224: NATURAL | AD224: PURCHASES | AE224: DEATHS | AF224: % sold | AG224: SALES | AH224: CLOSING
C225: SHEARING | E225: Number | I225: Price | K225: Total | AA225: AGE | AB225: NUMBERS | AC225: INCREASE | AF225: culled | AH225: NUMBERS
C226: Ewes | E226: =AB220-AE220 -> 968.8208733 | G226: ='Prime Lambs Input'!F44 -> 3.5 | I226: ='Prime Lambs Input'!G44 -> 2.142 | K226: =I226*G226*E226 -> 7263.250087
C227: Crossbred rams | E227: =AB238-AE238 -> 19.4 | G227: ='Prime Lambs Input'!F45 -> 2.5 | I227: ='Prime Lambs Input'!G45 -> 1.5552 | K227: =I227*G227*E227 -> 75.4272 | AA227: 0-0.5yr | AC227: =AC202*AC205 -> 1300 | AF227: 1 | AG227: =AC227*AF227 -> 1300 | AH227: =AB227+AC227+AD227-AE227-AG227 -> 0
AA230: RAMS | AB230: OPENING | AC230: NATURAL | AD230: PURCHASES | AE230: DEATHS | AF230: % sold | AG230: SALES | AH230: CLOSING
AA231: AGE | AB231: NUMBERS | AC231: INCREASE | AF231: culled | AH231: NUMBERS
AA233: 0.5-1.5yr | AD233: =AB234/(1-AF233) -> 6.870727266 | AE233: =AB233*$AG$206 -> 0 | AH233: =AB233+AC233+AD233-AE233-AG233 -> 6.870727266
C234: TOTAL | E234: =SUM(E226:E233) -> 988.2208733 | G234: =SUMPRODUCT(E226:E233,G226:G233) -> 3439.373056 | K234: =SUM(K226:K233) -> 7338.677287 | AA234: 1.5-2.5yr | AB234: =IF(AG204=3,(AC202*AG202)/(1+(1-AG206)*(1-AF234)*(1+(1-AG206)*(1-AF235)*(1+(1-AG206)*(1-AF236)))),IF(AG204=4,(AC202*AG202)/(1+(1-AG206)*(1-AF234)*(1+(1-AG206)*(1-AF235)*(1+(1-AG206)*(1-AF236)*(1+(1-AG206)*(1-AF237))))),0)) -> 6.870727266 | AE234: =AB234*$AG$206 -> 0.206121818 | AH234: =AB234+AC234+AD234-AE234-AG234 -> 6.664605448
AA235: 2.5-3.5yr | AB235: =AH234 -> 6.664605448 | AE235: =AB235*$AG$206 -> 0.1999381635 | AH235: =AB235+AC235+AD235-AE235-AG235 -> 6.464667285
AA236: 3.5-4.5yr | AB236: =AH235 -> 6.464667285 | AE236: =AB236*$AG$206 -> 0.1939400186 | AF236: =IF(AG204=3,100%,0) -> 1 | AG236: =(AB236-AE236)*AF236 -> 6.270727266 | AH236: =AB236+AC236+AD236-AE236-AG236 -> 0
G237: Hay Cost ($/T) | I237: Kg Fed per Week | K237: No of Weeks Feeding | M237: Total Cost ($) | AA237: 4.5-5.5yr | AB237: =AH236 -> 0 | AE237: =AB237*$AG$206 -> 0 | AF237: =IF(AG204=4,100%,0) -> 0 | AG237: =AB237-AE237 -> 0 | AH237: =AB237+AC237+AD237-AE237-AG237 -> 0
C238: FEEDING | E238: Number | AB238: =AB233+AB234+AB235+AB236+AB237 -> 20 | AD238: =AD233+AD234+AD235+AD236+AD237 -> 6.870727266 | AE238: =AE233+AE234+AE235+AE236+AE237 -> 0.6 | AG238: =AG233+AG234+AG235+AG236+AG237 -> 6.270727266 | AH238: =AH233+AH234+AH235+AH236+AH237 -> 20
C239: Ewes | E239: ='Prime Lambs Input'!E63 -> 1000 | G239: ='Prime Lambs Input'!F63 -> 220 | I239: ='Prime Lambs Input'!G63 -> 2.5 | K239: ='Prime Lambs Input'!H63 -> 8 | M239: =(E239*G239*I239*K239)/1000 -> 4400 | AA239: d.s.e's | AB239: =AB238*AE49 -> 40
C240: Rams | E240: ='Prime Lambs Input'!E64 -> 20 | G240: ='Prime Lambs Input'!F64 -> 220 | I240: ='Prime Lambs Input'!G64 -> 2.5 | K240: ='Prime Lambs Input'!H64 -> 8 | M240: =(E240*G240*I240*K240)/1000 -> 88
C241: Lambs | E241: ='Prime Lambs Input'!E65 -> 0 | G241: ='Prime Lambs Input'!F65 -> 0 | I241: ='Prime Lambs Input'!G65 -> 0 | K241: ='Prime Lambs Input'!H65 -> 0 | M241: =(E241*G241*I241*K241)/1000 -> 0
G242: Grain Cost ($/T) | I242: Kg Fed per Week | K242: No of Weeks Feeding | M242: Total Cost ($)
E243: Number
C244: Ewes | E244: ='Prime Lambs Input'!E70 -> 1000 | G244: ='Prime Lambs Input'!F70 -> 320 | I244: ='Prime Lambs Input'!G70 -> 3 | K244: ='Prime Lambs Input'!H70 -> 8 | M244: =(E244*G244*I244*K244)/1000 -> 7680
C245: Rams | E245: ='Prime Lambs Input'!E71 -> 20 | G245: ='Prime Lambs Input'!F71 -> 320 | I245: ='Prime Lambs Input'!G71 -> 3 | K245: ='Prime Lambs Input'!H71 -> 10 | M245: =(E245*G245*I245*K245)/1000 -> 192
C246: Lambs | E246: ='Prime Lambs Input'!E72 -> 0 | G246: ='Prime Lambs Input'!F72 -> 0 | I246: ='Prime Lambs Input'!G72 -> 0 | K246: ='Prime Lambs Input'!H72 -> 0 | M246: =(E246*G246*I246*K246)/1000 -> 0
G247: Supp. Cost ($/kg) | I247: Kg Fed per Week | K247: No of Weeks Feeding | M247: Total Cost ($)
E248: Number
C249: Ewes | E249: ='Prime Lambs Input'!E76 -> 0 | G249: ='Prime Lambs Input'!F76 -> 0 | I249: ='Prime Lambs Input'!G76 -> 0 | K249: ='Prime Lambs Input'!H76 -> 0 | M249: =(E249*G249*I249*K249) -> 0
C250: Rams | E250: ='Prime Lambs Input'!E77 -> 0 | G250: ='Prime Lambs Input'!F77 -> 0 | I250: ='Prime Lambs Input'!G77 -> 0 | K250: ='Prime Lambs Input'!H77 -> 0 | M250: =(E250*G250*I250*K250) -> 0
C251: Lambs | E251: ='Prime Lambs Input'!E78 -> 0 | G251: ='Prime Lambs Input'!F78 -> 0 | I251: ='Prime Lambs Input'!G78 -> 0 | K251: ='Prime Lambs Input'!H78 -> 0 | M251: =(E251*G251*I251*K251) -> 0
C252: TOTAL FEED COST | M252: =SUM(M239:M241,M244:M246,M249:M251) -> 12360
C255: GM SENSITIVITY
C256: Gross Margin/DSE | E256: Average Weaning Rate
G257: 1.1 | I257: 1.2 | K257: 1.3 | M257: 1.4 | O257: 1.5 | Q257: 1.6
E258: 117 | G258: =($E$199*G$257*$E258*(1-$K$124)+SUM($K$209:$K$210)+$K$234-$AK$57-$E$199*G$257*$AO$52)/$E$197 -> 25.37477013 | I258: =($E$199*I$257*$E258*(1-$K$124)+SUM($K$209:$K$210)+$K$234-$AK$57-$E$199*I$257*$AO$52)/$E$197 -> 30.62395492 | K258: =($E$199*K$257*$E258*(1-$K$124)+SUM($K$209:$K$210)+$K$234-$AK$57-$E$199*K$257*$AO$52)/$E$197 -> 35.8731397 | M258: =($E$199*M$257*$E258*(1-$K$124)+SUM($K$209:$K$210)+$K$234-$AK$57-$E$199*M$257*$AO$52)/$E$197 -> 41.12232448 | O258: =($E$199*O$257*$E258*(1-$K$124)+SUM($K$209:$K$210)+$K$234-$AK$57-$E$199*O$257*$AO$52)/$E$197 -> 46.37150926 | Q258: =($E$199*Q$257*$E258*(1-$K$124)+SUM($K$209:$K$210)+$K$234-$AK$57-$E$199*Q$257*$AO$52)/$E$197 -> 51.62069405
E259: 122 | G259: 28.19949839 | I259: 33.70547666 | K259: 39.21145492 | M259: 44.71743318 | O259: 50.22341144 | Q259: 55.7293897
C260: Average Lamb Sale Price($/hd) | E260: 127 | G260: 31.02422666 | I260: 36.78699839 | K260: 42.54977013 | M260: 48.31254187 | O260: 54.07531361 | Q260: 59.83808535
E261: 132 | G261: 33.84895492 | I261: 39.86852013 | K261: 45.88808535 | M261: 51.90765057 | O261: 57.92721579 | Q261: 63.946781
E262: 137 | G262: 36.67368318 | I262: 42.95004187 | K262: 49.22640057 | M262: 55.50275926 | O262: 61.77911796 | Q262: 68.05547666
E263: 142 | G263: 39.49841144 | I263: 46.03156361 | K263: 52.56471579 | M263: 59.09786796 | O263: 65.63102013 | Q263: 72.16417231
E264: 147 | G264: 42.3231397 | I264: 49.11308535 | K264: 55.903031 | M264: 62.69297666 | O264: 69.48292231 | Q264: 76.27286796
E265: 152 | G265: 45.14786796 | I265: 52.19460709 | K265: 59.24134622 | M265: 66.28808535 | O265: 73.33482448 | Q265: 80.38156361
E266: 157 | G266: 47.97259622 | I266: 55.27612883 | K266: 62.57966144 | M266: 69.88319405 | O266: 77.18672666 | Q266: 84.49025926
E267: 162 | G267: 50.79732448 | I267: 58.35765057 | K267: 65.91797666 | M267: 73.47830274 | O267: 81.03862883 | Q267: 88.59895492
E268: 167 | G268: 53.62205274 | I268: 61.43917231 | K268: 69.25629187 | M268: 77.07341144 | O268: 84.890531 | Q268: 92.70765057

Sheet Prime Lambs Maternal Input (hidden)
C1: Prime Lambs Maternal
C2: =UPPER(var_animal)&" GROSS MARGIN - "&TEXT(m_year,"0000") -> PRIME LAMBS MATERNAL GROSS MARGIN - 2024
C4: GENERAL INFORMATION
C5: This represents a maternal ewe enterprise (composite ewe) mated to a maternal composite sire. All ewe replacements are purchased but age of replacements can be varied from 1.5 years to 4.5 years. Following are the various assumptions used in the calculation of the Gross Margin. Cells with yellow highlight can be changed. No allowance has been made for pasture expenses such as seed, fertiliser and chemicals. Refer to pasture gross margins in the “Cropping Gross Margin Plan” for annual and perennial pasture costs. Use the livestock gross margin per DSE as income for the pasture gross margin.
C7: Ewes mated | E7: 1000
C8: Age ewes purchased | E8: 0.5
C9: Age ewes sold | E9: 6.5
C10: Av Weaning % | E10: 1.3
C11: Ram percentage | E11: 0.02
C12: Years Rams Kept | E12: 3
C13: Flock death Rate | E13: 0.03
C14: % Lambs carried over | E14: 0
C17: LIVESTOCK SALES | E17: Price/Hd | F17: Number | G17: Total
C18: c.f.a Ewes | E18: 70 | F18: ='Prime Lambs Maternal'!AG221 -> 182.3692879 | G18: =E18*ROUND(F18,0) -> 12740
C19: c.f.a Rams | E19: 25 | F19: ='Prime Lambs Maternal'!AG239 -> 6.270727266 | G19: =E19*ROUND(F19,0) -> 150
C20: Ewe Lambs | E20: 145 | F20: ='Prime Lambs Maternal'!AG228*0.42 -> 546 | G20: =E20*ROUND(F20,0) -> 79170
C21: Wether & cull ewe lambs | E21: 140 | F21: ='Prime Lambs Maternal'!AG228*0.58 -> 754 | G21: =E21*ROUND(F21,0) -> 105560
C25: TOTAL SALES | F25: =SUM(F18:F23) -> 1488.640015 | G25: =SUM(G18:G23) -> 197620
C28: LIVESTOCK PURCHASES | E28: Price/Hd | F28: Number | G28: Total
C29: Ewes | E29: 145 | F29: ='Prime Lambs Maternal'!AD221 -> 213.5699335 | G29: =E29*F29 -> 30967.64035
C30: Rams | E30: 1000 | F30: ='Prime Lambs Maternal'!AD239 -> 6.870727266 | G30: =E30*F30 -> 6870.727266
C32: TOTAL PURCHASES | F32: =SUM(F29:F30) -> 220.4406607 | G32: =SUM(G29:G30) -> 37838.36762
C35: WOOL PRICE (cents/kg) | F35: =TEXT(m_year-3,"0000")&" Average (Clean)" -> 2021 Average (Clean) | G35: =TEXT(m_year-2,"0000")&" Average (Clean)" -> 2022 Average (Clean) | H35: =TEXT(m_year-1,"0000")&" Average (Clean)" -> 2023 Average (Clean) | I35: Budget Base (Clean) | J35: Budget Base (Greasy)
E36: Wool- High Rainfall 28 mic 70% yield | F36: 867 | G36: 774 | H36: 756 | I36: 340 | J36: =I36*I37 -> 238
E37: Estimated wool yield | I37: 0.7
C38: Allow 90% to account for lower value of bellies, skirtings etc. | J38: =J36*0.9 -> 214.2
C42: WOOL SALES - SHEARING | F42: Wool Cut
E43: Number | F43: kg/hd | G43: Price | H43: Total
C44: Ewes | E44: ='Prime Lambs Maternal'!E227 -> 968.8208733 | F44: 3.5 | G44: 2.142 | H44: =E44*F44*G44 -> 7263.250087
C45: Crossbred Rams | E45: ='Prime Lambs Maternal'!E228 -> 19.4 | F45: 2.5 | G45: 1.5552 | H45: =E45*F45*G45 -> 75.4272
C47: TOTAL | E47: =SUM(E44:E46) -> 988.2208733 | F47: =(E44*F44)+(E45*F45) -> 3439.373056 | H47: =SUM(H44:H46) -> 7338.677287
C50: STOCK HEALTH REQUIREMENTS | E50: =HYPERLINK("http://paraboss.com.au","for more info on drench, lice and blowfly product selection refer to www.paraboss.com.au") -> for more info on drench, lice and blowfly product selection refer to www.paraboss.com.au
G51: Number of times
E52: Number | F52: Drench | G52: Vacc. | H52: Blowfly
C53: Ewes | E53: ='Prime Lambs Maternal'!E220 -> 1000 | F53: 3 | G53: 1 | H53: 1
C54: Rams | E54: ='Prime Lambs Maternal'!E221 -> 20 | F54: 3 | G54: 1 | H54: 0
C55: Lambs | E55: ='Prime Lambs Maternal'!E222 -> 1300 | F55: 2 | G55: 2 | H55: 0
C57: TOTAL | E57: =SUM(E53:E55) -> 2320 | F57: =SUMPRODUCT($E$53:$E$55,F53:F55) -> 5660 | G57: =SUMPRODUCT($E$53:$E$55,G53:G55) -> 3620 | H57: =SUMPRODUCT($E$53:$E$55,H53:H55) -> 1000
C60: FEEDING
C61: HAY | F61: Hay | G61: Kgs Fed | H61: No Weeks | I61: Total
E62: Number | F62: Cost ($/T) | G62: per Week | H62: of Feeding | I62: Cost ($)
C63: Ewes | E63: ='Prime Lambs Maternal'!E220 -> 1000 | F63: 220 | G63: 2.5 | H63: 8 | I63: =(H63*G63*E63)/1000*F63 -> 4400
C64: Rams | E64: ='Prime Lambs Maternal'!E221 -> 20 | F64: 220 | G64: 2.5 | H64: 8 | I64: =(H64*G64*E64)/1000*F64 -> 88
I66: =(H66*G66*E66)/1000*F66 -> 0
C68: GRAIN | F68: Grain | G68: Kgs Fed | H68: No weeks | I68: Total
E69: Number | F69: Cost ($/T) | G69: per week | H69: of Feeding | I69: Cost ($)
C70: Ewes | E70: ='Prime Lambs Maternal'!E220 -> 1000 | F70: 320 | G70: 3 | H70: 8 | I70: =(H70*G70*E70)/1000*F70 -> 7680
C71: Rams | E71: ='Prime Lambs Maternal'!E221 -> 20 | F71: 320 | G71: 3 | H71: 10 | I71: =(H71*G71*E71)/1000*F71 -> 192
C72: Lambs | I72: =(H72*G72*E72)/1000*F72 -> 0
C74: Supplements | G74: Kgs Fed | H74: No weeks | I74: Total
E75: Number | F75: Cost ($/kg) | G75: per week | H75: of Feeding | I75: Cost ($)
C76: Ewes | I76: =(H76*G76*E76)*F76 -> 0
C77: Rams | I77: =(H77*G77*E77)*F77 -> 0
C78: Lambs | I78: =(H78*G78*E78)*F78 -> 0
H80: Total Feed Cost | I80: =SUM(I63:I66,I70:I72,I76:I78) -> 12360

Sheet Prime Lambs Maternal (hidden)
C1: Prime Lambs Maternal
C2: =UPPER(Var_Animal)&" GROSS MARGIN - "&TEXT(m_year,"0000") -> PRIME LAMBS MATERNAL GROSS MARGIN - 2024
C4: ASSUMPTIONS
C6: Ave Breeding Ewe Fibre Diameter | E6: 28 | O6: Total DSE's | Q6: =E197 -> 1840
C7: No. of breeding ewes (1st Cross) | E7: ='Prime Lambs Maternal Input'!$E$7 -> 1000
C8: 1st cross ewe - Terminal meat sire
C32: INCOME | Q32: $
C34: Wool (kg greasy) | E34: =G235 -> 3439.373056 | G34: kg | I34: av price | K34: =K235*100/G235*0.9 -> 192.0352765 | M34: c/kg | Q34: =K235 -> 7338.677287
C35: Sales | E35: =E213 -> 1488.640015 | G35: animals | I35: av price | K35: =G213 -> 132.7520408 | M35: /head | Q35: =E213*G213 -> 197620
C37: Gross Income | Q37: =SUM(Q34:Q35) -> 204958.6773
AA45: STOCK VALUE AND D.S.E REQUIREMENT | AG45: Non lamb related expenses | AM45: Lamb Costs | AN45: No: | AO45: per head | AS45: SHEEP GROSS MARGIN
C46: VARIABLE COSTS | AC46: Value | AD46: Ave Live | AE46: DSE | AS46: PRIME LAMB -
C47: Shearing | K47: Rate | AB47: Number | AC47: $/head | AD47: Wt (Kgs) | AE47: rating | AG47: Shearing | AJ47: =SUM(Q48:Q58) -> 10458.73138 | AM47: Marking | AN47: =$E$121 -> 754 | AO47: =K76+K77 -> 1.7 | AP47: =AN47*AO47 -> 1281.8
C48: Shearing | E48: =E227 -> 968.8208733 | G48: sheep | I48: Reset Rate> | J48: =GM_INFO!C79 | K48: 367.89 | M48: /100 | Q48: =K48/100*ROUND(E48,0) -> 3564.8541 | AA48: ewes | AB48: ='Prime Lambs Maternal Input'!$E$7 -> 1000 | AC48: =(G209+G215)/2 -> 107.5 | AD48: 60 | AE48: =IF(AND(AD48>=55,AD48<60),1.7,IF(AND(AD48>=60,AD48<65),1.8,IF(AND(AD48>=65,AD48<70),1.9,IF(AND(AD48>=70,AD48<75),2,IF(AND(AD48>=75,AD48<80),2.1,IF(AND(AD48>=80,AD48<85),2.2,IF(AND(AD48>=85,AD48<90),2.3,IF(AD48>=90,2.4,0)))))))) -> 1.8 | AG48: Animal health | AJ48: =(E220*G220+E221*G221)*K90+(E220*I220+E221*I221)*K91+(E220*K220)*K92 -> 4917.84 | AM48: Animal health | AN48: =$E$121 -> 754 | AO48: =G221*K91+I221*K90 -> 2.26 | AP48: =AN48*AO48 -> 1704.04
C49: (Federal awards) | E49: =E228 -> 19.4 | G49: rams | I49: Reset Rate> | J49: =GM_INFO!C80 | K49: 735.78 | M49: /100 | Q49: =K49/100*ROUND(E49,0) -> 139.7982 | AA49: rams | AB49: ='Prime Lambs Maternal Input'!E11*'Prime Lambs Maternal'!AB48 -> 20 | AC49: =(G210+G216)/2 -> 512.5 | AD49: 100 | AE49: 2 | AG49: Stock Purchase | AJ49: =SUM(Q105:Q105) -> 37838.36762 | AM49: Freight | AN49: =$E$121 -> 754 | AO49: =K121 -> 7 | AP49: =AN49*AO49 -> 5278
C50: Shed labour | E50: 5 | G50: days | I50: Reset Rate> | J50: =GM_INFO!C81 | K50: 278.64 | M50: /day | Q50: =K50*ROUND(E50,0) -> 1393.2 | AA50: lambs | AB50: =AC228 -> 1300 | AC50: =G212/2 -> 70 | AD50: 35 | AE50: 0 | AG50: Freight | AH50: sheep | AJ50: =SUM(Q119:Q120) -> 2817.989534 | AM50: Yard Fees | AN50: =$E$121 -> 754 | AO50: =K125 -> 0.85 | AP50: =AN50*AO50 -> 640.9
C51: Woolclasser | E51: 2.5 | G51: days | I51: Reset Rate> | J51: =GM_INFO!C82 | K51: 338.18 | M51: /day | Q51: =K51*E51 -> 845.45 | AA51: TOTAL | AB51: =SUM(AB48:AB50) -> 2320 | AC51: =AB48*AC48+AB49*AC49+AB50*AC50/2 -> 163250 | AH51: Wool | AJ51: =Q122 -> 300 | AM51: Levies | AN51: =$E$121 -> 754 | AO51: =K127+K128 -> 2.17 | AP51: =AN51*AO51 -> 1636.18 | AS51: Ewes mated | AU51: ='Prime Lambs Maternal Input'!$E$7 -> 1000 | AX51: Ram % | AY51: =E200 -> 0.02
C52: Superannuation (on ord wages only) | I52: Reset Rate> | J52: =GM_INFO!C83 | K52: 0.11 | M52: wages | Q52: =(Q48+Q49+Q50+Q51)*K52 -> 653.763253 | AG52: Commission on livestock sales | AJ52: =(K209+K210)*K124 -> 708.95 | AO52: =SUM(AO47:AO51) -> 13.98 | AQ52: =AO52*AD50 -> 489.3 | AS52: Age ewes purchased | AU52: =E201 -> 0.5 | AX52: Price of rams | AY52: =AL68 -> 0
C53: W/Cover (incl. super + otime etc) | I53: Reset Rate> | J53: =GM_INFO!C84 | K53: 0.04 | M53: total | Q53: =(Q48+Q49+Q50+Q51+Q52)*K53 -> 263.8826221 | AG53: Yard fees | AJ53: =E119*K125 -> 160.3440129 | AM53: Commission | AN53: =$E$121 -> 754 | AO53: =G213 -> 132.7520408 | AP53: =K124 -> 0.055 | AQ53: =AD50*AO53*AP53 -> 255.5476785 | AS53: Age ewes sold | AU53: =E202 -> 6.5 | AX53: Years rams kept | AY53: =E203 -> 3
C54: Wool packs | E54: 20 | G54: packs | I54: Reset Rate> | J54: =GM_INFO!C77 | K54: 16 | M54: /pack | Q54: =K54*ROUND(E54,0) -> 320 | AG54: Levies | AJ54: =E126*(K126+K128) -> 164.1168132 | AS54: Av Weaning % | AU54: ='Prime Lambs Maternal Input'!E10 -> 1.3 | AX54: Age wethers sold | AY54: 0.5
C55: Shed sundries | E55: =E48+E49 -> 988.2208733 | G55: sheep | I55: Reset Rate> | J55: =GM_INFO!C85 | K55: 0.22 | M55: /head | Q55: =K55*ROUND(E55,0) -> 217.36 | AG55: Wool Selling Charges | AJ55: =Q130+Q131 -> 1038.710885 | AQ55: =SUM(AQ43:AQ53) -> 744.8476785 | AS55: dse/ewe | AU55: =AE48 -> 1.8 | AX55: Flock death rate | AY55: =E204 -> 0.03
C56: Lice control | E56: =E48+E49 -> 988.2208733 | G56: sheep | I56: Reset Rate> | J56: =GM_INFO!C66 | K56: 1.9875 | M56: /head | Q56: =K56*ROUND(E56,0) -> 1963.65 | AG56: Feed & other costs | AJ56: =SUM(Q144:Q149) -> 21374.625
C57: Crutch & Wig | E57: 990 | G57: ewes | I57: Reset Rate> | J57: =GM_INFO!C87 | K57: 106.69 | M57: /100 | Q57: =K57/100*ROUND(E57,0) -> 1056.231 | AK57: =SUM(AJ47:AJ56) -> 79779.67524
E58: =E49 -> 19.4 | G58: rams | I58: Reset Rate> | J58: =GM_INFO!C88 | K58: 213.38 | M58: /100 | Q58: =K58/100*ROUND(E58,0) -> 40.5422
AS60: EWES | AT60: OPENING | AU60: NATURAL | AV60: PURCHASES | AW60: DEATHS | AX60: % sold | AY60: SALES | AZ60: CLOSING
AS61: AGE | AT61: NUMBERS | AU61: INCREASE | AX61: culled | AZ61: NUMBERS
AS63: 0.5-1.5yr | AV63: =IF($N$78=1.5,AT64,AT63-AW63) -> 0 | AY63: =AT63-AW63 -> 0 | AZ63: =AT63+AU63+AV63-AW63-AY63 -> 0
AS64: 1.5-2.5yr | AT64: =IF(AU52=1.5,AU51/(1+(1-AY55)*(1-AX64)*(1+(1-AY55)*(1-AX65)*(1+(1-AY55)*(1-AX66)*(1+(1-AY55)*(1-AX67))))),0) -> 0 | AV64: =IF(AU52=2.5,AT65-AY64,0) -> 0 | AW64: =AT64*$R$81 -> 0 | AY64: =(AT64-AW64)*AX64 -> 0 | AZ64: 0
AS65: 2.5-3.5yr | AT65: =IF(AU52=2.5,AU51/(1+(1-AY55)*(1-AX65)*(1+(1-AY55)*(1-AX66)*(1+(1-AY55)*(1-AX67)))),AZ64) -> 0 | AV65: =IF(AU52=3.5,AT66-AY65,0) -> 0 | AW65: =AT65*$R$81 -> 0 | AY65: =(AT65-AW65)*AX65 -> 0 | AZ65: 0
AS66: 3.5-4.5yr | AT66: =IF(AU52=3.5,AU51/(1+(1-AY55)*(1-AX66)*(1+(1-AY55)*(1-AX67))),AZ65) -> 0 | AV66: =IF(AU52=4.5,AT67-AY66,0) -> 0 | AW66: =AT66*$R$81 -> 0 | AY66: =(AT66-AW66)*AX66 -> 0 | AZ66: 0
AS67: 4.5-5.5yr | AT67: =IF(AU52=4.5,AU51/(1+(1-AY55)*(1-AX67)),AZ66) -> 0 | AW67: =AT67*$R$81 -> 0 | AX67: =IF(AU53=5.5,1,0) -> 0 | AY67: =(AT67-AW67)*AX67 -> 0 | AZ67: 0
AS68: 5.5-6.5yr | AT68: =AZ67 -> 0 | AW68: =AT68*$R$81 -> 0 | AX68: =IF(AU53=6.5,1,0) -> 1 | AY68: =(AT68-AW68)*AX68 -> 0 | AZ68: 0
AS69: Ewes | AT69: =SUM(AT64:AT68) -> 0 | AV69: =AV63+AV64+AV65+AV66 -> 0 | AW69: =SUM(AW63:AW68) -> 0 | AY69: =SUM(AY64:AY68) -> 0 | AZ69: =SUM(AZ63:AZ67) -> 0
AS70: d.s.e's | AT70: =AT63+AT69*AU55 -> 0
AS73: LAMBS | AT73: OPENING | AU73: NATURAL | AV73: PURCHASES | AW73: DEATHS | AX73: % sold | AY73: SALES | AZ73: CLOSING
AS74: AGE | AT74: NUMBERS | AU74: INCREASE | AX74: culled | AZ74: NUMBERS
C75: Marking
C76: Lamb marking | E76: =AC228 -> 1300 | G76: lambs | I76: Reset Rate> | J76: =GM_INFO!C91 | K76: =GM_INFO!C91 -> 1.25 | M76: /head | Q76: =K76*ROUND(E76,0) -> 1625 | AS76: 0-0.5yr | AU76: =AU51*AU54 -> 1300 | AX76: 1 | AY76: =AU76*AX76 -> 1300 | AZ76: =AT76+AU76+AV76-AW76-AY76 -> 0
C77: Ear tags | E77: =AC228 -> 1300 | G77: lambs | I77: Reset Rate> | J77: =GM_INFO!C92 | K77: =GM_INFO!C92 -> 0.45 | M77: /head | Q77: =K77*ROUND(E77,0) -> 585
C78: Pain Relief | E78: =AC228 -> 1300 | G78: lambs | I78: Reset Rate> | J78: =GM_INFO!C93 | K78: 1.71 | M78: /head | Q78: =K78*ROUND(E78,0) -> 2223
AS79: RAMS | AT79: OPENING | AU79: NATURAL | AV79: PURCHASES | AW79: DEATHS | AX79: % sold | AY79: SALES | AZ79: CLOSING
AS80: AGE | AT80: NUMBERS | AU80: INCREASE | AX80: culled | AZ80: NUMBERS
AS82: 0.5-1.5yr | AV82: =AT83/(1-AX82) -> 6.870727266 | AW82: =AT82*$R$81 -> 0 | AZ82: =AT82+AU82+AV82-AW82-AY82 -> 6.870727266
AS83: 1.5-2.5yr | AT83: =IF(AY53=3,(AU51*AY51)/(1+(1-AY55)*(1-AX83)*(1+(1-AY55)*(1-AX84)*(1+(1-AY55)*(1-AX85)))),IF(AY53=4,(AU51*AY51)/(1+(1-AY55)*(1-AX83)*(1+(1-AY55)*(1-AX84)*(1+(1-AY55)*(1-AX85)*(1+(1-AY55)*(1-AX86))))),0)) -> 6.870727266 | AW83: =AT83*$R$81 -> 0 | AZ83: =AT83+AU83+AV83-AW83-AY83 -> 6.870727266
AS84: 2.5-3.5yr | AT84: =AZ83 -> 6.870727266 | AW84: =AT84*$R$81 -> 0 | AZ84: =AT84+AU84+AV84-AW84-AY84 -> 6.870727266
AS85: 3.5-4.5yr | AT85: =AZ84 -> 6.870727266 | AW85: =AT85*$R$81 -> 0 | AX85: =IF(AY53=3,100%,0) -> 1 | AY85: =(AT85-AW85)*AX85 -> 6.870727266 | AZ85: =AT85+AU85+AV85-AW85-AY85 -> 0
AS86: 4.5-5.5yr | AT86: =AZ85 -> 0 | AW86: =AT86*$R$81 -> 0 | AX86: =IF(AY53=4,100%,0) -> 0 | AY86: =AT86-AW86 -> 0 | AZ86: =AT86+AU86+AV86-AW86-AY86 -> 0
AT87: =AT82+AT83+AT84+AT85+AT86 -> 20.6121818 | AV87: =AV82+AV83+AV84+AV85+AV86 -> 6.870727266 | AW87: =AW82+AW83+AW84+AW85+AW86 -> 0 | AY87: =AY82+AY83+AY84+AY85+AY86 -> 6.870727266 | AZ87: =AZ82+AZ83+AZ84+AZ85+AZ86 -> 20.6121818
AS88: d.s.e's | AT88: =AT87*AE49 -> 41.2243636
C89: Animal Health
C90: Drench | E90: =G223 -> 5660 | G90: sheep | I90: Reset Rate> | J90: =GM_INFO!C68 | K90: =GM_INFO!C68 -> 0.952 | M90: /head | Q90: =K90*ROUND(E90,0) -> 5388.32
C91: Vaccinate | E91: =I223 -> 3620 | G91: sheep | I91: Reset Rate> | J91: =GM_INFO!C74 | K91: =GM_INFO!C74 -> 0.436 | M91: /head | Q91: =K91*ROUND(E91,0) -> 1578.32
C92: Blowfly control | E92: =K223 -> 1000 | G92: sheep | I92: Reset Rate> | J92: =GM_INFO!C76 | K92: =GM_INFO!C76 -> 1.56 | M92: /head | Q92: =K92*ROUND(E92,0) -> 1560
C104: Stock purchases
C105: Purchases | Q105: =K215+K216 -> 37838.36762
C117: Sale Costs
C118: Freight
C119: Livestock | E119: =SUM(E209:E210) -> 188.6400152 | G119: culls | I119: Reset Rate> | J119: =GM_INFO!B161 | K119: =GM_INFO!B162 -> 7 | M119: /head | Q119: =K119*ROUND(E119,0) -> 1323
E120: =E215 -> 213.5699335 | G120: ewes | I120: Reset Rate> | J120: =GM_INFO!B162 | K120: =GM_INFO!B163 -> 7 | M120: /head | Q120: =K120*E120 -> 1494.989534
E121: =E212 -> 754 | G121: prime lambs | I121: Reset Rate> | J121: =GM_INFO!B163 | K121: =GM_INFO!B164 -> 7 | M121: /head | Q121: =K121*ROUND(E121,0) -> 5278
C122: Wool | E122: =G235/170 -> 20.23160621 | G122: bales | I122: Reset Rate> | J122: =GM_INFO!B164 | K122: =GM_INFO!B165 -> 15 | M122: /bale | Q122: =K122*ROUND(E122,0) -> 300
C123: Stock selling charges
C124: Commission/insurance | I124: Reset Rate> | J124: =GM_INFO!C98 | K124: =GM_INFO!C98 -> 0.055 | M124: gross $ | Q124: =K124*Q35 -> 10869.1
C125: Yard fees | E125: =E213 -> 1488.640015 | G125: sheep | I125: Reset Rate> | J125: =GM_INFO!C99 | K125: =GM_INFO!C99 -> 0.85 | M125: /head | Q125: =K125*ROUND(E125,0) -> 1265.65
C126: Levy-sheep | E126: =E119 -> 188.6400152 | G126: sheep | I126: Reset Rate> | J126: =GM_INFO!C100 | K126: =GM_INFO!C100 -> 0.2 | M126: /head | Q126: =K126*ROUND(E126,0) -> 37.8
C127: Levy-lambs | E127: =E212 -> 754 | G127: sheep | I127: Reset Rate> | J127: =GM_INFO!C101 | K127: =GM_INFO!C101 -> 1.5 | M127: /head | Q127: =K127*ROUND(E127,0) -> 1131
C128: SA sheep industry levy | E128: =E213 -> 1488.640015 | G128: sheep | I128: Reset Rate> | J128: =GM_INFO!C102 | K128: =GM_INFO!C102 -> 0.67 | M128: /head | Q128: =K128*E128 -> 997.3888102
C129: Wool selling charges
C130: Brokerage/testing/insurance | I130: Reset Rate> | J130: =GM_INFO!C103 | K130: =GM_INFO!C103 -> 0.27 | M130: /kg | Q130: =K130*E34 -> 928.6307252
C131: Wool levy | I131: Reset Rate> | J131: =GM_INFO!C104 | K131: =GM_INFO!C104 -> 0.015 | M131: gross | Q131: =K131*Q34 -> 110.0801593
C143: Feed and Other Costs
C144: Hay | Q144: =SUM('Prime Lambs Maternal Input'!I63:I65) -> 4488
C145: Grain | Q145: =SUM('Prime Lambs Maternal Input'!I70:I72,'Prime Lambs Maternal Input'!I76:I78) -> 7872
C146: Insurance | E146: =AC51 -> 163250 | G146: value | I146: Reset Rate> | J146: =GM_INFO!B157 | K146: =GM_INFO!B158 -> 4.5 | M146: /$'000 | Q146: =K146/1000*E146 -> 734.625
C147: Water | E147: =$Q$6 -> 1840 | G147: DSE's | I147: Reset Rate> | J147: =GM_INFO!D129 | K147: =GM_INFO!D130 -> 2.5 | M147: /DSE's | Q147: =K147*E147 -> 4600
C148: Veh Fuel, R&M | E148: =$Q$6 -> 1840 | G148: DSE's | I148: Reset Rate> | J148: =GM_INFO!D130 | K148: =GM_INFO!D131 -> 1.5 | M148: /DSE's | Q148: =K148*E148 -> 2760
C149: Other | E149: =$Q$6 -> 1840 | G149: DSE's | I149: Reset Rate> | J149: =GM_INFO!D131 | K149: =GM_INFO!D132 -> 0.5 | M149: /DSE's | Q149: =K149*E149 -> 920
C170: TOTAL VARIABLE COSTS | Q170: =SUM(Q48:Q166) -> 106367.0032
C172: GROSS MARGIN TOTAL | Q172: =Q37-Q170 -> 98591.67406
C174: GROSS MARGIN/DSE | Q174: =Q172/Q6 -> 53.58243156
C194: PRODUCTION DATA
C196: Stocking rate (DSE/Ha) | E196: 12 | K196: Culling Rate (% from each group) | AA196: SHEEP GROSS MARGIN
C197: Total DSE's | E197: =SUMPRODUCT(AB48:AB50,AE48:AE50) -> 1840 | K197: Age Group | M197: Ewes | O197: Wethers | AA197: PRIME LAMB -
C198: SHEEP GRAZING AREA | E198: =E197/E196 -> 153.3333333 | K198: 0.5 | M198: =AF215 -> 0
C199: Number of ewes mated | E199: ='Prime Lambs Maternal Input'!E7 -> 1000 | K199: 1.5 | M199: 0
C200: Ram percentage | E200: ='Prime Lambs Maternal Input'!E11 -> 0.02 | K200: 2.5 | M200: 0
C201: Age ewes bought (yrs) | E201: ='Prime Lambs Maternal Input'!E8 -> 0.5 | K201: 3.5 | M201: 0
C202: Age ewes culled | E202: ='Prime Lambs Maternal Input'!E9 -> 6.5 | K202: 4.5 | M202: 0 | AA202: Ewes mated | AC202: ='Prime Lambs Maternal Input'!E7 -> 1000 | AF202: Ram % | AG202: =E200 -> 0.02
B203: =VLOOKUP(r[0]c3&"No Ops",CHOOSE({1,2},tbl_ops[Name]&tbl_ops[Category],INDIRECT("tbl_ops["&var_crop&"]")),2,0) | C203: Years rams kept | E203: ='Prime Lambs Maternal Input'!E12 -> 3 | K203: 5.5 | M203: 1 | AA203: Age ewes purchased | AC203: =E201 -> 0.5 | AF203: Price of rams | AG203: =G216 -> 1000
B204: =VLOOKUP(r[0]c3&"No Ops",CHOOSE({1,2},tbl_ops[Name]&tbl_ops[Category],INDIRECT("tbl_ops["&var_crop&"]")),2,0) | C204: Flock death rate | E204: ='Prime Lambs Maternal Input'!E13 -> 0.03 | K204: 6.5 | M204: 0 | AA204: Age ewes sold | AC204: =E202 -> 6.5 | AF204: Years rams kept | AG204: =E203 -> 3
B205: =VLOOKUP(r[0]c3&"No Ops",CHOOSE({1,2},tbl_ops[Name]&tbl_ops[Category],INDIRECT("tbl_ops["&var_crop&"]")),2,0) | C205: Average weaning rate | E205: =AC205 -> 1.3 | AA205: Av Weaning % | AC205: ='Prime Lambs Maternal Input'!E10 -> 1.3 | AF205: Age wethers sold | AG205: 0.5
B206: =VLOOKUP(r[0]c3&"No Ops",CHOOSE({1,2},tbl_ops[Name]&tbl_ops[Category],INDIRECT("tbl_ops["&var_crop&"]")),2,0) | C206: % Lambs carried over | E206: 0 | AA206: dse/ewe | AC206: =AE48 -> 1.8 | AF206: Flock death rate | AG206: =E204 -> 0.03
B207: =VLOOKUP(r[0]c3&var_rain,CHOOSE({1,2},tbl_ops[Name]&tbl_ops[Rainfall],INDIRECT("tbl_ops["&var_crop&"]")),2,0)
B208: =VLOOKUP(r[0]c3&var_rain,CHOOSE({1,2},tbl_ops[Name]&tbl_ops[Rainfall],INDIRECT("tbl_ops["&var_crop&"]")),2,0) | C208: SALES | E208: Number | G208: Price/hd | I208: Age | K208: Total
B209: =VLOOKUP(r[0]c3&var_rain,CHOOSE({1,2},tbl_ops[Name]&tbl_ops[Rainfall],INDIRECT("tbl_ops["&var_crop&"]")),2,0) | C209: c.f.a ewes | E209: =AG221 -> 182.3692879 | G209: ='Prime Lambs Maternal Input'!E18 -> 70 | I209: =E202 -> 6.5 | K209: =ROUND(E209,0)*G209 -> 12740
B210: =VLOOKUP(r[0]c3&var_rain,CHOOSE({1,2},tbl_ops[Name]&tbl_ops[Rainfall],INDIRECT("tbl_ops["&var_crop&"]")),2,0) | C210: c.f.a rams | E210: =AG239 -> 6.270727266 | G210: ='Prime Lambs Maternal Input'!E19 -> 25 | I210: =E203+1.5 -> 4.5 | K210: =ROUND(E210,0)*G210 -> 150
C211: Ewe Lambs | E211: ='Prime Lambs Maternal Input'!F20 -> 546 | G211: ='Prime Lambs Maternal Input'!E20 -> 145 | I211: 0.5 | K211: =ROUND(E211,0)*G211 -> 79170
C212: Wether & cull ewe lambs | E212: ='Prime Lambs Maternal Input'!F21 -> 754 | G212: ='Prime Lambs Maternal Input'!E21 -> 140 | I212: 20 Weeks | K212: =ROUND(E212,0)*G212 -> 105560 | AA212: EWES | AB212: OPENING | AC212: NATURAL | AD212: PURCHASES | AE212: DEATHS | AF212: % sold | AG212: SALES | AH212: CLOSING
C213: TOTAL | E213: =SUM(E209:E212) -> 1488.640015 | G213: =K213/E213 -> 132.7520408 | K213: =SUM(K209:K212) -> 197620 | AA213: AGE | AB213: NUMBERS | AC213: INCREASE | AF213: culled | AH213: NUMBERS
C214: PURCHASES | E214: Number | G214: Price/hd | I214: Age | K214: Total | AD214: =IF($AC$203=0.5,AB215,AB214-AE214) -> 213.5699335
C215: Ewes | E215: =AD221 -> 213.5699335 | G215: ='Prime Lambs Maternal Input'!E29 -> 145 | I215: =E201 -> 0.5 | K215: =E215*G215 -> 30967.64035 | AA215: 0.5-1.5yr | AB215: =IF(AC203=0.5,AC202/(1+(1-AG206)*(1-AF215)*(1+(1-AG206)*(1-AF216)*(1+(1-AG206)*(1-AF217)*(1+(1-AG206)*(1-AF218)*(1+(-AG206)*(1-AF219)))))),0) -> 213.5699335 | AD215: =IF($AC$203=1.5,AB215-AE215,0) -> 0 | AE215: 1.2 | AG215: =(AB215-AE215)*AF215 -> 0 | AH215: =AB215+AC215+AD215-AE215-AG215 -> 212.3699335
C216: Rams | E216: =AD239 -> 6.870727266 | G216: ='Prime Lambs Maternal Input'!E30 -> 1000 | I216: 1.5 | K216: =E216*G216 -> 6870.727266 | AA216: 1.5-2.5yr | AB216: =IF(AC203=1.5,AC202/(1+(1-AG206)*(1-AF216)*(1+(1-AG206)*(1-AF217)*(1+(1-AG206)*(1-AF218)*(1+(1-AG206)*(1-AF219))))),AH215) -> 212.3699335 | AD216: =IF(AC203=2.5,AB217-AG216,0) -> 0 | AE216: =AB216*AG206 -> 6.371098004 | AG216: 0 | AH216: 205.9988355
AA217: 2.5-3.5yr | AB217: =IF(AC203=2.5,AC202/(1+(1-AG206)*(1-AF217)*(1+(1-AG206)*(1-AF218)*(1+(1-AG206)*(1-AF219)))),AH216) -> 205.9988355 | AD217: =IF(AC203=3.5,AB218-AG217,0) -> 0 | AE217: =AB217*AG206 -> 6.179965064 | AG217: 0 | AH217: 199.8188704
E218: Number of Times | AA218: 3.5-4.5yr | AB218: =IF(AC203=3.5,AC202/(1+(1-AG206)*(1-AF218)*(1+(1-AG206)*(1-AF219))),AH217) -> 199.8188704 | AD218: =IF(AC203=4.5,AB219-AG218,0) -> 0 | AE218: =AB218*AG206 -> 5.994566112 | AG218: 0 | AH218: 193.8243043
C219: STOCK HEALTH REQUIREMENTS | E219: Number | G219: Drench | I219: Vacc. | K219: Blowfly | M219: DSE | X219: Rotation between different drench groups generally does little to slow development of drench | AA219: 4.5-5.5yr | AB219: =IF(AC203=4.5,AC202/(1+(1-AG206)*(1-AF219)),AH218) -> 193.8243043 | AE219: =AB219*AG206 -> 5.814729129 | AF219: =IF(AC204=5.5,1,0) -> 0 | AG219: 0 | AH219: 188.0095752
C220: Ewes | E220: ='Prime Lambs Maternal Input'!E7 -> 1000 | G220: ='Prime Lambs Maternal Input'!F53 -> 3 | I220: ='Prime Lambs Maternal Input'!G53 -> 1 | K220: ='Prime Lambs Maternal Input'!H53 -> 1 | M220: 1.8 | X220: resistance and should not be used at the expense of these three highly effective practices: | AA220: 5.5-6.5yr | AB220: =AH219 -> 188.0095752 | AE220: =AB220*AG206 -> 5.640287255 | AF220: =IF(AC204=6.5,1,0) -> 1 | AG220: 182.3692879 | AH220: 0
C221: Rams | E221: =AB49 -> 20 | G221: ='Prime Lambs Maternal Input'!F54 -> 3 | I221: ='Prime Lambs Maternal Input'!G54 -> 1 | K221: ='Prime Lambs Maternal Input'!H54 -> 0 | M221: 2 | X221: • use products most effective on your property | AA221: Ewes | AB221: =SUM(AB216:AB220) -> 1000.021519 | AD221: =AD215+AD216+AD217+AD218+AD214 -> 213.5699335 | AE221: =SUM(AE215:AE220) -> 31.20064556 | AG221: =SUM(AG216:AG220) -> 182.3692879 | AH221: =SUM(AH215:AH219) -> 1000.021519
C222: Lambs | E222: =AC228 -> 1300 | G222: ='Prime Lambs Maternal Input'!F55 -> 2 | I222: ='Prime Lambs Maternal Input'!G55 -> 2 | K222: ='Prime Lambs Maternal Input'!H55 -> 0 | X222: • use multi-active (combination) products | AA222: d.s.e's | AB222: =AB215+AB221*AC206 -> 2013.608667
C223: TOTAL | E223: =SUM(E220:E222) -> 2320 | G223: =SUMPRODUCT($E$220:$E$222,G220:G222) -> 5660 | I223: =SUMPRODUCT($E$220:$E$222,I220:I222) -> 3620 | K223: =SUMPRODUCT($E$220:$E$222,K220:K222) -> 1000 | M223: =SUMPRODUCT($E$220:$E$222,M220:M222) -> 1840 | X223: • use short-acting products
BG224: For more information: https://wormboss.com.au/tests-tools/drench-rotation-versus-combinations-to-combat-drench-resistance/
G225: Wool Cut kg/hd | AA225: LAMBS | AB225: OPENING | AC225: NATURAL | AD225: PURCHASES | AE225: DEATHS | AF225: % sold | AG225: SALES | AH225: CLOSING
C226: SHEARING | E226: Number | I226: Price | K226: Total | AA226: AGE | AB226: NUMBERS | AC226: INCREASE | AF226: culled | AH226: NUMBERS
C227: Ewes | E227: =AB221-AE221 -> 968.8208733 | G227: ='Prime Lambs Maternal Input'!F44 -> 3.5 | I227: ='Prime Lambs Maternal Input'!G44 -> 2.142 | K227: =I227*G227*E227 -> 7263.250087
C228: Crossbred rams | E228: =AB239-AE239 -> 19.4 | G228: ='Prime Lambs Maternal Input'!F45 -> 2.5 | I228: ='Prime Lambs Maternal Input'!G45 -> 1.5552 | K228: =I228*G228*E228 -> 75.4272 | AA228: 0-0.5yr | AC228: =AC202*AC205 -> 1300 | AF228: 1 | AG228: =AC228*AF228 -> 1300 | AH228: =AB228+AC228+AD228-AE228-AG228 -> 0
AA231: RAMS | AB231: OPENING | AC231: NATURAL | AD231: PURCHASES | AE231: DEATHS | AF231: % sold | AG231: SALES | AH231: CLOSING
AA232: AGE | AB232: NUMBERS | AC232: INCREASE | AF232: culled | AH232: NUMBERS
AA234: 0.5-1.5yr | AD234: =AB235/(1-AF234) -> 6.870727266 | AE234: =AB234*$AG$206 -> 0 | AH234: =AB234+AC234+AD234-AE234-AG234 -> 6.870727266
C235: TOTAL | E235: =SUM(E227:E234) -> 988.2208733 | G235: =SUMPRODUCT(E227:E234,G227:G234) -> 3439.373056 | K235: =SUM(K227:K234) -> 7338.677287 | AA235: 1.5-2.5yr | AB235: =IF(AG204=3,(AC202*AG202)/(1+(1-AG206)*(1-AF235)*(1+(1-AG206)*(1-AF236)*(1+(1-AG206)*(1-AF237)))),IF(AG204=4,(AC202*AG202)/(1+(1-AG206)*(1-AF235)*(1+(1-AG206)*(1-AF236)*(1+(1-AG206)*(1-AF237)*(1+(1-AG206)*(1-AF238))))),0)) -> 6.870727266 | AE235: =AB235*$AG$206 -> 0.206121818 | AH235: =AB235+AC235+AD235-AE235-AG235 -> 6.664605448
AA236: 2.5-3.5yr | AB236: =AH235 -> 6.664605448 | AE236: =AB236*$AG$206 -> 0.1999381635 | AH236: =AB236+AC236+AD236-AE236-AG236 -> 6.464667285
AA237: 3.5-4.5yr | AB237: =AH236 -> 6.464667285 | AE237: =AB237*$AG$206 -> 0.1939400186 | AF237: =IF(AG204=3,100%,0) -> 1 | AG237: =(AB237-AE237)*AF237 -> 6.270727266 | AH237: =AB237+AC237+AD237-AE237-AG237 -> 0
G238: Hay Cost ($/T) | I238: Kg Fed per Week | K238: No of Weeks Feeding | M238: Total Cost ($) | AA238: 4.5-5.5yr | AB238: =AH237 -> 0 | AE238: =AB238*$AG$206 -> 0 | AF238: =IF(AG204=4,100%,0) -> 0 | AG238: =AB238-AE238 -> 0 | AH238: =AB238+AC238+AD238-AE238-AG238 -> 0
C239: FEEDING | E239: Number | AB239: =AB234+AB235+AB236+AB237+AB238 -> 20 | AD239: =AD234+AD235+AD236+AD237+AD238 -> 6.870727266 | AE239: =AE234+AE235+AE236+AE237+AE238 -> 0.6 | AG239: =AG234+AG235+AG236+AG237+AG238 -> 6.270727266 | AH239: =AH234+AH235+AH236+AH237+AH238 -> 20
C240: Ewes | E240: ='Prime Lambs Maternal Input'!E63 -> 1000 | G240: ='Prime Lambs Maternal Input'!F63 -> 220 | I240: ='Prime Lambs Maternal Input'!G63 -> 2.5 | K240: ='Prime Lambs Maternal Input'!H63 -> 8 | M240: =(E240*G240*I240*K240)/1000 -> 4400 | AA240: d.s.e's | AB240: =AB239*AE49 -> 40
C241: Rams | E241: ='Prime Lambs Maternal Input'!E64 -> 20 | G241: ='Prime Lambs Maternal Input'!F64 -> 220 | I241: ='Prime Lambs Maternal Input'!G64 -> 2.5 | K241: ='Prime Lambs Maternal Input'!H64 -> 8 | M241: =(E241*G241*I241*K241)/1000 -> 88
C242: Lambs | E242: ='Prime Lambs Maternal Input'!E65 -> 0 | G242: ='Prime Lambs Maternal Input'!F65 -> 0 | I242: ='Prime Lambs Maternal Input'!G65 -> 0 | K242: ='Prime Lambs Maternal Input'!H65 -> 0 | M242: =(E242*G242*I242*K242)/1000 -> 0
G243: Grain Cost ($/T) | I243: Kg Fed per Week | K243: No of Weeks Feeding | M243: Total Cost ($)
E244: Number
C245: Ewes | E245: ='Prime Lambs Maternal Input'!E70 -> 1000 | G245: ='Prime Lambs Maternal Input'!F70 -> 320 | I245: ='Prime Lambs Maternal Input'!G70 -> 3 | K245: ='Prime Lambs Maternal Input'!H70 -> 8 | M245: =(E245*G245*I245*K245)/1000 -> 7680
C246: Rams | E246: ='Prime Lambs Maternal Input'!E71 -> 20 | G246: ='Prime Lambs Maternal Input'!F71 -> 320 | I246: ='Prime Lambs Maternal Input'!G71 -> 3 | K246: ='Prime Lambs Maternal Input'!H71 -> 10 | M246: =(E246*G246*I246*K246)/1000 -> 192
C247: Lambs | E247: ='Prime Lambs Maternal Input'!E72 -> 0 | G247: ='Prime Lambs Maternal Input'!F72 -> 0 | I247: ='Prime Lambs Maternal Input'!G72 -> 0 | K247: ='Prime Lambs Maternal Input'!H72 -> 0 | M247: =(E247*G247*I247*K247)/1000 -> 0
G248: Supp. Cost ($/kg) | I248: Kg Fed per Week | K248: No of Weeks Feeding | M248: Total Cost ($)
E249: Number
C250: Ewes | E250: ='Prime Lambs Maternal Input'!E76 -> 0 | G250: ='Prime Lambs Maternal Input'!F76 -> 0 | I250: ='Prime Lambs Maternal Input'!G76 -> 0 | K250: ='Prime Lambs Maternal Input'!H76 -> 0 | M250: =(E250*G250*I250*K250) -> 0
C251: Rams | E251: ='Prime Lambs Maternal Input'!E77 -> 0 | G251: ='Prime Lambs Maternal Input'!F77 -> 0 | I251: ='Prime Lambs Maternal Input'!G77 -> 0 | K251: ='Prime Lambs Maternal Input'!H77 -> 0 | M251: =(E251*G251*I251*K251) -> 0
C252: Lambs | E252: ='Prime Lambs Maternal Input'!E78 -> 0 | G252: ='Prime Lambs Maternal Input'!F78 -> 0 | I252: ='Prime Lambs Maternal Input'!G78 -> 0 | K252: ='Prime Lambs Maternal Input'!H78 -> 0 | M252: =(E252*G252*I252*K252) -> 0
C253: TOTAL FEED COST | M253: =SUM(M240:M242,M245:M247,M250:M252) -> 12360
C256: GM SENSITIVITY
C257: Gross Margin/DSE | E257: Average Weaning Rate
G258: 1.1 | I258: 1.2 | K258: 1.3 | M258: 1.4 | O258: 1.5 | Q258: 1.6
E259: 117 | G259: =($E$199*G$258*$E259*(1-$K$124)+SUM($K$209:$K$210)+$K$235-$AK$57-$E$199*G$258*$AO$52)/$E$197 -> 25.37635981 | I259: =($E$199*I$258*$E259*(1-$K$124)+SUM($K$209:$K$210)+$K$235-$AK$57-$E$199*I$258*$AO$52)/$E$197 -> 30.62554459 | K259: =($E$199*K$258*$E259*(1-$K$124)+SUM($K$209:$K$210)+$K$235-$AK$57-$E$199*K$258*$AO$52)/$E$197 -> 35.87472937 | M259: =($E$199*M$258*$E259*(1-$K$124)+SUM($K$209:$K$210)+$K$235-$AK$57-$E$199*M$258*$AO$52)/$E$197 -> 41.12391416 | O259: =($E$199*O$258*$E259*(1-$K$124)+SUM($K$209:$K$210)+$K$235-$AK$57-$E$199*O$258*$AO$52)/$E$197 -> 46.37309894 | Q259: =($E$199*Q$258*$E259*(1-$K$124)+SUM($K$209:$K$210)+$K$235-$AK$57-$E$199*Q$258*$AO$52)/$E$197 -> 51.62228372
E260: 122 | G260: 28.20108807 | I260: 33.70706633 | K260: 39.21304459 | M260: 44.71902285 | O260: 50.22500111 | Q260: 55.73097937
C261: Average Lamb Sale Price($/hd) | E261: 127 | G261: 31.02581633 | I261: 36.78858807 | K261: 42.55135981 | M261: 48.31413155 | O261: 54.07690329 | Q261: 59.83967503
E262: 132 | G262: 33.85054459 | I262: 39.87010981 | K262: 45.88967503 | M262: 51.90924024 | O262: 57.92880546 | Q262: 63.94837068
E263: 137 | G263: 36.67527285 | I263: 42.95163155 | K263: 49.22799024 | M263: 55.50434894 | O263: 61.78070763 | Q263: 68.05706633
E264: 142 | G264: 39.50000111 | I264: 46.03315329 | K264: 52.56630546 | M264: 59.09945763 | O264: 65.63260981 | Q264: 72.16576198
E265: 147 | G265: 42.32472937 | I265: 49.11467503 | K265: 55.90462068 | M265: 62.69456633 | O265: 69.48451198 | Q265: 76.27445763
E266: 152 | G266: 45.14945763 | I266: 52.19619676 | K266: 59.24293589 | M266: 66.28967503 | O266: 73.33641416 | Q266: 80.38315329
E267: 157 | G267: 47.97418589 | I267: 55.2777185 | K267: 62.58125111 | M267: 69.88478372 | O267: 77.18831633 | Q267: 84.49184894
E268: 162 | G268: 50.79891416 | I268: 58.35924024 | K268: 65.91956633 | M268: 73.47989242 | O268: 81.0402185 | Q268: 88.60054459
E269: 167 | G269: 53.62364242 | I269: 61.44076198 | K269: 69.25788155 | M269: 77.07500111 | O269: 84.89212068 | Q269: 92.70924024

Sheet Prime Lambs Merino Ewes Input (hidden)
C1: Prime Lambs Merino Ewes
C2: =UPPER(var_animal)&" GROSS MARGIN - "&TEXT(m_year,"0000") -> PRIME LAMBS MERINO EWES GROSS MARGIN - 2024
C4: GENERAL INFORMATION
C5: This represents a Merino Ewe enterprise mated to a terminal sire. All ewe replacements are purchased, but age of replacements can be varied from 1.5 years to 4.5 years. NB. Can be bought from own self-replacing merino enterprise. Following are the various assumptions used in the calculation of the Gross Margin. Cells with yellow highlight can be changed. No allowance has been made for pasture expenses such as seed, fertiliser and chemicals. Refer to pasture gross margins in the “Cropping Gross Margin Plan” for annual and perennial pasture costs. Use the livestock gross margin per DSE as income for the pasture gross margin.
C7: Ewes mated | E7: 1000 | H7: ="Estimated "&TEXT(m_year,"0000")&" Sheep Sale Prices" -> Estimated 2024 Sheep Sale Prices
C8: Age ewes purchased | E8: 1.5 | I8: Agricultural | J8: Pastoral
C9: Age ewes sold | E9: 5.5 | H9: Store lambs 35kg lwt | I9: 155 | J9: 145
C10: Av Weaning % | E10: 1.1 | H10: Wether lambs 55 kg lwt | I10: 200 | J10: 190
C11: Ram percentage | E11: 0.025 | H11: Cast for age ewes | I11: 170 | J11: 150
C12: Years Rams Kept | E12: 3 | H12: Cast for age rams | I12: 140 | J12: 120
C13: Flock death Rate | E13: 0.03
C14: % Lambs carried over | E14: 0
C17: LIVESTOCK SALES | E17: Price/Hd | F17: Number | G17: Total
C18: c.f.a Ewes | E18: 70 | F18: ='Prime Lambs Merino Ewes'!AG220 -> 231.53548 | G18: =E18*ROUND(F18,0) -> 16240
C19: c.f.a Rams | E19: 25 | F19: ='Prime Lambs Merino Ewes'!AG238 -> 7.838409083 | G19: =E19*ROUND(F19,0) -> 200
C20: Lambs | E20: 125 | F20: ='Prime Lambs Merino Ewes'!AG227 -> 1100 | G20: =E20*ROUND(F20,0) -> 137500
C25: TOTAL SALES | F25: =SUM(F18:F23) -> 1339.373889 | G25: =SUM(G18:G23) -> 153940
C28: LIVESTOCK PURCHASES | E28: Price/Hd | F28: Number | G28: Total
C29: Ewes | E29: 70 | F29: ='Prime Lambs Merino Ewes'!AD220 -> 261.53548 | G29: =E29*F29 -> 18307.4836 | H29: Change Ewe price depending on
C30: Rams | E30: 1000 | F30: ='Prime Lambs Merino Ewes'!AD238 -> 8.588409083 | G30: =E30*F30 -> 8588.409083 | H30: age purchased.
C32: TOTAL PURCHASES | F32: =SUM(F29:F30) -> 270.1238891 | G32: =SUM(G29:G30) -> 26895.89269
C35: WOOL PRICE (cents/kg) | F35: =TEXT(m_year-3,"0000")&" Average (Clean)" -> 2021 Average (Clean) | G35: =TEXT(m_year-2,"0000")&" Average (Clean)" -> 2022 Average (Clean) | H35: =TEXT(m_year-1,"0000")&" Average (Clean)" -> 2023 Average (Clean) | I35: Budget Base (Clean) | J35: Budget Base (Greasy) | L35: Wool Type | M35: Estimated Clean Price
E36: Wool- Med Rainfall 21 mic 68% yield | F36: 1271 | G36: 1340 | H36: 1373 | I36: 1320 | J36: =I36*I37 -> 897.6 | L36: 19 mic | M36: 1430
E37: Estimated wool yield | I37: 0.68 | L37: 21 mic | M37: 1320
C38: Allow 90% to account for lower value of bellies, skirtings etc. | J38: =J36*0.9 -> 807.84 | L38: 22 mic | M38: 1280
C42: WOOL SALES - SHEARING | F42: Wool Cut
E43: Number | F43: kg/hd | G43: Price | H43: Total
C44: Ewes | E44: ='Prime Lambs Merino Ewes'!E226 -> 970 | F44: 6.5 | G44: =J36/100 -> 8.976 | H44: =E44*F44*G44 -> 56593.68
C45: Crossbred Rams | E45: ='Prime Lambs Merino Ewes'!E227 -> 24.25 | F45: 3 | G45: 1.728 | H45: =E45*F45*G45 -> 125.712
C47: TOTAL | E47: =SUM(E44:E46) -> 994.25 | F47: =(E44*F44)+(E45*F45) -> 6377.75 | H47: =SUM(H44:H46) -> 56719.392
C50: STOCK HEALTH REQUIREMENTS | E50: =HYPERLINK("http://paraboss.com.au","for more info on drench, lice and blowfly product selection refer to www.paraboss.com.au") -> for more info on drench, lice and blowfly product selection refer to www.paraboss.com.au
G51: Number of times
E52: Number | F52: Drench | G52: Vacc. | H52: Blowfly
C53: Ewes | E53: ='Prime Lambs Merino Ewes'!E219 -> 1000 | F53: 1 | G53: 1 | H53: 1
C54: Rams | E54: ='Prime Lambs Merino Ewes'!E220 -> 25 | F54: 2 | G54: 1 | H54: 0
C55: Lambs | E55: ='Prime Lambs Merino Ewes'!E221 -> 1100 | F55: 1 | G55: 2 | H55: 0
C57: TOTAL | E57: =SUM(E53:E55) -> 2125 | F57: =SUMPRODUCT($E$53:$E$55,F53:F55) -> 2150 | G57: =SUMPRODUCT($E$53:$E$55,G53:G55) -> 3225 | H57: =SUMPRODUCT($E$53:$E$55,H53:H55) -> 1000
C60: FEEDING
C61: HAY | F61: Hay | G61: Kgs Fed | H61: No Weeks | I61: Total
E62: Number | F62: Cost ($/T) | G62: per Week | H62: of Feeding | I62: Cost ($)
C63: Ewes | E63: ='Prime Lambs Merino Ewes'!E219 -> 1000 | F63: 220 | G63: 2.5 | H63: 8 | I63: =(H63*G63*E63)/1000*F63 -> 4400
C64: Rams | E64: ='Prime Lambs Merino Ewes'!E220 -> 25 | F64: 220 | G64: 2.5 | H64: 8 | I64: =(H64*G64*E64)/1000*F64 -> 110
C65: Lambs | E65: 660 | F65: 220 | G65: 2.5 | H65: 5 | I65: =(H65*G65*E65)/1000*F65 -> 1815
C67: GRAIN | F67: Grain | G67: Kgs Fed | H67: No weeks | I67: Total
E68: Number | F68: Cost ($/T) | G68: per week | H68: of Feeding | I68: Cost ($)
C69: Ewes | E69: ='Prime Lambs Merino Ewes'!E219 -> 1000 | F69: 320 | G69: 3 | H69: 8 | I69: =(H69*G69*E69)/1000*F69 -> 7680
C70: Rams | E70: ='Prime Lambs Merino Ewes'!E220 -> 25 | F70: 320 | G70: 3 | H70: 10 | I70: =(H70*G70*E70)/1000*F70 -> 240
C71: Lambs | E71: 660 | F71: 320 | G71: 6 | H71: 5 | I71: =(H71*G71*E71)/1000*F71 -> 6336
C73: Supplements | G73: Kgs Fed | H73: No weeks | I73: Total
E74: Number | F74: Cost ($/kg) | G74: per week | H74: of Feeding | I74: Cost ($)
C75: Ewes | I75: =(H75*G75*E75)*F75 -> 0
C76: Rams | I76: =(H76*G76*E76)*F76 -> 0
C77: Lambs | I77: =(H77*G77*E77)*F77 -> 0
H79: Total Feed Cost | I79: =SUM(I63:I65,I69:I71,I75:I77) -> 20581

Sheet Prime Lambs Merino Ewes (hidden)
C1: Prime Lambs Merino Ewes
C2: =UPPER(Var_Animal)&" GROSS MARGIN - "&TEXT(m_year,"0000") -> PRIME LAMBS MERINO EWES GROSS MARGIN - 2024
C4: ASSUMPTIONS
C6: Ave Breeding Ewe Fibre Diameter | E6: 21 | O6: Total DSE's | Q6: =E197 -> 1850
C7: No. of breeding ewes (1st Cross) | E7: ='Prime Lambs Merino Ewes Input'!$E$7 -> 1000
C8: 1st cross ewe - Terminal meat sire
C32: INCOME | Q32: $
C34: Wool (kg greasy) | E34: =G234 -> 6377.75 | G34: kg | I34: av price | K34: =K234*100/G234*0.9 -> 800.3990875 | M34: c/kg | Q34: =K234 -> 56719.392
C35: Sales | E35: =E212 -> 1339.373889 | G35: animals | I35: av price | K35: =G212 -> 114.9070062 | M35: /head | Q35: =K212 -> 153940
C37: Gross Income | Q37: =SUM(Q34:Q35) -> 210659.392
AA45: STOCK VALUE AND D.S.E REQUIREMENT | AG45: Non lamb related expenses | AM45: Lamb Costs | AN45: No: | AO45: per head | AS45: SHEEP GROSS MARGIN
C46: VARIABLE COSTS | AC46: Value | AD46: Ave Live | AE46: DSE | AS46: PRIME LAMB -
C47: Shearing | K47: Rate | AB47: Number | AC47: $/head | AD47: Wt (Kgs) | AE47: rating | AG47: Shearing | AJ47: =SUM(Q48:Q58) -> 10797.09042 | AM47: Marking | AN47: =$E$121 -> 1100 | AO47: =K76+K77 -> 1.7 | AP47: =AN47*AO47 -> 1870
C48: Shearing | E48: =E226 -> 970 | G48: sheep | I48: Reset Rate> | J48: =GM_INFO!C79 | K48: 367.89 | M48: /100 | Q48: =K48/100*ROUND(E48,0) -> 3568.533 | AA48: ewes | AB48: ='Prime Lambs Merino Ewes Input'!$E$7 -> 1000 | AC48: =(G209+G214)/2 -> 70 | AD48: 55 | AE48: =IF(AND(AD48>=55,AD48<60),1.8,IF(AND(AD48>=60,AD48<65),2.5,IF(AND(AD48>=65,AD48<70),1.9,IF(AND(AD48>=70,AD48<75),2,IF(AND(AD48>=75,AD48<80),2.1,IF(AND(AD48>=80,AD48<85),2.2,IF(AND(AD48>=85,AD48<90),2.3,IF(AD48>=90,2.4,0)))))))) -> 1.8 | AG48: Animal health | AJ48: =(E219*G219+E220*G220)*K90+(E219*I219+E220*I220)*K91+(E219*K219)*K92 -> 2475.8 | AM48: Animal health | AN48: =$E$121 -> 1100 | AO48: =G220*K91+I220*K90 -> 1.208 | AP48: =AN48*AO48 -> 1328.8
C49: (Federal awards) | E49: =E227 -> 24.25 | G49: rams | I49: Reset Rate> | J49: =GM_INFO!C80 | K49: 735.78 | M49: /100 | Q49: =K49/100*ROUND(E49,0) -> 176.5872 | AA49: rams | AB49: ='Prime Lambs Merino Ewes Input'!E11*'Prime Lambs Merino Ewes'!AB48 -> 25 | AC49: =(G210+G215)/2 -> 512.5 | AD49: 100 | AE49: 2 | AG49: Stock Purchase | AJ49: =SUM(Q105:Q105) -> 26895.89269 | AM49: Freight | AN49: =$E$121 -> 1100 | AO49: =K121 -> 7 | AP49: =AN49*AO49 -> 7700
C50: Shed labour | E50: 5 | G50: days | I50: Reset Rate> | J50: =GM_INFO!C81 | K50: 278.64 | M50: /day | Q50: =K50*ROUND(E50,0) -> 1393.2 | AA50: lambs | AB50: =AC227 -> 1100 | AC50: =G211/2 -> 62.5 | AD50: 35 | AE50: 0 | AG50: Freight | AH50: sheep | AJ50: =SUM(Q119:Q120) -> 3503.74836 | AM50: Yard Fees | AN50: =$E$121 -> 1100 | AO50: =K125 -> 0.85 | AP50: =AN50*AO50 -> 935
C51: Woolclasser | E51: 2.5 | G51: days | I51: Reset Rate> | J51: =GM_INFO!C82 | K51: 338.18 | M51: /day | Q51: =K51*E51 -> 845.45 | AA51: TOTAL | AB51: =SUM(AB48:AB50) -> 2125 | AC51: =AB48*AC48+AB49*AC49+AB50*AC50/2 -> 117187.5 | AH51: Wool | AJ51: =Q122 -> 570 | AM51: Levies | AN51: =$E$121 -> 1100 | AO51: =K127+K128 -> 2.17 | AP51: =AN51*AO51 -> 2387 | AS51: Ewes mated | AU51: ='Prime Lambs Merino Ewes Input'!$E$7 -> 1000 | AX51: Ram % | AY51: =E200 -> 0.025
C52: Superannuation (on ord wages only) | I52: Reset Rate> | J52: =GM_INFO!C83 | K52: 0.11 | M52: wages | Q52: =(Q48+Q49+Q50+Q51)*K52 -> 658.214722 | AG52: Commission on livestock sales | AJ52: =(K209+K210)*K124 -> 904.2 | AO52: =SUM(AO47:AO51) -> 12.928 | AQ52: =AO52*AD50 -> 452.48 | AS52: Age ewes purchased | AU52: =E201 -> 1.5 | AX52: Price of rams | AY52: =AL68 -> 0
C53: W/Cover (incl. super + otime etc) | I53: Reset Rate> | J53: =GM_INFO!C84 | K53: 0.04 | M53: total | Q53: =(Q48+Q49+Q50+Q51+Q52)*K53 -> 265.6793969 | AG53: Yard fees | AJ53: =E119*K125 -> 203.4678057 | AM53: Commission | AN53: =$E$121 -> 1100 | AO53: =G212 -> 114.9070062 | AP53: =K124 -> 0.055 | AQ53: =AD50*AO53*AP53 -> 221.195987 | AS53: Age ewes sold | AU53: =E202 -> 5.5 | AX53: Years rams kept | AY53: =E203 -> 3
C54: Wool packs | E54: =E122 -> 37.51617647 | G54: packs | I54: Reset Rate> | J54: =GM_INFO!C77 | K54: 16 | M54: /pack | Q54: =K54*ROUND(E54,0) -> 608 | AG54: Levies | AJ54: =E126*(K126+K128) -> 208.2552835 | AS54: Av Weaning % | AU54: ='Prime Lambs Merino Ewes Input'!E10 -> 1.1 | AX54: Age wethers sold | AY54: 0.5
C55: Shed sundries | E55: =E48+E49 -> 994.25 | G55: sheep | I55: Reset Rate> | J55: =GM_INFO!C85 | K55: 0.22 | M55: /head | Q55: =K55*ROUND(E55,0) -> 218.68 | AG55: Wool Selling Charges | AJ55: =Q130+Q131 -> 2572.78338 | AQ55: =SUM(AQ43:AQ53) -> 673.675987 | AS55: dse/ewe | AU55: =AE48 -> 1.8 | AX55: Flock death rate | AY55: =E204 -> 0.03
C56: Lice control | E56: =E48+E49 -> 994.25 | G56: sheep | I56: Reset Rate> | J56: =GM_INFO!C66 | K56: 1.9875 | M56: /head | Q56: =K56*ROUND(E56,0) -> 1975.575 | AG56: Feed & other costs | AJ56: =SUM(Q144:Q149) -> 21282.34375
C57: Crutch & Wig | E57: =E48+2*E49 -> 1018.5 | G57: ewes | I57: Reset Rate> | J57: =GM_INFO!C87 | K57: 106.69 | M57: /100 | Q57: =K57/100*ROUND(E57,0) -> 1087.1711 | AK57: =SUM(AJ47:AJ56) -> 69413.58168
E58: 0 | G58: lambs | I58: Reset Rate> | J58: =GM_INFO!C87 | K58: 106.69 | M58: /100 | Q58: =K58/100*ROUND(E58,0) -> 0
AS60: EWES | AT60: OPENING | AU60: NATURAL | AV60: PURCHASES | AW60: DEATHS | AX60: % sold | AY60: SALES | AZ60: CLOSING
AS61: AGE | AT61: NUMBERS | AU61: INCREASE | AX61: culled | AZ61: NUMBERS
AS63: 0.5-1.5yr | AV63: =IF($N$78=1.5,AT64,AT63-AW63) -> 0 | AY63: =AT63-AW63 -> 0 | AZ63: =AT63+AU63+AV63-AW63-AY63 -> 0
AS64: 1.5-2.5yr | AT64: =IF(AU52=1.5,AU51/(1+(1-AY55)*(1-AX64)*(1+(1-AY55)*(1-AX65)*(1+(1-AY55)*(1-AX66)*(1+(1-AY55)*(1-AX67))))),0) -> 261.53548 | AV64: =IF(AU52=2.5,AT65-AY64,0) -> 0 | AW64: =AT64*$R$81 -> 0 | AY64: =(AT64-AW64)*AX64 -> 0 | AZ64: 261.53548
AS65: 2.5-3.5yr | AT65: =IF(AU52=2.5,AU51/(1+(1-AY55)*(1-AX65)*(1+(1-AY55)*(1-AX66)*(1+(1-AY55)*(1-AX67)))),AZ64) -> 261.53548 | AV65: =IF(AU52=3.5,AT66-AY65,0) -> 0 | AW65: =AT65*$R$81 -> 0 | AY65: =(AT65-AW65)*AX65 -> 0 | AZ65: 261.53548
AS66: 3.5-4.5yr | AT66: =IF(AU52=3.5,AU51/(1+(1-AY55)*(1-AX66)*(1+(1-AY55)*(1-AX67))),AZ65) -> 261.53548 | AV66: =IF(AU52=4.5,AT67-AY66,0) -> 0 | AW66: =AT66*$R$81 -> 0 | AY66: =(AT66-AW66)*AX66 -> 0 | AZ66: 261.53548
AS67: 4.5-5.5yr | AT67: =IF(AU52=4.5,AU51/(1+(1-AY55)*(1-AX67)),AZ66) -> 261.53548 | AW67: =AT67*$R$81 -> 0 | AX67: =IF(AU53=5.5,1,0) -> 1 | AY67: =(AT67-AW67)*AX67 -> 261.53548 | AZ67: 0
AS68: 5.5-6.5yr | AT68: =AZ67 -> 0 | AW68: =AT68*$R$81 -> 0 | AX68: =IF(AU53=6.5,1,0) -> 0 | AY68: =(AT68-AW68)*AX68 -> 0 | AZ68: 0
AS69: Ewes | AT69: =SUM(AT64:AT68) -> 1046.14192 | AV69: =AV63+AV64+AV65+AV66 -> 0 | AW69: =SUM(AW63:AW68) -> 0 | AY69: =SUM(AY64:AY68) -> 261.53548 | AZ69: =SUM(AZ63:AZ67) -> 784.6064401
AS70: d.s.e's | AT70: =AT63+AT69*AU55 -> 1883.055456
AS73: LAMBS | AT73: OPENING | AU73: NATURAL | AV73: PURCHASES | AW73: DEATHS | AX73: % sold | AY73: SALES | AZ73: CLOSING
AS74: AGE | AT74: NUMBERS | AU74: INCREASE | AX74: culled | AZ74: NUMBERS
C75: Marking
C76: Lamb marking | E76: =AC227 -> 1100 | G76: lambs | I76: Reset Rate> | J76: =GM_INFO!C91 | K76: =GM_INFO!C91 -> 1.25 | M76: /head | Q76: =K76*ROUND(E76,0) -> 1375 | AS76: 0-0.5yr | AU76: =AU51*AU54 -> 1100 | AX76: 1 | AY76: =AU76*AX76 -> 1100 | AZ76: =AT76+AU76+AV76-AW76-AY76 -> 0
C77: Ear tags | E77: =AC227 -> 1100 | G77: lambs | I77: Reset Rate> | J77: =GM_INFO!C92 | K77: =GM_INFO!C92 -> 0.45 | M77: /head | Q77: =K77*ROUND(E77,0) -> 495
C78: Pain Relief | E78: =AC227 -> 1100 | G78: lambs | I78: Reset Rate> | J78: =GM_INFO!C93 | K78: =GM_INFO!C93 -> 1.71 | M78: /head | Q78: =K78*ROUND(E78,0) -> 1881
AS79: RAMS | AT79: OPENING | AU79: NATURAL | AV79: PURCHASES | AW79: DEATHS | AX79: % sold | AY79: SALES | AZ79: CLOSING
AS80: AGE | AT80: NUMBERS | AU80: INCREASE | AX80: culled | AZ80: NUMBERS
AS82: 0.5-1.5yr | AV82: =AT83/(1-AX82) -> 8.588409083 | AW82: =AT82*$R$81 -> 0 | AZ82: =AT82+AU82+AV82-AW82-AY82 -> 8.588409083
AS83: 1.5-2.5yr | AT83: =IF(AY53=3,(AU51*AY51)/(1+(1-AY55)*(1-AX83)*(1+(1-AY55)*(1-AX84)*(1+(1-AY55)*(1-AX85)))),IF(AY53=4,(AU51*AY51)/(1+(1-AY55)*(1-AX83)*(1+(1-AY55)*(1-AX84)*(1+(1-AY55)*(1-AX85)*(1+(1-AY55)*(1-AX86))))),0)) -> 8.588409083 | AW83: =AT83*$R$81 -> 0 | AZ83: =AT83+AU83+AV83-AW83-AY83 -> 8.588409083
AS84: 2.5-3.5yr | AT84: =AZ83 -> 8.588409083 | AW84: =AT84*$R$81 -> 0 | AZ84: =AT84+AU84+AV84-AW84-AY84 -> 8.588409083
AS85: 3.5-4.5yr | AT85: =AZ84 -> 8.588409083 | AW85: =AT85*$R$81 -> 0 | AX85: =IF(AY53=3,100%,0) -> 1 | AY85: =(AT85-AW85)*AX85 -> 8.588409083 | AZ85: =AT85+AU85+AV85-AW85-AY85 -> 0
AS86: 4.5-5.5yr | AT86: =AZ85 -> 0 | AW86: =AT86*$R$81 -> 0 | AX86: =IF(AY53=4,100%,0) -> 0 | AY86: =AT86-AW86 -> 0 | AZ86: =AT86+AU86+AV86-AW86-AY86 -> 0
AT87: =AT82+AT83+AT84+AT85+AT86 -> 25.76522725 | AV87: =AV82+AV83+AV84+AV85+AV86 -> 8.588409083 | AW87: =AW82+AW83+AW84+AW85+AW86 -> 0 | AY87: =AY82+AY83+AY84+AY85+AY86 -> 8.588409083 | AZ87: =AZ82+AZ83+AZ84+AZ85+AZ86 -> 25.76522725
AS88: d.s.e's | AT88: =AT87*AE49 -> 51.5304545
C89: Animal Health
C90: Drench | E90: =G222 -> 2150 | G90: sheep | I90: Reset Rate> | J90: =GM_INFO!C69 | K90: =GM_INFO!C69 -> 0.552 | M90: /head | Q90: =K90*ROUND(E90,0) -> 1186.8
C91: Vaccinate | E91: =I222 -> 3225 | G91: sheep | I91: Reset Rate> | J91: =GM_INFO!C72 | K91: =GM_INFO!C72 -> 0.328 | M91: /head | Q91: =K91*ROUND(E91,0) -> 1057.8
C92: Blowfly control | E92: =K222 -> 1000 | G92: sheep | I92: Reset Rate> | J92: =GM_INFO!C76 | K92: =GM_INFO!C76 -> 1.56 | M92: /head | Q92: =K92*ROUND(E92,0) -> 1560
C104: Stock purchases
C105: Purchases | Q105: =K214+K215 -> 26895.89269
C117: Sale Costs
C118: Freight
C119: Livestock | E119: =SUM(E209:E210) -> 239.3738891 | G119: culls | I119: Reset Rate> | J119: =GM_INFO!B161 | K119: =GM_INFO!B162 -> 7 | M119: /head | Q119: =K119*ROUND(E119,0) -> 1673
E120: =E214 -> 261.53548 | G120: ewes | I120: Reset Rate> | J120: =GM_INFO!B162 | K120: =GM_INFO!B163 -> 7 | M120: /head | Q120: =K120*E120 -> 1830.74836
E121: =E211 -> 1100 | G121: prime lambs | I121: Reset Rate> | J121: =GM_INFO!B163 | K121: =GM_INFO!B164 -> 7 | M121: /head | Q121: =K121*ROUND(E121,0) -> 7700
C122: Wool | E122: =G234/170 -> 37.51617647 | G122: bales | I122: Reset Rate> | J122: =GM_INFO!B164 | K122: =GM_INFO!B165 -> 15 | M122: /bale | Q122: =K122*ROUND(E122,0) -> 570
C123: Stock selling charges
C124: Commission/insurance | I124: Reset Rate> | J124: =GM_INFO!C98 | K124: =GM_INFO!C98 -> 0.055 | M124: gross $ | Q124: =K124*Q35 -> 8466.7
C125: Yard fees | E125: =E212 -> 1339.373889 | G125: sheep | I125: Reset Rate> | J125: =GM_INFO!C99 | K125: =GM_INFO!C99 -> 0.85 | M125: /head | Q125: =K125*ROUND(E125,0) -> 1138.15
C126: Levy-sheep | E126: =E119 -> 239.3738891 | G126: sheep | I126: Reset Rate> | J126: =GM_INFO!C100 | K126: =GM_INFO!C100 -> 0.2 | M126: /head | Q126: =K126*ROUND(E126,0) -> 47.8
C127: Levy-lambs | E127: =E211 -> 1100 | G127: sheep | I127: Reset Rate> | J127: =GM_INFO!C101 | K127: =GM_INFO!C101 -> 1.5 | M127: /head | Q127: =K127*ROUND(E127,0) -> 1650
C128: SA sheep industry levy | E128: =E212 -> 1339.373889 | G128: sheep | I128: Reset Rate> | J128: =GM_INFO!C102 | K128: =GM_INFO!C102 -> 0.67 | M128: /head | Q128: =K128*ROUND(E128,0) -> 897.13
C129: Wool selling charges
C130: Brokerage/testing/insurance | I130: Reset Rate> | J130: =GM_INFO!C103 | K130: =GM_INFO!C103 -> 0.27 | M130: /kg | Q130: =K130*E34 -> 1721.9925
C131: Wool levy | I131: Reset Rate> | J131: =GM_INFO!C104 | K131: =GM_INFO!C104 -> 0.015 | M131: gross | Q131: =K131*Q34 -> 850.79088
C143: Feed and Other Costs
C144: Hay | Q144: =SUM('Prime Lambs Merino Ewes Input'!I63:I64) -> 4510
C145: Grain | Q145: =SUM('Prime Lambs Merino Ewes Input'!I69:I70,'Prime Lambs Merino Ewes Input'!I75:I77) -> 7920
C146: Insurance | E146: =AC51 -> 117187.5 | G146: value | I146: Reset Rate> | J146: =GM_INFO!B157 | K146: =GM_INFO!B158 -> 4.5 | M146: /$'000 | Q146: =K146/1000*E146 -> 527.34375
C147: Water | E147: =$Q$6 -> 1850 | G147: DSE's | I147: Reset Rate> | J147: =GM_INFO!E129 | K147: =GM_INFO!E130 -> 2.5 | M147: /DSE's | Q147: =K147*E147 -> 4625
C148: Veh Fuel, R&M | E148: =$Q$6 -> 1850 | G148: DSE's | I148: Reset Rate> | J148: =GM_INFO!E130 | K148: =GM_INFO!E131 -> 1.5 | M148: /DSE's | Q148: =K148*E148 -> 2775
C149: Other | E149: =$Q$6 -> 1850 | G149: DSE's | I149: Reset Rate> | J149: =GM_INFO!E131 | K149: =GM_INFO!E132 -> 0.5 | M149: /DSE's | Q149: =K149*E149 -> 925
C170: TOTAL VARIABLE COSTS | Q170: =SUM(Q48:Q166) -> 93077.23859
C172: GROSS MARGIN TOTAL | Q172: =Q37-Q170 -> 117582.1534
C174: GROSS MARGIN/DSE | Q174: =Q172/Q6 -> 63.55792076
C194: PRODUCTION DATA
C196: Stocking rate (DSE/Ha) | E196: 6 | K196: Culling Rate (% from each group) | AA196: SHEEP GROSS MARGIN
C197: Total DSE's | E197: =SUMPRODUCT(AB48:AB50,AE48:AE50) -> 1850 | K197: Age Group | M197: Ewes | O197: Wethers | AA197: PRIME LAMB -
C198: SHEEP GRAZING AREA | E198: =E197/E196 -> 308.3333333 | K198: 0.5 | M198: =AF214 -> 0
C199: Number of ewes mated | E199: ='Prime Lambs Merino Ewes Input'!E7 -> 1000 | K199: 1.5 | M199: 0
C200: Ram percentage | E200: ='Prime Lambs Merino Ewes Input'!E11 -> 0.025 | K200: 2.5 | M200: 0
C201: Age ewes bought (yrs) | E201: ='Prime Lambs Merino Ewes Input'!E8 -> 1.5 | K201: 3.5 | M201: 0
C202: Age ewes culled | E202: ='Prime Lambs Merino Ewes Input'!E9 -> 5.5 | K202: 4.5 | M202: 1 | AA202: Ewes mated | AC202: ='Prime Lambs Merino Ewes Input'!E7 -> 1000 | AF202: Ram % | AG202: =E200 -> 0.025
B203: =VLOOKUP(r[0]c3&"No Ops",CHOOSE({1,2},tbl_ops[Name]&tbl_ops[Category],INDIRECT("tbl_ops["&var_crop&"]")),2,0) | C203: Years rams kept | E203: ='Prime Lambs Merino Ewes Input'!E12 -> 3 | K203: 5.5 | M203: 0 | AA203: Age ewes purchased | AC203: =E201 -> 1.5 | AF203: Price of rams | AG203: =G215 -> 1000
B204: =VLOOKUP(r[0]c3&"No Ops",CHOOSE({1,2},tbl_ops[Name]&tbl_ops[Category],INDIRECT("tbl_ops["&var_crop&"]")),2,0) | C204: Flock death rate | E204: ='Prime Lambs Merino Ewes Input'!E13 -> 0.03 | K204: 6.5 | M204: 0 | AA204: Age ewes sold | AC204: =E202 -> 5.5 | AF204: Years rams kept | AG204: =E203 -> 3
B205: =VLOOKUP(r[0]c3&"No Ops",CHOOSE({1,2},tbl_ops[Name]&tbl_ops[Category],INDIRECT("tbl_ops["&var_crop&"]")),2,0) | C205: Average weaning rate | E205: =AC205 -> 1.1 | AA205: Av Weaning % | AC205: ='Prime Lambs Merino Ewes Input'!E10 -> 1.1 | AF205: Age wethers sold | AG205: 0.5
B206: =VLOOKUP(r[0]c3&"No Ops",CHOOSE({1,2},tbl_ops[Name]&tbl_ops[Category],INDIRECT("tbl_ops["&var_crop&"]")),2,0) | C206: % Lambs carried over | E206: 0 | AA206: dse/ewe | AC206: =AE48 -> 1.8 | AF206: Flock death rate | AG206: =E204 -> 0.03
B207: =VLOOKUP(r[0]c3&var_rain,CHOOSE({1,2},tbl_ops[Name]&tbl_ops[Rainfall],INDIRECT("tbl_ops["&var_crop&"]")),2,0)
B208: =VLOOKUP(r[0]c3&var_rain,CHOOSE({1,2},tbl_ops[Name]&tbl_ops[Rainfall],INDIRECT("tbl_ops["&var_crop&"]")),2,0) | C208: SALES | E208: Number | G208: Price/hd | I208: Age | K208: Total
B209: =VLOOKUP(r[0]c3&var_rain,CHOOSE({1,2},tbl_ops[Name]&tbl_ops[Rainfall],INDIRECT("tbl_ops["&var_crop&"]")),2,0) | C209: c.f.a ewes | E209: =AG220 -> 231.53548 | G209: ='Prime Lambs Merino Ewes Input'!E18 -> 70 | I209: =E202 -> 5.5 | K209: =ROUND(E209,0)*G209 -> 16240
B210: =VLOOKUP(r[0]c3&var_rain,CHOOSE({1,2},tbl_ops[Name]&tbl_ops[Rainfall],INDIRECT("tbl_ops["&var_crop&"]")),2,0) | C210: c.f.a rams | E210: =AG238 -> 7.838409083 | G210: ='Prime Lambs Merino Ewes Input'!E19 -> 25 | I210: =E203+1.5 -> 4.5 | K210: =ROUND(E210,0)*G210 -> 200
C211: Lambs | E211: =AG227 -> 1100 | G211: ='Prime Lambs Merino Ewes Input'!E20 -> 125 | I211: 20 Weeks | K211: =ROUND(E211,0)*G211 -> 137500 | AA211: EWES | AB211: OPENING | AC211: NATURAL | AD211: PURCHASES | AE211: DEATHS | AF211: % sold | AG211: SALES | AH211: CLOSING
C212: TOTAL | E212: =SUM(E209:E211) -> 1339.373889 | G212: =SUMPRODUCT(E209:E211,G209:G211)/E212 -> 114.9070062 | K212: =SUM(K209:K211) -> 153940 | AA212: AGE | AB212: NUMBERS | AC212: INCREASE | AF212: culled | AH212: NUMBERS
C213: PURCHASES | E213: Number | G213: Price/hd | I213: Age | K213: Total
C214: Ewes | E214: =AD220 -> 261.53548 | G214: ='Prime Lambs Merino Ewes Input'!E29 -> 70 | I214: =E201 -> 1.5 | K214: =E214*G214 -> 18307.4836 | AA214: 0.5-1.5yr | AD214: =IF(AC203=1.5,AB215,AB214-AE214) -> 261.53548 | AG214: =AB214-AE214 -> 0 | AH214: =AB214+AC214+AD214-AE214-AG214 -> 261.53548
C215: Rams | E215: =AD238 -> 8.588409083 | G215: ='Prime Lambs Merino Ewes Input'!E30 -> 1000 | I215: 1.5 | K215: =E215*G215 -> 8588.409083 | AA215: 1.5-2.5yr | AB215: =IF(AC203=1.5,AC202/(1+(1-AG206)*(1-AF215)*(1+(1-AG206)*(1-AF216)*(1+(1-AG206)*(1-AF217)*(1+(1-AG206)*(1-AF218))))),0) -> 261.53548 | AD215: =IF(AC203=2.5,AB216-AG215,0) -> 0 | AE215: =AB215*$AG$206 -> 7.846064401 | AG215: =(AB215-AE215)*AF215 -> 0 | AH215: 253.6894156
AA216: 2.5-3.5yr | AB216: =IF(AC203=2.5,AC202/(1+(1-AG206)*(1-AF216)*(1+(1-AG206)*(1-AF217)*(1+(1-AG206)*(1-AF218)))),AH215) -> 253.6894156 | AD216: =IF(AC203=3.5,AB217-AG216,0) -> 0 | AE216: =AB216*$AG$206 -> 7.610682469 | AG216: =(AB216-AE216)*AF216 -> 0 | AH216: 246.0787332
E217: Number of Times | AA217: 3.5-4.5yr | AB217: =IF(AC203=3.5,AC202/(1+(1-AG206)*(1-AF217)*(1+(1-AG206)*(1-AF218))),AH216) -> 246.0787332 | AD217: =IF(AC203=4.5,AB218-AG217,0) -> 0 | AE217: =AB217*$AG$206 -> 7.382361995 | AG217: =(AB217-AE217)*AF217 -> 0 | AH217: 238.6963712
C218: STOCK HEALTH REQUIREMENTS | E218: Number | G218: Drench | I218: Vacc. | K218: Blowfly | M218: DSE | X218: Rotation between different drench groups generally does little to slow development of drench | AA218: 4.5-5.5yr | AB218: =IF(AC203=4.5,AC202/(1+(1-AG206)*(1-AF218)),AH217) -> 238.6963712 | AE218: =AB218*$AG$206 -> 7.160891135 | AF218: =IF(AC204=5.5,1,0) -> 1 | AG218: =(AB218-AE218)*AF218 -> 231.53548 | AH218: 0
C219: Ewes | E219: ='Prime Lambs Merino Ewes Input'!E7 -> 1000 | G219: ='Prime Lambs Merino Ewes Input'!F53 -> 1 | I219: ='Prime Lambs Merino Ewes Input'!G53 -> 1 | K219: ='Prime Lambs Merino Ewes Input'!H53 -> 1 | M219: 1.8 | X219: resistance and should not be used at the expense of these three highly effective practices: | AA219: 5.5-6.5yr | AB219: =AH218 -> 0 | AE219: =AB219*$AG$206 -> 0 | AF219: =IF(AC204=6.5,1,0) -> 0 | AG219: =(AB219-AE219)*AF219 -> 0 | AH219: 0
C220: Rams | E220: =AB49 -> 25 | G220: ='Prime Lambs Merino Ewes Input'!F54 -> 2 | I220: ='Prime Lambs Merino Ewes Input'!G54 -> 1 | K220: ='Prime Lambs Merino Ewes Input'!H54 -> 0 | M220: 2 | X220: • use products most effective on your property | AA220: Ewes | AB220: =SUM(AB215:AB219) -> 1000 | AD220: =AD214+AD215+AD216+AD217 -> 261.53548 | AE220: =SUM(AE214:AE219) -> 30 | AG220: =SUM(AG215:AG219) -> 231.53548 | AH220: =SUM(AH214:AH218) -> 1000
C221: Lambs | E221: =AC227 -> 1100 | G221: ='Prime Lambs Merino Ewes Input'!F55 -> 1 | I221: ='Prime Lambs Merino Ewes Input'!G55 -> 2 | K221: ='Prime Lambs Merino Ewes Input'!H55 -> 0 | X221: • use multi-active (combination) products | AA221: d.s.e's | AB221: =AB214+AB220*AC206 -> 1800
C222: TOTAL | E222: =SUM(E219:E221) -> 2125 | G222: =SUMPRODUCT($E$219:$E$221,G219:G221) -> 2150 | I222: =SUMPRODUCT($E$219:$E$221,I219:I221) -> 3225 | K222: =SUMPRODUCT($E$219:$E$221,K219:K221) -> 1000 | M222: =SUMPRODUCT($E$219:$E$221,M219:M221) -> 1850 | X222: • use short-acting products
BG223: For more information: https://wormboss.com.au/tests-tools/drench-rotation-versus-combinations-to-combat-drench-resistance/
G224: Wool Cut kg/hd | AA224: LAMBS | AB224: OPENING | AC224: NATURAL | AD224: PURCHASES | AE224: DEATHS | AF224: % sold | AG224: SALES | AH224: CLOSING
C225: SHEARING | E225: Number | I225: Price | K225: Total | AA225: AGE | AB225: NUMBERS | AC225: INCREASE | AF225: culled | AH225: NUMBERS
C226: Ewes | E226: =AB220-AE220 -> 970 | G226: ='Prime Lambs Merino Ewes Input'!F44 -> 6.5 | I226: ='Prime Lambs Merino Ewes Input'!G44 -> 8.976 | K226: =I226*G226*E226 -> 56593.68
C227: Crossbred rams | E227: =AB238-AE238 -> 24.25 | G227: ='Prime Lambs Merino Ewes Input'!F45 -> 3 | I227: ='Prime Lambs Merino Ewes Input'!G45 -> 1.728 | K227: =I227*G227*E227 -> 125.712 | AA227: 0-0.5yr | AC227: =AC202*AC205 -> 1100 | AF227: 1 | AG227: =AC227*AF227 -> 1100 | AH227: =AB227+AC227+AD227-AE227-AG227 -> 0
AA230: RAMS | AB230: OPENING | AC230: NATURAL | AD230: PURCHASES | AE230: DEATHS | AF230: % sold | AG230: SALES | AH230: CLOSING
AA231: AGE | AB231: NUMBERS | AC231: INCREASE | AF231: culled | AH231: NUMBERS
AA233: 0.5-1.5yr | AD233: =AB234/(1-AF233) -> 8.588409083 | AE233: =AB233*$AG$206 -> 0 | AH233: =AB233+AC233+AD233-AE233-AG233 -> 8.588409083
C234: TOTAL | E234: =SUM(E226:E233) -> 994.25 | G234: =SUMPRODUCT(E226:E233,G226:G233) -> 6377.75 | K234: =SUM(K226:K233) -> 56719.392 | AA234: 1.5-2.5yr | AB234: =IF(AG204=3,(AC202*AG202)/(1+(1-AG206)*(1-AF234)*(1+(1-AG206)*(1-AF235)*(1+(1-AG206)*(1-AF236)))),IF(AG204=4,(AC202*AG202)/(1+(1-AG206)*(1-AF234)*(1+(1-AG206)*(1-AF235)*(1+(1-AG206)*(1-AF236)*(1+(1-AG206)*(1-AF237))))),0)) -> 8.588409083 | AE234: =AB234*$AG$206 -> 0.2576522725 | AH234: =AB234+AC234+AD234-AE234-AG234 -> 8.330756811
AA235: 2.5-3.5yr | AB235: =AH234 -> 8.330756811 | AE235: =AB235*$AG$206 -> 0.2499227043 | AH235: =AB235+AC235+AD235-AE235-AG235 -> 8.080834106
AA236: 3.5-4.5yr | AB236: =AH235 -> 8.080834106 | AE236: =AB236*$AG$206 -> 0.2424250232 | AF236: =IF(AG204=3,100%,0) -> 1 | AG236: =(AB236-AE236)*AF236 -> 7.838409083 | AH236: =AB236+AC236+AD236-AE236-AG236 -> 0
G237: Hay Cost ($/T) | I237: Kg Fed per Week | K237: No of Weeks Feeding | M237: Total Cost ($) | AA237: 4.5-5.5yr | AB237: =AH236 -> 0 | AE237: =AB237*$AG$206 -> 0 | AF237: =IF(AG204=4,100%,0) -> 0 | AG237: =AB237-AE237 -> 0 | AH237: =AB237+AC237+AD237-AE237-AG237 -> 0
C238: FEEDING | E238: Number | AB238: =AB233+AB234+AB235+AB236+AB237 -> 25 | AD238: =AD233+AD234+AD235+AD236+AD237 -> 8.588409083 | AE238: =AE233+AE234+AE235+AE236+AE237 -> 0.75 | AG238: =AG233+AG234+AG235+AG236+AG237 -> 7.838409083 | AH238: =AH233+AH234+AH235+AH236+AH237 -> 25
C239: Ewes | E239: ='Prime Lambs Merino Ewes Input'!E63 -> 1000 | G239: ='Prime Lambs Merino Ewes Input'!F63 -> 220 | I239: ='Prime Lambs Merino Ewes Input'!G63 -> 2.5 | K239: ='Prime Lambs Merino Ewes Input'!H63 -> 8 | M239: =(E239*G239*I239*K239)/1000 -> 4400 | AA239: d.s.e's | AB239: =AB238*AE142 -> 0
C240: Rams | E240: ='Prime Lambs Merino Ewes Input'!E64 -> 25 | G240: ='Prime Lambs Merino Ewes Input'!F64 -> 220 | I240: ='Prime Lambs Merino Ewes Input'!G64 -> 2.5 | K240: ='Prime Lambs Merino Ewes Input'!H64 -> 8 | M240: =(E240*G240*I240*K240)/1000 -> 110
C241: Lambs | E241: ='Prime Lambs Merino Ewes Input'!E65 -> 660 | G241: ='Prime Lambs Merino Ewes Input'!F65 -> 220 | I241: ='Prime Lambs Merino Ewes Input'!G65 -> 2.5 | K241: ='Prime Lambs Merino Ewes Input'!H65 -> 5 | M241: =(E241*G241*I241*K241)/1000 -> 1815
G242: Grain Cost ($/T) | I242: Kg Fed per Week | K242: No of Weeks Feeding | M242: Total Cost ($)
E243: Number
C244: Ewes | E244: ='Prime Lambs Merino Ewes Input'!E69 -> 1000 | G244: ='Prime Lambs Merino Ewes Input'!F69 -> 320 | I244: ='Prime Lambs Merino Ewes Input'!G69 -> 3 | K244: ='Prime Lambs Merino Ewes Input'!H69 -> 8 | M244: =(E244*G244*I244*K244)/1000 -> 7680
C245: Rams | E245: ='Prime Lambs Merino Ewes Input'!E70 -> 25 | G245: ='Prime Lambs Merino Ewes Input'!F70 -> 320 | I245: ='Prime Lambs Merino Ewes Input'!G70 -> 3 | K245: ='Prime Lambs Merino Ewes Input'!H70 -> 10 | M245: =(E245*G245*I245*K245)/1000 -> 240
C246: Lambs | E246: ='Prime Lambs Merino Ewes Input'!E71 -> 660 | G246: ='Prime Lambs Merino Ewes Input'!F71 -> 320 | I246: ='Prime Lambs Merino Ewes Input'!G71 -> 6 | K246: ='Prime Lambs Merino Ewes Input'!H71 -> 5 | M246: =(E246*G246*I246*K246)/1000 -> 6336
G247: Supp. Cost ($/kg) | I247: Kg Fed per Week | K247: No of Weeks Feeding | M247: Total Cost ($)
E248: Number
C249: Ewes | E249: ='Prime Lambs Merino Ewes Input'!E75 -> 0 | G249: ='Prime Lambs Merino Ewes Input'!F75 -> 0 | I249: ='Prime Lambs Merino Ewes Input'!G75 -> 0 | K249: ='Prime Lambs Merino Ewes Input'!H75 -> 0 | M249: =(E249*G249*I249*K249) -> 0
C250: Rams | E250: ='Prime Lambs Merino Ewes Input'!E76 -> 0 | G250: ='Prime Lambs Merino Ewes Input'!F76 -> 0 | I250: ='Prime Lambs Merino Ewes Input'!G76 -> 0 | K250: ='Prime Lambs Merino Ewes Input'!H76 -> 0 | M250: =(E250*G250*I250*K250) -> 0
C251: Lambs | E251: ='Prime Lambs Merino Ewes Input'!E77 -> 0 | G251: ='Prime Lambs Merino Ewes Input'!F77 -> 0 | I251: ='Prime Lambs Merino Ewes Input'!G77 -> 0 | K251: ='Prime Lambs Merino Ewes Input'!H77 -> 0 | M251: =(E251*G251*I251*K251) -> 0
C252: TOTAL FEED COST | M252: =SUM(M239:M241,M244:M246,M249:M251) -> 20581
C255: GM SENSITIVITY
C256: Gross Margin/DSE | E256: Average Weaning Rate
G257: 0.9 | I257: 1 | K257: 1.1 | M257: 1.2 | O257: 1.3 | Q257: 1.4
E258: 100 | G258: =($E$199*G$257*$E258*(1-$K$124)+SUM($K$209:$K$210)+$K$234-$AK$57-$E$199*G$257*$AO$52)/$E$197 -> 41.70843801 | I258: =($E$199*I$257*$E258*(1-$K$124)+SUM($K$209:$K$210)+$K$234-$AK$57-$E$199*I$257*$AO$52)/$E$197 -> 46.11773531 | K258: =($E$199*K$257*$E258*(1-$K$124)+SUM($K$209:$K$210)+$K$234-$AK$57-$E$199*K$257*$AO$52)/$E$197 -> 50.5270326 | M258: =($E$199*M$257*$E258*(1-$K$124)+SUM($K$209:$K$210)+$K$234-$AK$57-$E$199*M$257*$AO$52)/$E$197 -> 54.9363299 | O258: =($E$199*O$257*$E258*(1-$K$124)+SUM($K$209:$K$210)+$K$234-$AK$57-$E$199*O$257*$AO$52)/$E$197 -> 59.3456272 | Q258: =($E$199*Q$257*$E258*(1-$K$124)+SUM($K$209:$K$210)+$K$234-$AK$57-$E$199*Q$257*$AO$52)/$E$197 -> 63.7549245
E259: 105 | G259: 44.00708666 | I259: 48.67178936 | K259: 53.33649206 | M259: 58.00119477 | O259: 62.66589747 | Q259: 67.33060017
C260: Average Lamb Sale Price($/hd) | E260: 110 | G260: 46.30573531 | I260: 51.22584341 | K260: 56.14595152 | M260: 61.06605963 | O260: 65.98616774 | Q260: 70.90627585
E261: 115 | G261: 48.60438395 | I261: 53.77989747 | K261: 58.95541098 | M261: 64.1309245 | O261: 69.30643801 | Q261: 74.48195152
E262: 120 | G262: 50.9030326 | I262: 56.33395152 | K262: 61.76487044 | M262: 67.19578936 | O262: 72.62670828 | Q262: 78.0576272
E263: 125 | G263: 53.20168125 | I263: 58.88800558 | K263: 64.5743299 | M263: 70.26065422 | O263: 75.94697855 | Q263: 81.63330287
E264: 130 | G264: 55.5003299 | I264: 61.44205963 | K264: 67.38378936 | M264: 73.32551909 | O264: 79.26724882 | Q264: 85.20897855
E265: 135 | G265: 57.79897855 | I265: 63.99611368 | K265: 70.19324882 | M265: 76.39038395 | O265: 82.58751909 | Q265: 88.78465422
E266: 140 | G266: 60.0976272 | I266: 66.55016774 | K266: 73.00270828 | M266: 79.45524882 | O266: 85.90778936 | Q266: 92.3603299
E267: 145 | G267: 62.39627585 | I267: 69.10422179 | K267: 75.81216774 | M267: 82.52011368 | O267: 89.22805963 | Q267: 95.93600558
E268: 150 | G268: 64.6949245 | I268: 71.65827585 | K268: 78.6216272 | M268: 85.58497855 | O268: 92.5483299 | Q268: 99.51168125

Sheet Lamb Trading Input (hidden)
C2: ="LAMB TRADING GROSS MARGIN - "&TEXT(m_year,"0000") -> LAMB TRADING GROSS MARGIN - 2024
C4: GENERAL INFORMATION
C5: This represents a merino Lamb flock, producing 21 micron wool. Adjust wool price if different micron wool is produced. Following are the various assumptions used in the calculation of the Gross Margin. Cells with yellow highlight can be changed. No allowance has been made for pasture expenses such as seed, fertiliser and chemicals. Refer to pasture gross margins in the “Cropping Gross Margin Plan” for annual and perennial pasture costs. Use the livestock gross margin per DSE as income for the pasture gross margin.
C7: No of Lambs | E7: 1000
C9: Age Lambs sold | E9: 0.8
C10: Age Lambs bought | E10: 0.5
C11: Lambs bought at | E11: 35 | F11: kg liveweight
C12: Lambs sold at | E12: 55 | F12: kg liveweight
C13: Flock death Rate | E13: 0.02
C14: DSE rating/Lamb | E14: 1.8
C17: LIVESTOCK SALES | E17: Price/Hd | F17: Number | G17: Total
C18: Lambs | E18: 146.63 | F18: =E7-E7*E13 -> 980 | G18: =E18*F18 -> 143697.4
C25: TOTAL SALES | F25: =SUM(F18:F23) -> 980 | G25: =SUM(G18:G23) -> 143697.4
C28: LIVESTOCK PURCHASES | E28: Price/Hd | F28: Number | G28: Total
C29: Lambs | E29: 75 | F29: =ROUND('Lamb Trading'!AD220,0) -> 208 | G29: =E29*F29 -> 15600
C32: TOTAL PURCHASES | F32: =SUM(F29:F30) -> 208 | G32: =SUM(G29:G30) -> 15600
C35: WOOL PRICE (cents/kg) | F35: =TEXT(m_year-3,"0000")&" Average (Clean)" -> 2021 Average (Clean) | G35: =TEXT(m_year-2,"0000")&" Average (Clean)" -> 2022 Average (Clean) | H35: =TEXT(m_year-1,"0000")&" Average (Clean)" -> 2023 Average (Clean) | I35: Budget Base (Clean) | J35: Budget Base (Greasy) | L35: Wool Type | M35: Budget Clean Price
E36: Cereal Zone 19 mic 68% yield | F36: 1622 | G36: 1649 | H36: 1533 | I36: 1430 | J36: =I36*0.7 -> 1001 | L36: 19 mic | M36: 1430
E37: Estimated wool yield | I37: 0.7 | L37: 21 mic | M37: 1320
C38: Allow 90% to account for lower value of bellies, skirtings etc. | J38: =J36*0.9 -> 900.9 | L38: 22 mic | M38: 1280
L39: 32 mic | M39: 270
C42: WOOL SALES - SHEARING | F42: Wool Cut | G42: Yield | H42: Average
E43: Number | F43: kg/hd | G43: % | H43: Wool Price | I43: Total
C44: Lambs | E44: 1000 | F44: 1.5 | G44: 0.7 | H44: 1430 | I44: =E44*F44*G44*H44/100 -> 15015
I45: 0
I46: 0
I47: 0
I48: 0
I49: 0
I50: 0
C52: TOTAL | E52: =SUM(E44:E51) -> 1000 | F52: =SUMPRODUCT(E44:E50,F44:F50) -> 1500 | G52: =AVERAGE(G44:G50) -> 0.7 | I52: =SUM(I44:I51) -> 15015
C55: STOCK HEALTH REQUIREMENTS | E55: =HYPERLINK("http://paraboss.com.au","for more info on drench, lice and blowfly product selection refer to www.paraboss.com.au") -> for more info on drench, lice and blowfly product selection refer to www.paraboss.com.au
G56: Number of times
E57: Number | F57: Drench | G57: Vacc. | H57: Blowfly | I57: DSE rating
C58: Lambs | E58: ='Lamb Trading'!E220 -> 1000 | F58: 1 | G58: 1 | H58: 1 | I58: 0.6
C59: TOTAL | E59: =SUM(E58:E58) -> 1000 | F59: =SUMPRODUCT($E$58:$E$58,F58:F58) -> 1000 | G59: =SUMPRODUCT($E$58:$E$58,G58:G58) -> 1000 | H59: =SUMPRODUCT($E$58:$E$58,H58:H58) -> 1000 | I59: =SUMPRODUCT($E$58:$E$58,I58:I58) -> 600
C61: Av Live Weight | E61: 45
C62: DSE Rating | E62: 0.8
C67: FEEDING
E68: Supplementry | F68: Feed Lot | I68: Supplementry | J68: Feed Lot
E69: kg fed | F69: kg fed | G69: /animal | H69: $/tonne | I69: Total | J69: Total
C70: Oats/barley | F70: 55 | G70: kg/lamb | I70: =(H70*E70)/1000 -> 0 | J70: =(H70*F70)/1000 -> 0 | L70: Cost per animal for 1) supplementary feeding (in paddock) and 2) containment feeding
C71: Hay | E71: 15 | F71: 10 | G71: kg/lamb | I71: =(H71*E71)/1000 -> 0 | J71: =(H71*F71)/1000 -> 0
C72: Lupins | F72: 9 | G72: kg/lamb | I72: =(H72*E72)/1000 -> 0 | J72: =(H72*F72)/1000 -> 0
C73: Supplements | F73: 1 | G73: kg/lamb | H73: 2000 | I73: =(H73*E73)/1000 -> 0 | J73: =(H73*F73)/1000 -> 2
C74: Total | I74: =SUM(I70:I73) -> 0 | J74: =SUM(J70:J73) -> 2

Sheet Lamb Trading (hidden)
C1: LAMB TRADING
C2: =UPPER(Var_Animal)&" GROSS MARGIN - "&TEXT(m_year,"0000") -> LAMB TRADING GROSS MARGIN - 2024
C4: ASSUMPTIONS
O5: Total DSE's | Q5: =E197 -> 1800
C6: Ave Lamb Fibre Diameter | E6: 20 | O6: Number of Lambs shorn | Q6: 1
C7: Number of Lambs | E7: ='Lamb Trading Input'!$E$7 -> 1000 | O7: Stocking Rate (DSE/Ha) | Q7: =E196 -> 12
C8: Lambs bought at | E8: ='Lamb Trading Input'!E11 -> 35 | G8: kg liveweight | K8: =428.571428571429/2 -> 214.2857143 | M8: c/kg liveweight
C9: Lambs sold at | E9: ='Lamb Trading Input'!E12 -> 55 | G9: kg liveweight | J9: @ | K9: 620 | M9: c/kg dwt
C32: INCOME | Q32: $
C34: Wool (kg greasy) | E34: =I234 -> 1500 | G34: kg | I34: av price | K34: ='Lamb Trading Input'!I52*100/I233*0.9 -> 900.9 | M34: c/kg | Q34: =E34*K34/100 -> 13513.5
C35: Sales | E35: =E211 -> 980 | G35: animals | I35: av price | K35: =G210 -> 146.63 | M35: /head | Q35: =K35*E35 -> 143697.4
C37: Gross Income | Q37: =SUM(Q34:Q35) -> 157210.9
AA45: STOCK VALUE AND D.S.E REQUIREMENT
C46: VARIABLE COSTS
C47: Shearing | K47: Rate
C48: Shearing | E48: =E233 -> 1000 | G48: sheep | I48: Reset Rate> | J48: =GM_INFO!C79 | K48: =GM_INFO!C79 -> 367.89 | M48: /100 | Q48: =K48/100*ROUND(E48,0) -> 3678.9
C50: Shed labour | E50: 2 | G50: days | I50: Reset Rate> | J50: =GM_INFO!C81 | K50: =GM_INFO!C81 -> 278.64 | M50: /day | Q50: =K50*ROUND(E50,0) -> 557.28
C51: Woolclasser | E51: 1 | G51: days | I51: Reset Rate> | J51: =GM_INFO!C82 | K51: =GM_INFO!C82 -> 338.18 | M51: /day | Q51: =K51*E51 -> 338.18
C52: Superannuation (on ord wages only) | I52: Reset Rate> | J52: =GM_INFO!C83 | K52: =GM_INFO!C83 -> 0.11 | M52: wages | Q52: =(Q48+Q50+Q51)*K52 -> 503.1796
C53: W/Cover (incl. super + otime etc) | I53: Reset Rate> | J53: =GM_INFO!C84 | K53: =GM_INFO!C84 -> 0.04 | M53: total | Q53: =(Q48+Q49+Q50+Q51+Q52)*K53 -> 203.101584
C54: Wool packs | E54: =E122 -> 8.823529412 | G54: packs | I54: Reset Rate> | J54: =GM_INFO!C77 | K54: =GM_INFO!C77 -> 16 | M54: /pack | Q54: =K54*ROUND(E54,0) -> 144
C55: Shed sundries | E55: =E48 -> 1000 | G55: sheep | I55: Reset Rate> | J55: =GM_INFO!C85 | K55: =GM_INFO!C85 -> 0.22 | M55: /head | Q55: =K55*ROUND(E55,0) -> 220
C56: Lice control | E56: =E48 -> 1000 | G56: sheep | I56: Reset Rate> | J56: =GM_INFO!C66 | K56: =GM_INFO!C66 -> 1.9875 | M56: /head | Q56: =K56*ROUND(E56,0) -> 1987.5
C57: Crutching | E57: 0 | G57: sheep | I57: Reset Rate> | J57: =GM_INFO!C87 | K57: =GM_INFO!C87 -> 106.69 | M57: /100 | Q57: =K57/100*ROUND(E57,0) -> 0
AS79: RAMS | AT79: OPENING | AU79: NATURAL | AV79: PURCHASES | AW79: DEATHS | AX79: % sold | AY79: SALES | AZ79: CLOSING
AS80: AGE | AT80: NUMBERS | AU80: INCREASE | AX80: culled | AZ80: NUMBERS
AS82: 0.5-1.5yr | AV82: =AT83/(1-AX82) -> 0 | AW82: =AT82*$R$81 -> 0 | AZ82: =AT82+AU82+AV82-AW82-AY82 -> 0
AS83: 1.5-2.5yr | AT83: =IF(AY53=3,(AU51*AY51)/(1+(1-AY55)*(1-AX83)*(1+(1-AY55)*(1-AX84)*(1+(1-AY55)*(1-AX85)))),IF(AY53=4,(AU51*AY51)/(1+(1-AY55)*(1-AX83)*(1+(1-AY55)*(1-AX84)*(1+(1-AY55)*(1-AX85)*(1+(1-AY55)*(1-AX86))))),0)) -> 0 | AW83: =AT83*$R$81 -> 0 | AZ83: =AT83+AU83+AV83-AW83-AY83 -> 0
AS84: 2.5-3.5yr | AT84: =AZ83 -> 0 | AW84: =AT84*$R$81 -> 0 | AZ84: =AT84+AU84+AV84-AW84-AY84 -> 0
AS85: 3.5-4.5yr | AT85: =AZ84 -> 0 | AW85: =AT85*$R$81 -> 0 | AX85: =IF(AY53=3,100%,0) -> 0 | AY85: =(AT85-AW85)*AX85 -> 0 | AZ85: =AT85+AU85+AV85-AW85-AY85 -> 0
AS86: 4.5-5.5yr | AT86: =AZ85 -> 0 | AW86: =AT86*$R$81 -> 0 | AX86: =IF(AY53=4,100%,0) -> 0 | AY86: =AT86-AW86 -> 0 | AZ86: =AT86+AU86+AV86-AW86-AY86 -> 0
AT87: =AT82+AT83+AT84+AT85+AT86 -> 0 | AV87: =AV82+AV83+AV84+AV85+AV86 -> 0 | AW87: =AW82+AW83+AW84+AW85+AW86 -> 0 | AY87: =AY82+AY83+AY84+AY85+AY86 -> 0 | AZ87: =AZ82+AZ83+AZ84+AZ85+AZ86 -> 0
AS88: d.s.e's | AT88: =AT87*AE49 -> 0
C89: Animal Health
C90: Drench | E90: =G228 -> 1000 | G90: sheep | I90: Reset Rate> | J90: =GM_INFO!C70 | K90: =GM_INFO!C70 -> 0.9 | M90: /head | Q90: =K90*ROUND(E90,0) -> 900
C91: Vaccinate | E91: =I228 -> 1000 | G91: sheep | I91: Reset Rate> | J91: =GM_INFO!C74 | K91: =GM_INFO!C74 -> 0.436 | M91: /head | Q91: =K91*ROUND(E91,0) -> 436
C92: Blowfly control | E92: =K228*0.5 -> 500 | G92: sheep | I92: Reset Rate> | J92: =GM_INFO!C76 | K92: =GM_INFO!C76 -> 1.56 | M92: /head | Q92: =K92*ROUND(E92,0) -> 780
C93: Other expenses | G93: sheep | I93: Reset Rate> | M93: /head | Q93: =K93*ROUND(E93,0) -> 0
C104: Stock purchases
C105: Purchases | E105: =ROUND(E213,0) -> 1000 | G105: Lambs | I105: Reset Rate> | J105: ='Lamb Trading Input'!E29 | K105: ='Lamb Trading Input'!E29 -> 75 | M105: /head | Q105: =K105*E105 -> 75000
C117: Sale Costs
C118: Freight
C119: Livestock | E119: =E211+E213 -> 1980 | G119: sheep | I119: Reset Rate> | J119: =GM_INFO!B161 | K119: =GM_INFO!B162 -> 7 | M119: /head | Q119: =K119*ROUND(E119,0) -> 13860
I120: Reset Rate> | M120: /head
I121: Reset Rate> | M121: /head
C122: Wool | E122: =I234/170 -> 8.823529412 | G122: bales | I122: Reset Rate> | J122: =GM_INFO!B164 | K122: =GM_INFO!B165 -> 15 | M122: /bale | Q122: =K122*ROUND(E122,0) -> 135
C123: Stock selling charges
C124: Commission/insurance | I124: Reset Rate> | J124: =GM_INFO!C98 | K124: =GM_INFO!C98 -> 0.055 | M124: gross $ | Q124: =K124*Q35 -> 7903.357
C125: Yard fees | E125: =E211 -> 980 | G125: sheep | I125: Reset Rate> | J125: =GM_INFO!C99 | K125: =GM_INFO!C99 -> 0.85 | M125: /head | Q125: =K125*ROUND(E125,0) -> 833
C126: Levy trans-sheep | E126: =E211 -> 980 | G126: sheep | I126: Reset Rate> | J126: =GM_INFO!C101 | K126: =GM_INFO!C101 -> 1.5 | M126: /head | Q126: =K126*ROUND(E126,0) -> 1470
C128: SA sheep industry levy | E128: =E211 -> 980 | G128: sheep | I128: Reset Rate> | J128: =GM_INFO!C102 | K128: =GM_INFO!C102 -> 0.67 | M128: /head | Q128: =K128*ROUND(E128,0) -> 656.6
C129: Wool selling charges
C130: Brokerage/testing/insurance | I130: Reset Rate> | J130: =GM_INFO!C103 | K130: =GM_INFO!C103 -> 0.27 | M130: /kg | Q130: =K130*E34 -> 405
C131: Wool levy | I131: Reset Rate> | J131: =GM_INFO!C104 | K131: =GM_INFO!C104 -> 0.015 | M131: gross | Q131: =K131*Q34 -> 202.7025
C143: Feed and Other Costs
C144: Supplementary Feeding | E144: 0 | G144: sheep | J144: =M250 | K144: =M250 -> 0 | M144: /head | Q144: =IF(E144*K144=0,0,E144*K144) -> 0
C145: Feed Lot | E145: 0 | G145: sheep | J145: =O250 | K145: =O250 -> 2 | M145: /head | Q145: =IF(E145=0,0,E145*K145) -> 0
C146: Insurance | E146: =E239*G239 -> 110815 | G146: value | I146: Reset Rate> | J146: =GM_INFO!B157 | K146: =GM_INFO!B158*0.5 -> 2.25 | M146: /$'000 | Q146: =K146/1000*E146 -> 249.33375
C147: Water | E147: =$E$197 -> 1800 | G147: DSE's | I147: Reset Rate> | J147: =GM_INFO!K129 | K147: =GM_INFO!K130 -> 2.5 | M147: /DSE's | Q147: =K147*E147 -> 4500
C148: Veh Fuel, R&M | E148: =$E$197 -> 1800 | G148: DSE's | I148: Reset Rate> | J148: =GM_INFO!K130 | K148: =GM_INFO!K131 -> 1.5 | M148: /DSE's | Q148: =K148*E148 -> 2700
C149: Other | E149: =$E$197 -> 1800 | G149: DSE's | I149: Reset Rate> | J149: =GM_INFO!K131 | K149: =GM_INFO!K132 -> 0.5 | M149: /DSE's | Q149: =K149*E149 -> 900
C170: TOTAL VARIABLE COSTS | Q170: =SUM(Q48:Q166) -> 118563.1344
C172: GROSS MARGIN TOTAL | Q172: =Q37-Q170 -> 38647.76557
C174: GROSS MARGIN/DSE | Q174: =Q172/E197 -> 21.47098087
C194: PRODUCTION DATA
C196: Stocking rate (DSE/Ha) | E196: 12 | AA196: SHEEP GROSS MARGIN
C197: Total DSE's | E197: =E199*'Lamb Trading Input'!E14 -> 1800
C198: SHEEP GRAZING AREA | E198: =E197/E196 -> 150
C199: Number of Lambs | E199: ='Lamb Trading Input'!E7 -> 1000
C200: Flock death rate | E200: ='Lamb Trading Input'!E13 -> 0.02
C201: Age Lambs bought | E201: ='Lamb Trading Input'!E10 -> 0.5
C202: Age Lambs sold | E202: ='Lamb Trading Input'!E9 -> 0.8 | AA202: No of Lambs | AC202: ='Lamb Trading Input'!E7 -> 1000
B203: =VLOOKUP(r[0]c3&"No Ops",CHOOSE({1,2},tbl_ops[Name]&tbl_ops[Category],INDIRECT("tbl_ops["&var_crop&"]")),2,0) | AA203: Age Lambs purchased | AC203: =E201 -> 0.5
B204: =VLOOKUP(r[0]c3&"No Ops",CHOOSE({1,2},tbl_ops[Name]&tbl_ops[Category],INDIRECT("tbl_ops["&var_crop&"]")),2,0) | AA204: Age Lambs sold | AC204: =E202 -> 0.8
B205: =VLOOKUP(r[0]c3&"No Ops",CHOOSE({1,2},tbl_ops[Name]&tbl_ops[Category],INDIRECT("tbl_ops["&var_crop&"]")),2,0) | AA205: Flock death rate | AC205: =E200 -> 0.02
B206: =VLOOKUP(r[0]c3&"No Ops",CHOOSE({1,2},tbl_ops[Name]&tbl_ops[Category],INDIRECT("tbl_ops["&var_crop&"]")),2,0) | AA206: dse/Lamb | AC206: ='Lamb Trading Input'!E14 -> 1.8
B208: =VLOOKUP(r[0]c3&var_rain,CHOOSE({1,2},tbl_ops[Name]&tbl_ops[Rainfall],INDIRECT("tbl_ops["&var_crop&"]")),2,0)
B209: =VLOOKUP(r[0]c3&var_rain,CHOOSE({1,2},tbl_ops[Name]&tbl_ops[Rainfall],INDIRECT("tbl_ops["&var_crop&"]")),2,0) | C209: SALES | E209: Number | G209: Price/hd | I209: Age | K209: Total
B210: =VLOOKUP(r[0]c3&var_rain,CHOOSE({1,2},tbl_ops[Name]&tbl_ops[Rainfall],INDIRECT("tbl_ops["&var_crop&"]")),2,0) | C210: Prime Lambs | E210: =E199-(E199*E200) -> 980 | G210: =E9*0.43*K9/100 -> 146.63 | I210: =E202 -> 0.8 | K210: =E210*G210 -> 143697.4
B211: =VLOOKUP(r[0]c3&var_rain,CHOOSE({1,2},tbl_ops[Name]&tbl_ops[Rainfall],INDIRECT("tbl_ops["&var_crop&"]")),2,0) | C211: TOTAL | E211: =E210 -> 980 | K211: =K210 -> 143697.4 | AA211: LambS | AB211: OPENING | AC211: NATURAL | AD211: PURCHASES | AE211: DEATHS | AF211: % sold | AG211: SALES | AH211: CLOSING
C212: PURCHASES | E212: Number | G212: Price/hd | I212: Age | K212: Total | AA212: AGE | AB212: NUMBERS | AC212: INCREASE | AF212: culled | AH212: NUMBERS
C213: Store Lambs | E213: =E199 -> 1000 | G213: =(E8*K8)/100 -> 75 | I213: =E201 -> 0.5 | K213: =ROUND(E213,0)*G213 -> 75000
AA214: 0-0.5yr | AD214: =IF(AC203=0.5,AB215-AE214-AG214,0) -> 208.1615931 | AE214: =AB214*$AC$205 -> 0 | AF214: =IF(AC204=0.5,100%,0) -> 0 | AG214: =AC214*AF214 -> 0 | AH214: =AB214+AC214+AD214-AE214-AG214 -> 208.1615931
X215: Rotation between different drench groups generally does little to slow development of drench | AA215: 0.5-1.5yr | AB215: =IF(AC203=0.5,AC202/(1+(1-AC205)*(1-AF215)*(1+(1-AC205)*(1-AF216)*(1+(1-AC205)*(1-AF217)*(1+(1-AC205)*(1-AF218))))),0) -> 208.1615931 | AD215: =IF(AC203=1.5,AB216-AE215-AG215,0) -> 0 | AE215: 4.163231862 | AF215: =IF(AC204=1.5,100%,0) -> 0 | AG215: =(AB215-AE215)*AF215 -> 0 | AH215: 203.9983612
X216: resistance and should not be used at the expense of these three highly effective practices: | AA216: 1.5-2.5yr | AB216: =IF(AC203=1.5,AC202/(1+(1-AC205)*(1-AF216)*(1+(1-AC205)*(1-AF217)*(1+(1-AC205)*(1-AF218)))),AH215) -> 203.9983612 | AE216: 4.079967224 | AF216: =IF(AC204=2.5,100%,0) -> 0 | AG216: =(AB216-AE216)*AF216 -> 0 | AH216: 199.918394
X217: • use products most effective on your property | AA217: 2.5-3.5yr | AB217: =AH216 -> 199.918394 | AE217: 3.99836788 | AF217: =IF(AC204=3.5,100%,0) -> 0 | AG217: =(AB217-AE217)*AF217 -> 0 | AH217: 195.9200261
E218: Number of Times | X218: • use multi-active (combination) products | AA218: 3.5-4.5yr | AB218: =AH217 -> 195.9200261 | AE218: 3.918400522 | AF218: =IF(AC204=4.5,100%,0) -> 0 | AG218: =(AB218-AE218)*AF218 -> 0 | AH218: 192.0016256
C219: STOCK HEALTH REQUIREMENTS | E219: Number | G219: Drench | I219: Vacc. | K219: Blowfly | X219: • use short-acting products | AA219: 4.5-5.5yr | AB219: =AH218 -> 192.0016256 | AE219: 3.840032512 | AF219: =IF(AC204=5.5,100%,0) -> 0 | AG219: =(AB219-AE219)*AF219 -> 0 | AH219: 188.1615931
C220: Lambs | E220: =ROUND('Lamb Trading Input'!E7,0) -> 1000 | G220: ='Lamb Trading Input'!F58 -> 1 | I220: ='Lamb Trading Input'!G58 -> 1 | K220: ='Lamb Trading Input'!H58 -> 1 | AA220: Total | AB220: =SUM(AB215:AB219) -> 1000 | AD220: =SUM(AD214:AD219) -> 208.1615931 | AE220: =SUM(AE214:AE219) -> 20 | AG220: =SUM(AG214:AG219) -> 0 | AH220: =SUM(AH214:AH219) -> 1188.161593 | BG220: For more information: https://wormboss.com.au/tests-tools/drench-rotation-versus-combinations-to-combat-drench-resistance/
AA221: d.s.e's | AB221: =AB220*AC206 -> 1800
C228: TOTAL | E228: =SUM(E220:E227) -> 1000 | G228: =SUMPRODUCT($E$220:$E$227,G220:G227) -> 1000 | I228: =SUMPRODUCT($E$220:$E$227,I220:I227) -> 1000 | K228: =SUMPRODUCT($E$220:$E$227,K220:K227) -> 1000
G231: Wool Cut kg/hd | I231: Total | K231: Yield | M231: Total
C232: SHEARING | E232: Number | I232: Greasy kg | K232: % | M232: clean kg
C233: Lambs | E233: ='Lamb Trading Input'!E52 -> 1000 | G233: ='Lamb Trading Input'!F52/1000 -> 1.5 | I233: =G233*E233 -> 1500 | K233: ='Lamb Trading Input'!G44 -> 0.7 | M233: =E233*G233*K233 -> 1050
C234: TOTAL | E234: =E233 -> 1000 | I234: =I233 -> 1500
C237: STOCK VALUE | G237: Value | I237: Av Live | K237: DSE
E238: Number | G238: $/head | I238: weight (kgs) | K238: rating
C239: Lambs | E239: =E199 -> 1000 | G239: =(G210+G213)/2 -> 110.815 | I239: ='Lamb Trading Input'!E61 -> 45 | K239: ='Lamb Trading Input'!E62 -> 0.8
C240: TOTAL | E240: =E239 -> 1000
E244: Supplementry | G244: Feed Lot | M244: Supplementry | O244: Feed Lot
C245: FEEDING | E245: kg fed | G245: kg fed | I245: /animal | K245: $/tonne | M245: Total | O245: Total
C246: ='Lamb Trading Input'!C70 -> Oats/barley | E246: ='Lamb Trading Input'!E70 -> 0 | G246: ='Lamb Trading Input'!F70 -> 55 | I246: ='Lamb Trading Input'!G70 -> kg/lamb | K246: ='Lamb Trading Input'!H70 -> 0 | M246: ='Lamb Trading Input'!I70 -> 0 | O246: ='Lamb Trading Input'!J70 -> 0
C247: ='Lamb Trading Input'!C71 -> Hay | E247: ='Lamb Trading Input'!E71 -> 15 | G247: ='Lamb Trading Input'!F71 -> 10 | I247: ='Lamb Trading Input'!G71 -> kg/lamb | K247: ='Lamb Trading Input'!H71 -> 0 | M247: ='Lamb Trading Input'!I71 -> 0 | O247: ='Lamb Trading Input'!J71 -> 0
C248: ='Lamb Trading Input'!C72 -> Lupins | E248: ='Lamb Trading Input'!E72 -> 0 | G248: ='Lamb Trading Input'!F72 -> 9 | I248: ='Lamb Trading Input'!G72 -> kg/lamb | K248: ='Lamb Trading Input'!H72 -> 0 | M248: ='Lamb Trading Input'!I72 -> 0 | O248: ='Lamb Trading Input'!J72 -> 0
C249: ='Lamb Trading Input'!C73 -> Supplements | E249: ='Lamb Trading Input'!E73 -> 0 | G249: ='Lamb Trading Input'!F73 -> 1 | I249: ='Lamb Trading Input'!G73 -> kg/lamb | K249: ='Lamb Trading Input'!H73 -> 2000 | M249: ='Lamb Trading Input'!I73 -> 0 | O249: ='Lamb Trading Input'!J73 -> 2
M250: ='Lamb Trading Input'!I74 -> 0 | O250: ='Lamb Trading Input'!J74 -> 2
C259: GM SENSITIVITY
C260: Gross Margin/DSE | E260: Average Greasy Wool Price (c/Kg)
G261: 801 | I261: 851 | K261: 901 | L261: 901 | M261: 951 | N261: 951 | O261: 1001 | P261: 1001 | Q261: 1051
E262: 121.63 | G262: =(G$261*$E$34*(1-$K$131)/100+$E262*$E$35*(1-$K$124)-($Q$170-$Q$124-$Q$131))/$E$197 -> 7.78846837 | I262: =(I$261*$E$34*(1-$K$131)/100+$E262*$E$35*(1-$K$124)-($Q$170-$Q$124-$Q$131))/$E$197 -> 8.198885037 | K262: =(K$261*$E$34*(1-$K$131)/100+$E262*$E$35*(1-$K$124)-($Q$170-$Q$124-$Q$131))/$E$197 -> 8.609301703 | M262: =(M$261*$E$34*(1-$K$131)/100+$E262*$E$35*(1-$K$124)-($Q$170-$Q$124-$Q$131))/$E$197 -> 9.01971837 | O262: =(O$261*$E$34*(1-$K$131)/100+$E262*$E$35*(1-$K$124)-($Q$170-$Q$124-$Q$131))/$E$197 -> 9.430135037 | Q262: =(Q$261*$E$34*(1-$K$131)/100+$E262*$E$35*(1-$K$124)-($Q$170-$Q$124-$Q$131))/$E$197 -> 9.840551703
E263: 126.63 | G263: 10.36096837 | I263: 10.77138504 | K263: 11.1818017 | M263: 11.59221837 | O263: 12.00263504 | Q263: 12.4130517
C264: Average Sheep Sale Price($/hd) | E264: 131.63 | G264: 12.93346837 | I264: 13.34388504 | K264: 13.7543017 | M264: 14.16471837 | O264: 14.57513504 | Q264: 14.9855517
E265: 136.63 | G265: 15.50596837 | I265: 15.91638504 | K265: 16.3268017 | M265: 16.73721837 | O265: 17.14763504 | Q265: 17.5580517
E266: 141.63 | G266: 18.07846837 | I266: 18.48888504 | K266: 18.8993017 | M266: 19.30971837 | O266: 19.72013504 | Q266: 20.1305517
E267: 146.63 | G267: 20.65096837 | I267: 21.06138504 | K267: 21.4718017 | M267: 21.88221837 | O267: 22.29263504 | Q267: 22.7030517
E268: 151.63 | G268: 23.22346837 | I268: 23.63388504 | K268: 24.0443017 | M268: 24.45471837 | O268: 24.86513504 | Q268: 25.2755517
E269: 156.63 | G269: 25.79596837 | I269: 26.20638504 | K269: 26.6168017 | M269: 27.02721837 | O269: 27.43763504 | Q269: 27.8480517
E270: 161.63 | G270: 28.36846837 | I270: 28.77888504 | K270: 29.1893017 | M270: 29.59971837 | O270: 30.01013504 | Q270: 30.4205517
E271: 166.63 | G271: 30.94096837 | I271: 31.35138504 | K271: 31.7618017 | M271: 32.17221837 | O271: 32.58263504 | Q271: 32.9930517
E272: 171.63 | G272: 33.51346837 | I272: 33.92388504 | K272: 34.3343017 | M272: 34.74471837 | O272: 35.15513504 | Q272: 35.5655517

Sheet Merino SR Input
C2: ="MERINO SR GROSS MARGIN - "&TEXT(m_year,"0000") -> MERINO SR GROSS MARGIN - 2024
C4: GENERAL INFORMATION
C5: This represents a self-replacing merino ewe flock, producing 21 micron wool. Adjust wool price if different micron wool is produced. Following are the various assumptions used in the calculation of the Gross Margin. Cells with yellow highlight can be changed. No allowance has been made for pasture expenses such as seed, fertiliser and chemicals. Refer to pasture gross margins in the “Cropping Gross Margin Plan” for annual and perennial pasture costs. Use the livestock gross margin per DSE as income for the pasture gross margin.
C7: Stocking rate (DSE/Ha) | E7: 6 | G7: Years Rams Kept | I7: 4
C8: Ewes mated | E8: 1000 | G8: Flock death Rate | I8: 0.03 | L8: Average Weaning Perentage
C9: Total DSE's | E9: ='Merino SR'!M228 -> 2420 | G9: % Lambs carried over | I9: 0 | M9: Agricultural | N9: Pastoral
C10: SHEEP GRAZING AREA | E10: 285 | L10: Av % | M10: 0.95 | N10: 0.8
C11: Age ewes 1st mating | E11: 1.5
C12: Age ewes sold | E12: 6.5
C13: Av Weaning % | E13: 0.95
C14: Ram percentage | E14: 0.025
C17: LIVESTOCK SALES | E17: Price/Hd | F17: Number | G17: Total | L17: Estimated 2023 Sheep Sale Prices
C18: c.f.a Ewes | E18: 70 | F18: ='Merino SR'!AG220 -> 203.9596235 | G18: =E18*ROUND(F18,0) -> 14280 | M18: Agricultural | N18: Pastoral
C19: c.f.a Merino Rams | E19: 25 | F19: ='Merino SR'!AG244 -> 5.788387001 | G19: 150 | L19: Store lambs 35kg lwt | M19: 145 | N19: 140
C20: ewe hoggets | E20: 120 | F20: ='Merino SR'!AG222 -> 226.7903765 | G20: 27240 | L20: Ewe Lambs | M20: 175 | N20: 160
C21: wether lambs | E21: 45 | F21: ='Merino SR'!AG230 -> 475 | G21: 21375 | L21: Wether lambs 55 kg lwt | M21: 200 | N21: 195
G22: 0 | L22: Ewe hoggets | M22: 270 | N22: 240
G23: 0 | L23: Cast for age ewes | M23: 170 | N23: 150
L24: Cast for age rams | M24: 140 | N24: 120
C25: TOTAL SALES | F25: =SUM(F18:F23) -> 911.538387 | G25: =SUM(G18:G23) -> 63045
C28: LIVESTOCK PURCHASES | E28: Price/Hd | F28: Number | G28: Total
C29: Ewes | E29: 250 | F29: =ROUND('Merino SR'!AD220,0) -> 0 | G29: =E29*F29 -> 0
C30: Rams | E30: 1100 | F30: =ROUND('Merino SR'!AD244,0) -> 7 | G30: =E30*F30 -> 7700
C32: TOTAL PURCHASES | F32: =SUM(F29:F30) -> 7 | G32: =SUM(G29:G30) -> 7700
C35: WOOL PRICE (cents/kg) | F35: =TEXT(m_year-3,"0000")&" Average (Clean)" -> 2021 Average (Clean) | G35: =TEXT(m_year-2,"0000")&" Average (Clean)" -> 2022 Average (Clean) | H35: =TEXT(m_year-1,"0000")&" Average (Clean)" -> 2023 Average (Clean) | I35: Budget Base (Clean) | J35: Budget Base (Greasy) | L35: Wool Type | M35: Estimated Clean Price
E36: Cereal Zone 21 mic 68% yield | F36: 1271 | G36: 1340 | H36: 1373 | I36: 1320 | J36: =I36*I37 -> 897.6 | L36: 19 mic | M36: 1430
E37: Estimated wool yield | I37: 0.68 | L37: 21 mic | M37: 1320
C38: Allow 90% to account for lower value of bellies, skirtings etc. | J38: =J36*0.9 -> 807.84 | L38: 22 mic | M38: 1280
C42: WOOL SALES - SHEARING | F42: Wool Cut | G42: Wool Price
E43: Number | F43: kg/hd | G43: cents/kg
C44: Ewes | E44: ='Merino SR'!E233 -> 980.4055419 | F44: 6.5 | G44: =$J$38 -> 807.84
C45: Ewe hoggets | E45: ='Merino SR'!E234 -> 467.875 | F45: 5.5 | G45: =$J$38 -> 807.84
C46: Wether weaners | E46: ='Merino SR'!E235 -> 0 | F46: 5 | G46: =$J$38 -> 807.84
C47: Lambs | E47: ='Merino SR'!E236 -> 950 | F47: 2 | G47: =$J$38 -> 807.84
C48: Merino rams | E48: ='Merino SR'!E237 -> 24.625 | F48: 9.5 | G48: =$J$38 -> 807.84
C52: TOTAL | E52: =SUM(E44:E51) -> 2422.905542 | F52: =SUMPRODUCT(E44:E50,F44:F50) -> 11079.88602
C55: STOCK HEALTH REQUIREMENTS | E55: =HYPERLINK("http://paraboss.com.au","for more info on drench, lice and blowfly product selection refer to www.paraboss.com.au") -> for more info on drench, lice and blowfly product selection refer to www.paraboss.com.au
G56: Number of times
E57: Number | F57: Drench | G57: Vacc. | H57: Blowfly
C58: Ewes | E58: ='Merino SR'!E220 -> 1000 | F58: 1 | G58: 1 | H58: 1
C59: Ewe hoggets | E59: ='Merino SR'!E221 -> 475 | F59: 1 | G59: 1 | H59: 1
C60: Wether weaners | E60: ='Merino SR'!E222 -> 0 | F60: 1 | G60: 1 | H60: 1
C61: Merino lambs | E61: ='Merino SR'!E223 -> 950 | F61: 1 | G61: 2 | H61: 0
C62: Merino rams | E62: ='Merino SR'!E224 -> 25 | F62: 2 | G62: 1 | H62: 1
C64: TOTAL | E64: =SUM(E58:E62) -> 2450 | F64: =SUMPRODUCT($E$58:$E$62,F58:F62) -> 2475 | G64: =SUMPRODUCT($E$58:$E$62,G58:G62) -> 3400 | H64: =SUMPRODUCT($E$58:$E$62,H58:H62) -> 1500
C67: FEEDING
C68: HAY | F68: Hay | G68: Kgs Fed | H68: No Weeks | I68: Total
E69: Number | F69: Cost ($/T) | G69: per Week | H69: of Feeding | I69: Cost ($)
C70: Cereal Hay | E70: ='Merino SR'!E220 -> 1000 | F70: 220 | G70: 2 | H70: 10 | I70: =(H70*G70*E70)/1000*F70 -> 4400
C71: Legume Hay | I71: =(H71*G71*E71)/1000*F71 -> 0
I72: =(H72*G72*E72)/1000*F72 -> 0
I73: =(H73*G73*E73)/1000*F73 -> 0
I74: =(H74*G74*E74)/1000*F74 -> 0
C76: GRAIN | F76: Grain | G76: Kgs Fed | H76: No Weeks | I76: Total
E77: Number | F77: Cost ($/T) | G77: per Week | H77: of Feeding | I77: Cost ($)
C78: Lupins | E78: 475 | F78: 370 | G78: 1 | H78: 10 | I78: =(H78*G78*E78)/1000*F78 -> 1757.5
C79: Barley | E79: 1000 | F79: 320 | G79: 2.4 | H79: 10 | I79: =(H79*G79*E79)/1000*F79 -> 7680
C80: Oats | I80: =(H80*G80*E80)/1000*F80 -> 0
I81: =(H81*G81*E81)/1000*F81 -> 0
I82: =(H82*G82*E82)/1000*F82 -> 0
C84: Supplements | G84: Kgs Fed | H84: No weeks | I84: Total
E85: Number | F85: Cost ($/kg) | G85: per week | H85: of Feeding | I85: Cost ($)
I86: =(H86*G86*E86)*F86 -> 0
I87: =(H87*G87*E87)*F87 -> 0
H89: Total Feed Cost | I89: =SUM(I70:I74,I78:I82,I86:I87) -> 13837.5

Sheet Merino SR
C1: MERINO SR
C2: =UPPER(Var_Animal)&" GROSS MARGIN - "&TEXT(m_year,"0000") -> MERINO SR GROSS MARGIN - 2024
C4: ASSUMPTIONS
C6: Ave Breeding Ewe Fibre Diameter | E6: 21 | O6: Total DSE's | Q6: ='Merino SR Input'!E9 -> 2420
C7: No. of breeding ewes | E7: ='Merino SR Input'!$E$8 -> 1000 | O7: Stocking Rate (DSE/Ha) | Q7: ='Merino SR Input'!E7 -> 6
C32: INCOME | Q32: $
C34: Wool (kg greasy) | E34: =I241 -> 11079.88602 | G34: kg | I34: av price | K34: ='Merino SR Input'!J38 -> 807.84 | M34: c/kg | Q34: =M241 -> 89507.75124
C35: Sales | E35: =E214 -> 911.538387 | G35: animals | I35: av price | K35: =G214 -> 69.16329679 | M35: /head | Q35: =I214 -> 63045
C37: Gross Income | Q37: =SUM(Q34:Q35) -> 152552.7512
AA45: STOCK VALUE AND D.S.E REQUIREMENT
C46: VARIABLE COSTS
C47: Shearing | K47: Rate
C48: Shearing | E48: =E241-E237 -> 2398.280542 | G48: sheep | I48: Reset Rate> | J48: =GM_INFO!C79 | K48: =GM_INFO!C79 -> 367.89 | M48: /100 | Q48: =K48/100*ROUND(E48,0) -> 8822.0022
C49: (Federal awards) | E49: =E224 -> 25 | G49: rams | I49: Reset Rate> | J49: =GM_INFO!C80 | K49: =GM_INFO!C80 -> 735.78 | M49: /100 | Q49: =K49/100*ROUND(E49,0) -> 183.945
C50: Shed labour | E50: 8 | G50: days | I50: Reset Rate> | J50: =GM_INFO!C81 | K50: =GM_INFO!C81 -> 278.64 | M50: /day | Q50: =K50*ROUND(E50,0) -> 2229.12
C51: Woolclasser | E51: 4 | G51: days | I51: Reset Rate> | J51: =GM_INFO!C82 | K51: =GM_INFO!C82 -> 338.18 | M51: /day | Q51: =K51*E51 -> 1352.72
C52: Superannuation (on ord wages only) | I52: Reset Rate> | J52: =GM_INFO!C83 | K52: =GM_INFO!C83 -> 0.11 | M52: wages | Q52: =(Q48+Q49+Q50+Q51)*K52 -> 1384.656592
C53: W/Cover (incl. super + otime etc) | I53: Reset Rate> | J53: =GM_INFO!C84 | K53: =GM_INFO!C84 -> 0.04 | M53: total | Q53: =(Q48+Q49+Q50+Q51+Q52)*K53 -> 558.8977517
C54: Wool packs | E54: =E122 -> 65.17580013 | G54: packs | I54: Reset Rate> | J54: =GM_INFO!C77 | K54: =GM_INFO!C77 -> 16 | M54: /pack | Q54: =K54*ROUND(E54,0) -> 1040
C55: Shed sundries | E55: =E48+E49 -> 2423.280542 | G55: sheep | I55: Reset Rate> | J55: =GM_INFO!C85 | K55: =GM_INFO!C85 -> 0.22 | M55: /head | Q55: =K55*ROUND(E55,0) -> 533.06
C56: Lice control | E56: =E48+E49 -> 2423.280542 | G56: sheep | I56: Reset Rate> | J56: =GM_INFO!C66 | K56: =GM_INFO!C66 -> 1.9875 | M56: /head | Q56: =K56*ROUND(E56,0) -> 4815.7125
C57: Crutch & Wig | E57: =SUM(E233:E235) -> 1448.280542 | G57: ewes | I57: Reset Rate> | J57: =GM_INFO!C87 | K57: =GM_INFO!C87 -> 106.69 | M57: /100 | Q57: =K57/100*ROUND(E57,0) -> 1544.8712
E58: =E49 -> 25 | G58: rams | I58: Reset Rate> | J58: =GM_INFO!C88 | K58: =GM_INFO!C88 -> 213.38 | M58: /100 | Q58: =K58/100*ROUND(E58,0) -> 53.345
C75: Marking
C76: Lamb marking | E76: =E199*E205 -> 950 | G76: lambs | I76: Reset Rate> | J76: =GM_INFO!C90 | K76: =GM_INFO!C90 -> 1.5 | M76: /head | Q76: =K76*ROUND(E76,0) -> 1425
C77: Ear tags | E77: =E76 -> 950 | G77: lambs | I77: Reset Rate> | J77: =GM_INFO!C92 | K77: =GM_INFO!C92 -> 0.45 | M77: /head | Q77: =K77*ROUND(E77,0) -> 427.5
C78: Pain relief | E78: 950 | G78: lambs | I78: Reset Rate> | J78: =GM_INFO!C94 | K78: =GM_INFO!C94 -> 1.995 | M78: /head | Q78: =K78*ROUND(E78,0) -> 1895.25
AS79: RAMS | AT79: OPENING | AU79: NATURAL | AV79: PURCHASES | AW79: DEATHS | AX79: % sold | AY79: SALES | AZ79: CLOSING
AS80: AGE | AT80: NUMBERS | AU80: INCREASE | AX80: culled | AZ80: NUMBERS
AS82: 0.5-1.5yr | AV82: =AT83/(1-AX82) -> 0 | AW82: =AT82*$R$81 -> 0 | AZ82: =AT82+AU82+AV82-AW82-AY82 -> 0
AS83: 1.5-2.5yr | AT83: =IF(AY53=3,(AU51*AY51)/(1+(1-AY55)*(1-AX83)*(1+(1-AY55)*(1-AX84)*(1+(1-AY55)*(1-AX85)))),IF(AY53=4,(AU51*AY51)/(1+(1-AY55)*(1-AX83)*(1+(1-AY55)*(1-AX84)*(1+(1-AY55)*(1-AX85)*(1+(1-AY55)*(1-AX86))))),0)) -> 0 | AW83: =AT83*$R$81 -> 0 | AZ83: =AT83+AU83+AV83-AW83-AY83 -> 0
AS84: 2.5-3.5yr | AT84: =AZ83 -> 0 | AW84: =AT84*$R$81 -> 0 | AZ84: =AT84+AU84+AV84-AW84-AY84 -> 0
AS85: 3.5-4.5yr | AT85: =AZ84 -> 0 | AW85: =AT85*$R$81 -> 0 | AX85: =IF(AY53=3,100%,0) -> 0 | AY85: =(AT85-AW85)*AX85 -> 0 | AZ85: =AT85+AU85+AV85-AW85-AY85 -> 0
AS86: 4.5-5.5yr | AT86: =AZ85 -> 0 | AW86: =AT86*$R$81 -> 0 | AX86: =IF(AY53=4,100%,0) -> 0 | AY86: =AT86-AW86 -> 0 | AZ86: =AT86+AU86+AV86-AW86-AY86 -> 0
AT87: =AT82+AT83+AT84+AT85+AT86 -> 0 | AV87: =AV82+AV83+AV84+AV85+AV86 -> 0 | AW87: =AW82+AW83+AW84+AW85+AW86 -> 0 | AY87: =AY82+AY83+AY84+AY85+AY86 -> 0 | AZ87: =AZ82+AZ83+AZ84+AZ85+AZ86 -> 0
AS88: d.s.e's | AT88: =AT87*AE49 -> 0
C89: Animal Health
C90: Drench | E90: =G228 -> 2475 | G90: sheep | I90: Reset Rate> | J90: =GM_INFO!C69 | K90: =GM_INFO!C69 -> 0.552 | M90: /head | Q90: =K90*ROUND(E90,0) -> 1366.2
C91: Vaccinate | E91: =I228 -> 3400 | G91: sheep | I91: Reset Rate> | J91: =GM_INFO!C72 | K91: =GM_INFO!C72 -> 0.328 | M91: /head | Q91: =K91*ROUND(E91,0) -> 1115.2
C92: Blowfly control | E92: =K228 -> 1500 | G92: sheep | I92: Reset Rate> | J92: =GM_INFO!C76 | K92: =GM_INFO!C76 -> 1.56 | M92: /head | Q92: =K92*ROUND(E92,0) -> 2340
C104: Stock purchases
C105: Purchases | E105: =ROUND(AD244,0) -> 7 | G105: rams | I105: Reset Rate> | J105: ='Merino SR Input'!E30 | K105: ='Merino SR Input'!E30 -> 1100 | M105: /head | Q105: =K105*E105 -> 7700
C117: Sale Costs
C118: Freight
C119: Livestock | E119: =E214 -> 911.538387 | G119: sheep | I119: Reset Rate> | J119: =GM_INFO!B161 | K119: =GM_INFO!B162 -> 7 | M119: /head | Q119: =K119*ROUND(E119,0) -> 6384
I120: Reset Rate> | M120: /head
I121: Reset Rate> | M121: /head
C122: Wool | E122: =I241/170 -> 65.17580013 | G122: bales | I122: Reset Rate> | J122: =GM_INFO!B164 | K122: =GM_INFO!B165 -> 15 | M122: /bale | Q122: =K122*ROUND(E122,0) -> 975
C123: Stock selling charges
C124: Commission/insurance | I124: Reset Rate> | J124: =GM_INFO!C98 | K124: =GM_INFO!C98 -> 0.055 | M124: gross $ | Q124: =K124*Q35 -> 3467.475
C125: Yard fees | E125: =E214 -> 911.538387 | G125: sheep | I125: Reset Rate> | J125: =GM_INFO!C99 | K125: =GM_INFO!C99 -> 0.85 | M125: /head | Q125: =K125*ROUND(E125,0) -> 775.2
C126: Levy trans-sheep | E126: =SUM(E210:E212) -> 436.538387 | G126: sheep | I126: Reset Rate> | J126: =GM_INFO!C100 | K126: =GM_INFO!C100 -> 0.2 | M126: /head | Q126: =K126*ROUND(E126,0) -> 87.4
C127: Levy trans-lambs | E127: =E213 -> 475 | G127: sheep | I127: Reset Rate> | J127: =GM_INFO!C101 | K127: =GM_INFO!C101 -> 1.5 | M127: /head | Q127: =K127*ROUND(E127,0) -> 712.5
C128: SA sheep industry levy | E128: =E214 -> 911.538387 | G128: sheep | I128: Reset Rate> | J128: =GM_INFO!C102 | K128: =GM_INFO!C102 -> 0.67 | M128: /head | Q128: =K128*ROUND(E128,0) -> 611.04
C129: Wool selling charges
C130: Brokerage/testing/insurance | I130: Reset Rate> | J130: =GM_INFO!C103 | K130: =GM_INFO!C103 -> 0.27 | M130: /kg | Q130: =K130*E34 -> 2991.569226
C131: Wool levy | I131: Reset Rate> | J131: =GM_INFO!C104 | K131: =GM_INFO!C104 -> 0.015 | M131: gross | Q131: =K131*Q34 -> 1342.616269
C143: Feed and Other Costs
C144: Hand Feeding | Q144: ='Merino SR Input'!I89 -> 13837.5
C146: Insurance | E146: =E229 -> 169450.0771 | G146: value | I146: Reset Rate> | J146: =GM_INFO!B157 | K146: =GM_INFO!B158 -> 4.5 | M146: /$'000 | Q146: =K146/1000*E146 -> 762.5253472
C147: Water | E147: ='Merino SR Input'!$E$9 -> 2420 | G147: DSE's | I147: Reset Rate> | J147: =GM_INFO!E129 | K147: =GM_INFO!E130 -> 2.5 | M147: /DSE's | Q147: =K147*E147 -> 6050
C148: Veh Fuel, R&M | E148: ='Merino SR Input'!$E$9 -> 2420 | G148: DSE's | I148: Reset Rate> | J148: =GM_INFO!E130 | K148: =GM_INFO!E131 -> 1.5 | M148: /DSE's | Q148: =K148*E148 -> 3630
C149: Other | E149: ='Merino SR Input'!$E$9 -> 2420 | G149: DSE's | I149: Reset Rate> | J149: =GM_INFO!E131 | K149: =GM_INFO!E132 -> 0.5 | M149: /DSE's | Q149: =K149*E149 -> 1210
C170: TOTAL VARIABLE COSTS | Q170: =SUM(Q48:Q166) -> 81624.30609
C172: GROSS MARGIN TOTAL | Q172: =Q37-Q170 -> 70928.44516
C174: GROSS MARGIN/DSE | Q174: =Q172/Q6 -> 29.30927486
C194: PRODUCTION DATA
AA196: SHEEP GROSS MARGIN
AA197: PRIME LAMB -
C199: Number of ewes mated | E199: ='Merino SR Input'!E8 -> 1000 | K199: Culling Rate (% from each group)
C200: Ram percentage | E200: ='Merino SR Input'!E14 -> 0.025 | K200: Age Group | M200: Ewes | O200: Wethers
C201: Age ewes 1st mating | E201: ='Merino SR Input'!E11 -> 1.5 | K201: 0.5 | M201: =AF213 -> 0
C202: Age ewes culled | E202: ='Merino SR Input'!E12 -> 6.5 | K202: 1.5 | M202: 0.492220025 | AA202: Ewes mated | AC202: ='Merino SR Input'!E8 -> 1000 | AF202: Ram % | AG202: =E200 -> 0.025
B203: =VLOOKUP(r[0]c3&"No Ops",CHOOSE({1,2},tbl_ops[Name]&tbl_ops[Category],INDIRECT("tbl_ops["&var_crop&"]")),2,0) | C203: Years rams kept | E203: ='Merino SR Input'!I7 -> 4 | K203: 2.5 | M203: 0.05 | AA203: Age at 1st mating | AC203: =E201 -> 1.5 | AF203: Price of rams | AG203: ='Merino SR Input'!E30 -> 1100
B204: =VLOOKUP(r[0]c3&"No Ops",CHOOSE({1,2},tbl_ops[Name]&tbl_ops[Category],INDIRECT("tbl_ops["&var_crop&"]")),2,0) | C204: Flock death rate | E204: ='Merino SR Input'!I8 -> 0.03 | K204: 3.5 | M204: 0.05 | AA204: Age ewes sold | AC204: =E202 -> 6.5 | AF204: Years rams kept | AG204: =E203 -> 4
B205: =VLOOKUP(r[0]c3&"No Ops",CHOOSE({1,2},tbl_ops[Name]&tbl_ops[Category],INDIRECT("tbl_ops["&var_crop&"]")),2,0) | C205: Average weaning rate | E205: =AC205 -> 0.95 | K205: 4.5 | M205: 0.05 | AA205: Av Weaning % | AC205: ='Merino SR Input'!E13 -> 0.95 | AF205: Age wethers sold | AG205: 0.5
B206: =VLOOKUP(r[0]c3&"No Ops",CHOOSE({1,2},tbl_ops[Name]&tbl_ops[Category],INDIRECT("tbl_ops["&var_crop&"]")),2,0) | C206: % Lambs carried over | E206: 0 | K206: 5.5 | M206: 0.05 | AA206: dse/ewe | AC206: 1.6 | AF206: Flock death rate | AG206: =E204 -> 0.03
C207: Age wethers sold | E207: =AG205 -> 0.5 | K207: 6.5 | M207: 1
B208: =VLOOKUP(r[0]c3&var_rain,CHOOSE({1,2},tbl_ops[Name]&tbl_ops[Rainfall],INDIRECT("tbl_ops["&var_crop&"]")),2,0)
B209: =VLOOKUP(r[0]c3&var_rain,CHOOSE({1,2},tbl_ops[Name]&tbl_ops[Rainfall],INDIRECT("tbl_ops["&var_crop&"]")),2,0) | C209: SALES | E209: Number | G209: Price/hd | I209: Total
B210: =VLOOKUP(r[0]c3&var_rain,CHOOSE({1,2},tbl_ops[Name]&tbl_ops[Rainfall],INDIRECT("tbl_ops["&var_crop&"]")),2,0) | C210: c.f.a ewes | E210: =AG220 -> 203.9596235 | G210: ='Merino SR Input'!E18 -> 70 | I210: =ROUND(E210,0)*G210 -> 14280
B211: =VLOOKUP(r[0]c3&var_rain,CHOOSE({1,2},tbl_ops[Name]&tbl_ops[Rainfall],INDIRECT("tbl_ops["&var_crop&"]")),2,0) | C211: c.f.a merino rams | E211: =AG244 -> 5.788387001 | G211: ='Merino SR Input'!E19 -> 25 | I211: =ROUND(E211,0)*G211 -> 150 | AA211: EWES | AB211: OPENING | AC211: NATURAL | AD211: PURCHASES | AE211: DEATHS | AF211: % sold | AG211: SALES | AH211: CLOSING
C212: Ewe hoggets | E212: =AG222 -> 226.7903765 | G212: ='Merino SR Input'!E20 -> 120 | I212: =ROUND(E212,0)*G212 -> 27240 | AA212: AGE | AB212: NUMBERS | AC212: INCREASE | AF212: culled | AH212: NUMBERS
C213: Wether lambs | E213: =AG230 -> 475 | G213: ='Merino SR Input'!E21 -> 45 | I213: =ROUND(E213,0)*G213 -> 21375 | AA213: 0-0.5yr | AC213: =AC202*AC205/2 -> 475 | AE213: =AB213*$AG$206 -> 0 | AF213: 0 | AG213: =AC213*AF213 -> 0 | AH213: =AB213+AC213+AD213-AE213-AG213 -> 475
C214: TOTAL | E214: =SUM(E210:E213) -> 911.538387 | G214: =I214/E214 -> 69.16329679 | I214: =SUM(I210:I213) -> 63045 | AA214: 0.5-1.5yr | AB214: =AH213 -> 475 | AE214: 14.25 | AF214: =(AB214*(1-AG206)-AB215)/(AB214-AE214) -> 0.492220025 | AG214: =AB214-AE214-AB215 -> 226.7903765 | AH214: 233.9596235
AA215: 1.5-2.5yr | AB215: =AC202/(1+(1-AG206)*(1-AF215)*(1+(1-AG206)*(1-AF216)*(1+(1-AG206)*(1-AF217)*(1+(1-AG206)*(1-AF218))))) -> 233.9596235 | AE215: 7.018788705 | AF215: 0.05 | AG215: =(AB215-AE215)*AF215 -> 11.34704174 | AH215: 215.5937931
AA216: 2.5-3.5yr | AB216: =AH215 -> 215.5937931 | AE216: 6.467813792 | AF216: 0.05 | AG216: =(AB216-AE216)*AF216 -> 10.45629896 | AH216: 198.6696803
AA217: 3.5-4.5yr | AB217: =AH216 -> 198.6696803 | AE217: 5.960090409 | AF217: 0.05 | AG217: =(AB217-AE217)*AF217 -> 9.635479495 | AH217: 183.0741104
E218: Number of Times | X218: Rotation between different drench groups generally does little to slow development of drench | AA218: 4.5-5.5yr | AB218: =AH217 -> 183.0741104 | AE218: 5.492223312 | AF218: =IF(AC204=5.5,1,5%) -> 0.05 | AG218: =(AB218-AE218)*AF218 -> 8.879094354 | AH218: =AB218+AC218+AD218-AE218-AG218 -> 168.7027927
C219: STOCK HEALTH REQUIREMENTS | E219: Number | G219: Drench | I219: Vacc. | K219: Blowfly | M219: DSE | X219: resistance and should not be used at the expense of these three highly effective practices: | AA219: 5.5-6.5yr | AB219: =AH218 -> 168.7027927 | AE219: 5.061083782 | AF219: =IF(AC204=6.5,100%,0) -> 1 | AG219: =(AB219-AE219)*AF219 -> 163.641709 | AH219: 0
C220: Ewes | E220: ='Merino SR Input'!E8 -> 1000 | G220: ='Merino SR Input'!F58 -> 1 | I220: ='Merino SR Input'!G58 -> 1 | K220: ='Merino SR Input'!H58 -> 1 | M220: 1.8 | X220: • use products most effective on your property | AA220: Ewes | AB220: =SUM(AB215:AB219) -> 1000 | AC220: =SUM(AC213:AC217) -> 475 | AD220: =SUM(AD213:AD219) -> 0 | AE220: =SUM(AE213:AE218) -> 39.18891622 | AG220: =SUM(AG215:AG219) -> 203.9596235 | AH220: =SUM(AH214:AH218) -> 1000
C221: Ewe hoggets | E221: =AB222 -> 475 | G221: ='Merino SR Input'!F59 -> 1 | I221: ='Merino SR Input'!G59 -> 1 | K221: ='Merino SR Input'!H59 -> 1 | M221: 1.2 | X221: • use multi-active (combination) products | AA221: d.s.e's | AB221: =AB214+AC206*(AB215+AB216+AB217+AB218) -> 1805.075532
C222: Wether weaners | E222: =AB228 -> 0 | G222: ='Merino SR Input'!F60 -> 1 | I222: ='Merino SR Input'!G60 -> 1 | K222: ='Merino SR Input'!H60 -> 1 | M222: 0.8 | X222: • use short-acting products | AA222: Ewe Hoggets | AB222: =AB214 -> 475 | AG222: =AG214 -> 226.7903765 | AH222: =AH213 -> 475
C223: Merino lambs | E223: =AC213+AC227 -> 950 | G223: ='Merino SR Input'!F61 -> 1 | I223: ='Merino SR Input'!G61 -> 2 | K223: ='Merino SR Input'!H61 -> 0 | M223: 0 | BG223: For more information: https://wormboss.com.au/tests-tools/drench-rotation-versus-combinations-to-combat-drench-resistance/
C224: Merino rams | E224: =AB244 -> 25 | G224: ='Merino SR Input'!F62 -> 2 | I224: ='Merino SR Input'!G62 -> 1 | K224: ='Merino SR Input'!H62 -> 1 | M224: 2 | AA224: WETHERS | AB224: OPENING | AC224: NATURAL | AD224: PURCHASES | AE224: DEATHS | AF224: % sold | AG224: SALES | AH224: CLOSING
AA225: AGE | AB225: NUMBERS | AC225: INCREASE | AF225: culled | AH225: NUMBERS
AA227: 0-0.5yr | AC227: =AC205*AC202/2 -> 475 | AE227: =AB227*$AG$206 -> 0 | AF227: =IF(AG205=0.5,100%,0) -> 1 | AG227: =AC227*AF227 -> 475 | AH227: =AB227+AC227+AD227-AE227-AG227 -> 0
C228: TOTAL | E228: =SUM(E220:E227) -> 2450 | G228: =SUMPRODUCT($E$220:$E$227,G220:G227) -> 2475 | I228: =SUMPRODUCT($E$220:$E$227,I220:I227) -> 3400 | K228: =SUMPRODUCT($E$220:$E$227,K220:K227) -> 1500 | M228: =SUMPRODUCT($E$220:$E$227,M220:M227) -> 2420 | AA228: 0.5-1.5yr | AB228: =AH227 -> 0 | AE228: =AB228*$AG$206 -> 0 | AF228: =IF(AG205=1.5,100%,0) -> 0 | AG228: =(AB228-AE228)*AF228 -> 0 | AH228: =AB228+AC228+AD228-AE228-AG228 -> 0
C229: TOTAL VALUE | E229: =E228*G214 -> 169450.0771 | AA229: 1.5-2.5 | AB229: =AH228 -> 0 | AE229: =AB229*$AG$206 -> 0 | AF229: =IF(AG205=2.5,100%,0) -> 0 | AG229: =(AB229-AE229)*AF229 -> 0
AA230: Wth lambs | AB230: =AB227 -> 0 | AC230: =AC227 -> 475 | AD230: 0 | AE230: =AE227 -> 0 | AG230: =AG227 -> 475 | AH230: 0
G231: Wool Cut kg/hd | I231: Total | K231: Wool Price | M231: Total | AA231: Wth hgts | AB231: =AB228 -> 0 | AC231: 0 | AD231: 0 | AE231: =AE228 -> 0 | AG231: 0 | AH231: 0
C232: SHEARING | E232: Number | I232: Greasy kg | K232: cents/kg | AA232: Wethers | AB232: =AB229 -> 0 | AC232: 0 | AD232: 0 | AE232: =AE229 -> 0 | AG232: 0 | AH232: 0
C233: Ewes | E233: =AB220-0.5*AE220 -> 980.4055419 | G233: ='Merino SR Input'!F44 -> 6.5 | I233: =G233*E233 -> 6372.636022 | K233: ='Merino SR Input'!G44 -> 807.84 | M233: =K233*G233*E233/100 -> 51480.70284 | AA233: d.s.e's | AB233: =AB231+AB232 -> 0
C234: Ewe hoggets | E234: =AB214-0.5*AE214 -> 467.875 | G234: ='Merino SR Input'!F45 -> 5.5 | I234: =G234*E234 -> 2573.3125 | K234: ='Merino SR Input'!G45 -> 807.84 | M234: =K234*G234*E234/100 -> 20788.2477
C235: Wether weaners | E235: =AB228-0.5*AE228 -> 0 | G235: ='Merino SR Input'!F46 -> 5 | I235: =G235*E235 -> 0 | K235: ='Merino SR Input'!G46 -> 807.84 | M235: =K235*G235*E235/100 -> 0
C236: Lambs | E236: =AC213+AC227 -> 950 | G236: ='Merino SR Input'!F47 -> 2 | I236: =G236*E236 -> 1900 | K236: ='Merino SR Input'!G47 -> 807.84 | M236: =K236*G236*E236/100 -> 15348.96 | AA236: RAMS | AB236: OPENING | AC236: NATURAL | AD236: PURCHASES | AE236: DEATHS | AF236: % sold | AG236: SALES | AH236: CLOSING
C237: Merino rams | E237: =AB244-0.5*AE244 -> 24.625 | G237: ='Merino SR Input'!F48 -> 9.5 | I237: =G237*E237 -> 233.9375 | K237: ='Merino SR Input'!G48 -> 807.84 | M237: =K237*G237*E237/100 -> 1889.8407 | AA237: AGE | AB237: NUMBERS | AC237: INCREASE | AF237: culled | AH237: NUMBERS
AA239: 0.5-1.5yr | AD239: =AB240/(1-AF239) -> 6.538387001 | AH239: =AB239+AC239+AD239-AE239-AG239 -> 6.538387001
AA240: 1.5-2.5yr | AB240: =IF(AG204=3,(AC202*AG202)/(1+(1-AG206)*(1-AF240)*(1+(1-AG206)*(1-AF241)*(1+(1-AG206)*(1-AF242)))),IF(AG204=4,(AC202*AG202)/(1+(1-AG206)*(1-AF240)*(1+(1-AG206)*(1-AF241)*(1+(1-AG206)*(1-AF242)*(1+(1-AG206)*(1-AF243))))),0)) -> 6.538387001 | AE240: =AB240*$AG$206 -> 0.19615161 | AF240: 0 | AG240: =(SUM(AB240:AD240)-AE240)*AF240 -> 0 | AH240: =AB240+AC240+AD240-AE240-AG240 -> 6.342235391
C241: TOTAL | E241: =SUM(E233:E239) -> 2422.905542 | G241: =SUMPRODUCT(E233:E234,G233:G234) -> 8945.948522 | I241: =SUM(I233:I239) -> 11079.88602 | M241: =SUM(M233:M239) -> 89507.75124 | AA241: 2.5-3.5yr | AB241: =AH240 -> 6.342235391 | AE241: =AB241*$AG$206 -> 0.1902670617 | AF241: 0 | AG241: =(SUM(AB241:AD241)-AE241)*AF241 -> 0 | AH241: =AB241+AC241+AD241-AE241-AG241 -> 6.151968329
AA242: 3.5-4.5yr | AB242: =AH241 -> 6.151968329 | AE242: =AB242*$AG$206 -> 0.1845590499 | AF242: =IF(AG204=3,100%,0) -> 0 | AG242: =(SUM(AB242:AD242)-AE242)*AF242 -> 0 | AH242: =AB242+AC242+AD242-AE242-AG242 -> 5.967409279
AA243: 4.5-5.5yr | AB243: =AH242 -> 5.967409279 | AE243: =AB243*$AG$206 -> 0.1790222784 | AF243: =IF(AG204=4,100%,0) -> 1 | AG243: =AB243-AE243 -> 5.788387001 | AH243: =AB243+AC243+AD243-AE243-AG243 -> 0
G244: Hay Cost ($/T) | I244: Kg Fed per Week | K244: No of Weeks Feeding | M244: Total Cost ($) | AB244: =AB239+AB240+AB241+AB242+AB243 -> 25 | AD244: =AD239+AD240+AD241+AD242+AD243 -> 6.538387001 | AE244: =AE239+AE240+AE241+AE242+AE243 -> 0.75 | AG244: =AG239+AG240+AG241+AG242+AG243 -> 5.788387001 | AH244: =AH239+AH240+AH241+AH242+AH243 -> 25
C245: FEEDING | E245: Number | AA245: d.s.e's | AB245: =AB244*2 -> 50
C246: Ewes | E246: ='Merino SR Input'!E70 -> 1000 | G246: ='Merino SR Input'!F70 -> 220 | I246: ='Merino SR Input'!G70 -> 2 | K246: ='Merino SR Input'!H70 -> 10 | M246: =(E246*G246*I246*K246)/1000 -> 4400
C247: Weaner | E247: ='Merino SR Input'!E71 -> 0 | G247: ='Merino SR Input'!F71 -> 0 | I247: ='Merino SR Input'!G71 -> 0 | K247: ='Merino SR Input'!H71 -> 0 | M247: =(E247*G247*I247*K247)/1000 -> 0
C248: Ewe hoggets | E248: ='Merino SR Input'!E72 -> 0 | G248: ='Merino SR Input'!F72 -> 0 | I248: ='Merino SR Input'!G72 -> 0 | K248: ='Merino SR Input'!H72 -> 0 | M248: =(E248*G248*I248*K248)/1000 -> 0
C249: Merino lambs | E249: ='Merino SR Input'!E73 -> 0 | G249: ='Merino SR Input'!F73 -> 0 | I249: ='Merino SR Input'!G73 -> 0 | K249: ='Merino SR Input'!H73 -> 0 | M249: =(E249*G249*I249*K249)/1000 -> 0
C250: Merino rams | E250: ='Merino SR Input'!E74 -> 0 | G250: ='Merino SR Input'!F74 -> 0 | I250: ='Merino SR Input'!G74 -> 0 | K250: ='Merino SR Input'!H74 -> 0 | M250: =(E250*G250*I250*K250)/1000 -> 0
G251: Grain Cost ($/T) | I251: Kg Fed per Week | K251: No of Weeks Feeding | M251: Total Cost ($)
E252: Number
C253: Weaner | E253: ='Merino SR Input'!E78 -> 475 | G253: ='Merino SR Input'!F78 -> 370 | I253: ='Merino SR Input'!G78 -> 1 | K253: ='Merino SR Input'!H78 -> 10 | M253: =(E253*G253*I253*K253)/1000 -> 1757.5
C254: Ewes | E254: ='Merino SR Input'!E79 -> 1000 | G254: ='Merino SR Input'!F79 -> 320 | I254: ='Merino SR Input'!G79 -> 2.4 | K254: ='Merino SR Input'!H79 -> 10 | M254: =(E254*G254*I254*K254)/1000 -> 7680
C255: Ewe hoggets | E255: ='Merino SR Input'!E80 -> 0 | G255: ='Merino SR Input'!F80 -> 0 | I255: ='Merino SR Input'!G80 -> 0 | K255: ='Merino SR Input'!H80 -> 0 | M255: =(E255*G255*I255*K255)/1000 -> 0
C256: Merino lambs | E256: ='Merino SR Input'!E81 -> 0 | G256: ='Merino SR Input'!F81 -> 0 | I256: ='Merino SR Input'!G81 -> 0 | K256: ='Merino SR Input'!H81 -> 0 | M256: =(E256*G256*I256*K256)/1000 -> 0
C257: Merino rams | E257: ='Merino SR Input'!E82 -> 0 | G257: ='Merino SR Input'!F82 -> 0 | I257: ='Merino SR Input'!G82 -> 0 | K257: ='Merino SR Input'!H82 -> 0 | M257: =(E257*G257*I257*K257)/1000 -> 0
C258: TOTAL FEED COST | M258: =SUM(M246:M250,M253:M257) -> 13837.5
C263: GM SENSITIVITY
C264: Gross Margin/DSE | E264: Average Greasy Wool Price (c/Kg)
G265: 750 | I265: 800 | K265: 808 | M265: 950 | O265: 1000 | Q265: 1050
E266: 39.16329679 | G266: =(G$265*$E$34*(1-$K$131)/100+$E266*$E$35*(1-$K$124)-($Q$170-$Q$124-$Q$131))/$Q$6 -> 16.02225409 | I266: =(I$265*$E$34*(1-$K$131)/100+$E266*$E$35*(1-$K$124)-($Q$170-$Q$124-$Q$131))/$Q$6 -> 18.27714825 | K266: =(K$265*$E$34*(1-$K$131)/100+$E266*$E$35*(1-$K$124)-($Q$170-$Q$124-$Q$131))/$Q$6 -> 18.63793132 | M266: =(M$265*$E$34*(1-$K$131)/100+$E266*$E$35*(1-$K$124)-($Q$170-$Q$124-$Q$131))/$Q$6 -> 25.04183073 | O266: =(O$265*$E$34*(1-$K$131)/100+$E266*$E$35*(1-$K$124)-($Q$170-$Q$124-$Q$131))/$Q$6 -> 27.29672489 | Q266: =(Q$265*$E$34*(1-$K$131)/100+$E266*$E$35*(1-$K$124)-($Q$170-$Q$124-$Q$131))/$Q$6 -> 29.55161905
E267: 44.16329679 | G267: 17.80201396 | I267: 20.05690812 | K267: 20.41769118 | M267: 26.8215906 | O267: 29.07648476 | Q267: 31.33137892
C268: Average Sheep Sale Price($/hd) | E268: 49.16329679 | G268: 19.58177383 | I268: 21.83666799 | K268: 22.19745105 | M268: 28.60135046 | O268: 30.85624462 | Q268: 33.11113878
E269: 54.16329679 | G269: 21.36153369 | I269: 23.61642785 | K269: 23.97721092 | M269: 30.38111033 | O269: 32.63600449 | Q269: 34.89089865
E270: 59.16329679 | G270: 23.14129356 | I270: 25.39618772 | K270: 25.75697079 | M270: 32.1608702 | O270: 34.41576436 | Q270: 36.67065852
E271: 64.16329679 | G271: 24.92105343 | I271: 27.17594759 | K271: 27.53673065 | M271: 33.94063007 | O271: 36.19552422 | Q271: 38.45041838
E272: 69.16329679 | G272: 26.70081329 | I272: 28.95570745 | K272: 29.31649052 | M272: 35.72038993 | O272: 37.97528409 | Q272: 40.23017825
E273: 74.16329679 | G273: 28.48057316 | I273: 30.73546732 | K273: 31.09625039 | M273: 37.5001498 | O273: 39.75504396 | Q273: 42.00993812
E274: 79.16329679 | G274: 30.26033303 | I274: 32.51522719 | K274: 32.87601025 | M274: 39.27990967 | O274: 41.53480383 | Q274: 43.78969799
E275: 84.16329679 | G275: 32.0400929 | I275: 34.29498706 | K275: 34.65577012 | M275: 41.05966953 | O275: 43.31456369 | Q275: 45.56945785
E276: 89.16329679 | G276: 33.81985276 | I276: 36.07474692 | K276: 36.43552999 | M276: 42.8394294 | O276: 45.09432356 | Q276: 47.34921772
C279: FLOCK STRUCTURE | E279: This table shows the number of merino sheep in each age group at mating
E280: Age Group
C281: Class of Sheep | E281: 0.5 y.o. | G281: 1.5 y.o. | I281: 2.5 y.o. | K281: 3.5 y.o. | M281: 4.5 y.o. | O281: 5.5 y.o. | Q281: 6.5 y.o.
C282: Ewes | E282: =$AB214 -> 475 | G282: =$AB215 -> 233.9596235 | I282: =$AB216 -> 215.5937931 | K282: =$AB217 -> 198.6696803 | M282: =$AB218 -> 183.0741104 | O282: =$AB219 -> 168.7027927 | Q282: 0
C283: Wethers | E283: =$AB228 -> 0 | G283: =$AB229 -> 0 | I283: 0 | K283: 0 | M283: 0 | O283: 0 | Q283: 0
C284: Rams | G284: =$AB240 -> 6.538387001 | I284: =$AB241 -> 6.342235391 | K284: =$AB242 -> 6.151968329 | M284: =$AB243 -> 5.967409279 | O284: 0 | Q284: 0

Sheet Wethers Input (hidden)
C2: ="WETHERS GROSS MARGIN - "&TEXT(m_year,"0000") -> WETHERS GROSS MARGIN - 2024
C4: GENERAL INFORMATION
C5: This represents a merino wether flock, producing 21 micron wool. Adjust wool price if different micron wool is produced. Following are the various assumptions used in the calculation of the Gross Margin. Cells with yellow highlight can be changed. No allowance has been made for pasture expenses such as seed, fertiliser and chemicals. Refer to pasture gross margins in the “Cropping Gross Margin Plan” for annual and perennial pasture costs. Use the livestock gross margin per DSE as income for the pasture gross margin.
C7: No of Wethers | E7: 1000
C9: Age Wethers sold | E9: 5.5
C10: Age Wethers bought | E10: 0.5
C13: Flock death Rate | E13: 0.03
C14: DSE rating/wether | E14: 1.2
C17: LIVESTOCK SALES | E17: Price/Hd | F17: Number | G17: Total | L17: Estimated 2023 Sheep Sale Prices
C18: Wethers | E18: 75 | F18: =ROUND(Wethers!AG220,0) -> 182 | G18: =E18*F18 -> 13650 | M18: Agricultural | N18: Pastoral
L24: Store lambs 35kg lwt | M24: 145 | N24: 140
C25: TOTAL SALES | F25: =SUM(F18:F23) -> 182 | G25: =SUM(G18:G23) -> 13650 | L25: Cast for age Wethers | M25: 175 | N25: 155
C28: LIVESTOCK PURCHASES | E28: Price/Hd | F28: Number | G28: Total
C29: Wethers | E29: 45 | F29: =Wethers!AD220 -> 212.3653636 | G29: =E29*F29 -> 9556.441363
L30: Ewe Lambs | M30: 175 | N30: 160
C32: TOTAL PURCHASES | F32: =SUM(F29:F30) -> 212.3653636 | G32: =SUM(G29:G30) -> 9556.441363
C35: WOOL PRICE (cents/kg) | F35: =TEXT(m_year-3,"0000")&" Average (Clean)" -> 2021 Average (Clean) | G35: =TEXT(m_year-2,"0000")&" Average (Clean)" -> 2022 Average (Clean) | H35: =TEXT(m_year-1,"0000")&" Average (Clean)" -> 2023 Average (Clean) | I35: Budget Base (Clean) | J35: Budget Base (Greasy) | L35: Wool Type | M35: Budget Clean Price
E36: Cereal Zone 21 mic 68% yield | F36: 1271 | G36: 1340 | H36: 1373 | I36: 1320 | J36: =I36*I37 -> 897.6 | L36: 19 mic | M36: 1430
E37: Estimated wool yield | I37: 0.68 | L37: 21 mic | M37: 1320
C38: Allow 90% to account for lower value of bellies, skirtings etc. | J38: =J36*0.9 -> 807.84 | L38: 22 mic | M38: 1280
C42: WOOL SALES - SHEARING | F42: Wool Cut | G42: Wool Price
E43: Number | F43: kg/hd | G43: cents/kg
C44: Wethers | E44: =Wethers!E233 -> 985 | F44: 7.5 | G44: =J38 -> 807.84
C52: TOTAL | E52: =SUM(E44:E51) -> 985 | F52: =SUMPRODUCT(E44:E50,F44:F50) -> 7387.5
C55: STOCK HEALTH REQUIREMENTS | E55: =HYPERLINK("http://paraboss.com.au","for more info on drench, lice and blowfly product selection refer to www.paraboss.com.au") -> for more info on drench, lice and blowfly product selection refer to www.paraboss.com.au
G56: Number of times
E57: Number | F57: Drench | G57: Vacc. | H57: Blowfly
C58: Wethers | E58: =Wethers!E220 -> 1000 | F58: 1 | G58: 1 | H58: 1
C64: TOTAL | E64: =SUM(E58:E62) -> 1000 | F64: =SUMPRODUCT($E$58:$E$62,F58:F62) -> 1000 | G64: =SUMPRODUCT($E$58:$E$62,G58:G62) -> 1000 | H64: =SUMPRODUCT($E$58:$E$62,H58:H62) -> 1000
C67: FEEDING
C68: HAY | F68: Hay | G68: Kgs Fed | H68: No Weeks | I68: Total
E69: Number | F69: Cost ($/T) | G69: per Week | H69: of Feeding | I69: Cost ($)
C70: Cereal Hay | E70: =Wethers!E220 -> 1000 | F70: 220 | G70: 1.5 | H70: 10 | I70: =(H70*G70*E70)/1000*F70 -> 3300
C71: Legume Hay | I71: =(H71*G71*E71)/1000*F71 -> 0
I72: =(H72*G72*E72)/1000*F72 -> 0
C74: GRAIN | F74: Grain | G74: Kgs Fed | H74: No Weeks | I74: Total
E75: Number | F75: Cost ($/T) | G75: per Week | H75: of Feeding | I75: Cost ($)
C76: Lupins | E76: =Wethers!E220 -> 1000 | F76: 320 | I76: =(H76*G76*E76)/1000*F76 -> 0
C77: Barley | I77: =(H77*G77*E77)/1000*F77 -> 0
C78: Oats | I78: =(H78*G78*E78)/1000*F78 -> 0
C80: Supplements | G80: Kgs Fed | H80: No weeks | I80: Total
E81: Number | F81: Cost ($/kg) | G81: per week | H81: of Feeding | I81: Cost ($)
I82: =(H82*G82*E82)*F82 -> 0
I83: =(H83*G83*E83)*F83 -> 0
H85: Total Feed Cost | I85: =SUM(I70:I72,I76:I78,I82:I83) -> 3300

Sheet Wethers (hidden)
C1: WHETHERS
C2: ="WETHERS GROSS MARGIN - "&TEXT(m_year,"0000") -> WETHERS GROSS MARGIN - 2024
C4: ASSUMPTIONS
C6: Ave Wether Fibre Diameter | E6: 21 | O6: Gross Margin per Ha | Q6: =Q172/E198 -> 174.3076429
C7: Number of Wethers | E7: ='Wethers Input'!$E$7 -> 1000 | O7: Gross Margin per DSE | Q7: =Q174 -> 29.05127381
C8: Stocking Rate (DSE/Ha) | E8: =E196 -> 6 | O8: Gross Margin/Wether | Q8: =Q172/E199 -> 34.86152857
C32: INCOME | Q32: $
C34: Wool (kg greasy) | E34: =I234 -> 7387.5 | G34: kg | I34: av price | K34: ='Wethers Input'!J38 -> 807.84 | M34: c/kg | Q34: =E34*K34/100 -> 59679.18
C35: Sales | E35: =E211 -> 182.3653636 | G35: animals | I35: av price | K35: =G210 -> 75 | M35: /head | Q35: =K35*E35 -> 13677.40227
C37: Gross Income | Q37: =SUM(Q34:Q35) -> 73356.58227
AA45: STOCK VALUE AND D.S.E REQUIREMENT
C46: VARIABLE COSTS
C47: Shearing | K47: Rate
C48: Shearing | E48: =E234 -> 985 | G48: sheep | I48: Reset Rate> | J48: =GM_INFO!C79 | K48: =GM_INFO!C79 -> 367.89 | M48: /100 | Q48: =K48/100*ROUND(E48,0) -> 3623.7165
C50: Shed labour | E50: 4 | G50: days | I50: Reset Rate> | J50: =GM_INFO!C81 | K50: =GM_INFO!C81 -> 278.64 | M50: /day | Q50: =K50*ROUND(E50,0) -> 1114.56
C51: Woolclasser | E51: 2 | G51: days | I51: Reset Rate> | J51: =GM_INFO!C82 | K51: =GM_INFO!C82 -> 338.18 | M51: /day | Q51: =K51*E51 -> 676.36
C52: Superannuation (on ord wages only) | I52: Reset Rate> | J52: =GM_INFO!C83 | K52: =GM_INFO!C83 -> 0.11 | M52: wages | Q52: =(Q48+Q50+Q51)*K52 -> 595.610015
C53: W/Cover (incl. super + otime etc) | I53: Reset Rate> | J53: =GM_INFO!C84 | K53: =GM_INFO!C84 -> 0.04 | M53: total | Q53: =(Q48+Q49+Q50+Q51+Q52)*K53 -> 240.4098606
C54: Wool packs | E54: =E122 -> 43.45588235 | G54: packs | I54: Reset Rate> | J54: =GM_INFO!C77 | K54: =GM_INFO!C77 -> 16 | M54: /pack | Q54: =K54*ROUND(E54,0) -> 688
C55: Shed sundries | E55: =E48 -> 985 | G55: sheep | I55: Reset Rate> | J55: =GM_INFO!C85 | K55: =GM_INFO!C85 -> 0.22 | M55: /head | Q55: =K55*ROUND(E55,0) -> 216.7
C56: Lice control | E56: =E48 -> 985 | G56: sheep | I56: Reset Rate> | J56: =GM_INFO!C66 | K56: =GM_INFO!C66 -> 1.9875 | M56: /head | Q56: =K56*ROUND(E56,0) -> 1957.6875
C57: Crutching | E57: =E228 -> 1000 | G57: sheep | I57: Reset Rate> | J57: =GM_INFO!C87 | K57: =GM_INFO!C87 -> 106.69 | M57: /100 | Q57: =K57/100*ROUND(E57,0) -> 1066.9
AS79: RAMS | AT79: OPENING | AU79: NATURAL | AV79: PURCHASES | AW79: DEATHS | AX79: % sold | AY79: SALES | AZ79: CLOSING
AS80: AGE | AT80: NUMBERS | AU80: INCREASE | AX80: culled | AZ80: NUMBERS
AS82: 0.5-1.5yr | AV82: =AT83/(1-AX82) -> 0 | AW82: =AT82*$R$81 -> 0 | AZ82: =AT82+AU82+AV82-AW82-AY82 -> 0
AS83: 1.5-2.5yr | AT83: =IF(AY53=3,(AU51*AY51)/(1+(1-AY55)*(1-AX83)*(1+(1-AY55)*(1-AX84)*(1+(1-AY55)*(1-AX85)))),IF(AY53=4,(AU51*AY51)/(1+(1-AY55)*(1-AX83)*(1+(1-AY55)*(1-AX84)*(1+(1-AY55)*(1-AX85)*(1+(1-AY55)*(1-AX86))))),0)) -> 0 | AW83: =AT83*$R$81 -> 0 | AZ83: =AT83+AU83+AV83-AW83-AY83 -> 0
AS84: 2.5-3.5yr | AT84: =AZ83 -> 0 | AW84: =AT84*$R$81 -> 0 | AZ84: =AT84+AU84+AV84-AW84-AY84 -> 0
AS85: 3.5-4.5yr | AT85: =AZ84 -> 0 | AW85: =AT85*$R$81 -> 0 | AX85: =IF(AY53=3,100%,0) -> 0 | AY85: =(AT85-AW85)*AX85 -> 0 | AZ85: =AT85+AU85+AV85-AW85-AY85 -> 0
AS86: 4.5-5.5yr | AT86: =AZ85 -> 0 | AW86: =AT86*$R$81 -> 0 | AX86: =IF(AY53=4,100%,0) -> 0 | AY86: =AT86-AW86 -> 0 | AZ86: =AT86+AU86+AV86-AW86-AY86 -> 0
AT87: =AT82+AT83+AT84+AT85+AT86 -> 0 | AV87: =AV82+AV83+AV84+AV85+AV86 -> 0 | AW87: =AW82+AW83+AW84+AW85+AW86 -> 0 | AY87: =AY82+AY83+AY84+AY85+AY86 -> 0 | AZ87: =AZ82+AZ83+AZ84+AZ85+AZ86 -> 0
AS88: d.s.e's | AT88: =AT87*AE49 -> 0
C89: Animal Health
C90: Drench | E90: =G228 -> 1000 | G90: sheep | I90: Reset Rate> | J90: =GM_INFO!C69 | K90: =GM_INFO!C69 -> 0.552 | M90: /head | Q90: =K90*ROUND(E90,0) -> 552
C91: Vaccinate | E91: =I228 -> 1000 | G91: sheep | I91: Reset Rate> | J91: =GM_INFO!C72 | K91: =GM_INFO!C72 -> 0.328 | M91: /head | Q91: =K91*ROUND(E91,0) -> 328
C92: Blowfly control | E92: =K228 -> 1000 | G92: sheep | I92: Reset Rate> | J92: =GM_INFO!C76 | K92: =GM_INFO!C76 -> 1.56 | M92: /head | Q92: =K92*ROUND(E92,0) -> 1560
C93: Other expenses | G93: sheep | I93: Reset Rate> | M93: /head | Q93: =K93*ROUND(E93,0) -> 0
C104: Stock purchases
C105: Purchases | E105: =ROUND(E213,0) -> 212 | G105: wethers | I105: Reset Rate> | J105: ='Wethers Input'!E29 | K105: ='Wethers Input'!E29 -> 45 | M105: /head | Q105: =K105*E105 -> 9540
C117: Sale Costs
C118: Freight
C119: Livestock | E119: =E211+E213 -> 394.7307272 | G119: sheep | I119: Reset Rate> | J119: =GM_INFO!B161 | K119: =GM_INFO!B162 -> 7 | M119: /head | Q119: =K119*ROUND(E119,0) -> 2765
I120: Reset Rate> | M120: /head
I121: Reset Rate> | M121: /head
C122: Wool | E122: =I234/170 -> 43.45588235 | G122: bales | I122: Reset Rate> | J122: =GM_INFO!B164 | K122: =GM_INFO!B165 -> 15 | M122: /bale | Q122: =K122*ROUND(E122,0) -> 645
C123: Stock selling charges
C124: Commission/insurance | I124: Reset Rate> | J124: =GM_INFO!C98 | K124: =GM_INFO!C98 -> 0.055 | M124: gross $ | Q124: =K124*Q35 -> 752.257125
C125: Yard fees | E125: =E211 -> 182.3653636 | G125: sheep | I125: Reset Rate> | J125: =GM_INFO!C99 | K125: =GM_INFO!C99 -> 0.85 | M125: /head | Q125: =K125*ROUND(E125,0) -> 154.7
C126: Levy trans-sheep | E126: =E211 -> 182.3653636 | G126: sheep | I126: Reset Rate> | J126: =GM_INFO!C100 | K126: =GM_INFO!C100 -> 0.2 | M126: /head | Q126: =K126*ROUND(E126,0) -> 36.4
C128: SA sheep industry levy | E128: =E211 -> 182.3653636 | G128: sheep | I128: Reset Rate> | J128: =GM_INFO!C102 | K128: =GM_INFO!C102 -> 0.67 | M128: /head | Q128: =K128*ROUND(E128,0) -> 121.94
C129: Wool selling charges
C130: Brokerage/testing/insurance | I130: Reset Rate> | J130: =GM_INFO!C103 | K130: =GM_INFO!C103 -> 0.27 | M130: /kg | Q130: =K130*E34 -> 1994.625
C131: Wool levy | I131: Reset Rate> | J131: =GM_INFO!C104 | K131: =GM_INFO!C104 -> 0.015 | M131: gross | Q131: =K131*Q34 -> 895.1877
C143: Feed and Other Costs
C144: Hand Feeding | Q144: ='Wethers Input'!I85 -> 3300
C146: Insurance | E146: =E239*G239 -> 60000 | G146: value | I146: Reset Rate> | J146: =GM_INFO!B157 | K146: =GM_INFO!B158 -> 4.5 | M146: /$'000 | Q146: =K146/1000*E146 -> 270
C147: Water | E147: =$E$197 -> 1200 | G147: DSE's | I147: Reset Rate> | J147: =GM_INFO!G129 | K147: =GM_INFO!G130 -> 2.5 | M147: /DSE's | Q147: =K147*E147 -> 3000
C148: Veh Fuel, R&M | E148: =$E$197 -> 1200 | G148: DSE's | I148: Reset Rate> | J148: =GM_INFO!G130 | K148: =GM_INFO!G131 -> 1.5 | M148: /DSE's | Q148: =K148*E148 -> 1800
C149: Other | E149: =$E$197 -> 1200 | G149: DSE's | I149: Reset Rate> | J149: =GM_INFO!G131 | K149: =GM_INFO!G132 -> 0.5 | M149: /DSE's | Q149: =K149*E149 -> 600
C170: TOTAL VARIABLE COSTS | Q170: =SUM(Q48:Q166) -> 38495.0537
C172: GROSS MARGIN TOTAL | Q172: =Q37-Q170 -> 34861.52857
C174: GROSS MARGIN/DSE | Q174: =Q172/E197 -> 29.05127381
C194: PRODUCTION DATA
C196: Stocking rate (DSE/Ha) | E196: 6 | K196: Culling Rate (% from each group) | Q196: Stock | AA196: SHEEP GROSS MARGIN
C197: Total DSE's | E197: ='Wethers Input'!E7*'Wethers Input'!E14 -> 1200 | K197: Age Group | M197: Ewes | O197: Wethers | Q197: No's
C198: SHEEP GRAZING AREA | E198: =E197/E196 -> 200 | K198: 0.5 | O198: =AF214 -> 0 | Q198: =AH214 -> 212.3653636
C199: Number of wethers | E199: ='Wethers Input'!E7 -> 1000 | K199: 1.5 | O199: 0 | Q199: 205.9944027
C200: Flock death rate | E200: ='Wethers Input'!E13 -> 0.03 | K200: 2.5 | O200: 0 | Q200: 199.8145706
C201: Age wethers bought | E201: ='Wethers Input'!E10 -> 0.5 | K201: 3.5 | O201: 0 | Q201: 193.8201335
C202: Age wethers culled | E202: ='Wethers Input'!E9 -> 5.5 | K202: 4.5 | O202: 0 | Q202: 188.0055295 | AA202: No of wethers | AC202: ='Wethers Input'!E7 -> 1000
B203: =VLOOKUP(r[0]c3&"No Ops",CHOOSE({1,2},tbl_ops[Name]&tbl_ops[Category],INDIRECT("tbl_ops["&var_crop&"]")),2,0) | K203: 5.5 | O203: 1 | Q203: 0 | AA203: Age wethers purchased | AC203: =E201 -> 0.5
B204: =VLOOKUP(r[0]c3&"No Ops",CHOOSE({1,2},tbl_ops[Name]&tbl_ops[Category],INDIRECT("tbl_ops["&var_crop&"]")),2,0) | AA204: Age wethers sold | AC204: =E202 -> 5.5
B205: =VLOOKUP(r[0]c3&"No Ops",CHOOSE({1,2},tbl_ops[Name]&tbl_ops[Category],INDIRECT("tbl_ops["&var_crop&"]")),2,0) | AA205: Flock death rate | AC205: =E200 -> 0.03
B206: =VLOOKUP(r[0]c3&"No Ops",CHOOSE({1,2},tbl_ops[Name]&tbl_ops[Category],INDIRECT("tbl_ops["&var_crop&"]")),2,0) | AA206: dse/wether | AC206: ='Wethers Input'!E14 -> 1.2
B208: =VLOOKUP(r[0]c3&var_rain,CHOOSE({1,2},tbl_ops[Name]&tbl_ops[Rainfall],INDIRECT("tbl_ops["&var_crop&"]")),2,0)
B209: =VLOOKUP(r[0]c3&var_rain,CHOOSE({1,2},tbl_ops[Name]&tbl_ops[Rainfall],INDIRECT("tbl_ops["&var_crop&"]")),2,0) | C209: SALES | E209: Number | G209: Price/hd | I209: Age | K209: Total
B210: =VLOOKUP(r[0]c3&var_rain,CHOOSE({1,2},tbl_ops[Name]&tbl_ops[Rainfall],INDIRECT("tbl_ops["&var_crop&"]")),2,0) | C210: c.f.a wethers | E210: =AG220 -> 182.3653636 | G210: ='Wethers Input'!E18 -> 75 | I210: =E202 -> 5.5 | K210: =ROUND(E210,0)*G210 -> 13650
B211: =VLOOKUP(r[0]c3&var_rain,CHOOSE({1,2},tbl_ops[Name]&tbl_ops[Rainfall],INDIRECT("tbl_ops["&var_crop&"]")),2,0) | C211: TOTAL | E211: =E210 -> 182.3653636 | K211: =K210 -> 13650 | AA211: WETHERS | AB211: OPENING | AC211: NATURAL | AD211: PURCHASES | AE211: DEATHS | AF211: % sold | AG211: SALES | AH211: CLOSING
C212: PURCHASES | E212: Number | G212: Price/hd | I212: Age | K212: Total | AA212: AGE | AB212: NUMBERS | AC212: INCREASE | AF212: culled | AH212: NUMBERS
C213: Wethers | E213: =AD220 -> 212.3653636 | G213: ='Wethers Input'!E29 -> 45 | I213: =E201 -> 0.5 | K213: =ROUND(E213,0)*G213 -> 9540
AA214: 0-0.5yr | AD214: =IF(AC203=0.5,AB215-AE214-AG214,0) -> 212.3653636 | AE214: =AB214*$AC$205 -> 0 | AF214: =IF(AC204=0.5,100%,0) -> 0 | AG214: =AC214*AF214 -> 0 | AH214: =AB214+AC214+AD214-AE214-AG214 -> 212.3653636
AA215: 0.5-1.5yr | AB215: =IF(AC203=0.5,AC202/(1+(1-AC205)*(1-AF215)*(1+(1-AC205)*(1-AF216)*(1+(1-AC205)*(1-AF217)*(1+(1-AC205)*(1-AF218))))),0) -> 212.3653636 | AD215: =IF(AC203=1.5,AB216-AE215-AG215,0) -> 0 | AE215: 6.370960909 | AF215: =IF(AC204=1.5,100%,0) -> 0 | AG215: =(AB215-AE215)*AF215 -> 0 | AH215: 205.9944027
AA216: 1.5-2.5yr | AB216: =IF(AC203=1.5,AC202/(1+(1-AC205)*(1-AF216)*(1+(1-AC205)*(1-AF217)*(1+(1-AC205)*(1-AF218)))),AH215) -> 205.9944027 | AE216: 6.179832081 | AF216: =IF(AC204=2.5,100%,0) -> 0 | AG216: =(AB216-AE216)*AF216 -> 0 | AH216: 199.8145706
X217: Rotation between different drench groups generally does little to slow development of drench | AA217: 2.5-3.5yr | AB217: =AH216 -> 199.8145706 | AE217: 5.994437119 | AF217: =IF(AC204=3.5,100%,0) -> 0 | AG217: =(AB217-AE217)*AF217 -> 0 | AH217: 193.8201335
E218: Number of Times | X218: resistance and should not be used at the expense of these three highly effective practices: | AA218: 3.5-4.5yr | AB218: =AH217 -> 193.8201335 | AE218: 5.814604005 | AF218: =IF(AC204=4.5,100%,0) -> 0 | AG218: =(AB218-AE218)*AF218 -> 0 | AH218: 188.0055295
C219: STOCK HEALTH REQUIREMENTS | E219: Number | G219: Drench | I219: Vacc. | K219: Blowfly | X219: • use products most effective on your property | AA219: 4.5-5.5yr | AB219: =AH218 -> 188.0055295 | AE219: 5.640165885 | AF219: =IF(AC204=5.5,100%,0) -> 1 | AG219: =(AB219-AE219)*AF219 -> 182.3653636 | AH219: 0
C220: Wethers | E220: =ROUND('Wethers Input'!E7,0) -> 1000 | G220: ='Wethers Input'!F58 -> 1 | I220: ='Wethers Input'!G58 -> 1 | K220: ='Wethers Input'!H58 -> 1 | X220: • use multi-active (combination) products | AA220: Total | AB220: =SUM(AB215:AB219) -> 1000 | AD220: =SUM(AD214:AD219) -> 212.3653636 | AE220: =SUM(AE214:AE219) -> 30 | AG220: =SUM(AG214:AG219) -> 182.3653636 | AH220: =SUM(AH214:AH219) -> 1000
AA221: d.s.e's | AB221: =AB220*AC206 -> 1200
C228: TOTAL | E228: =SUM(E220:E227) -> 1000 | G228: =SUMPRODUCT($E$220:$E$227,G220:G227) -> 1000 | I228: =SUMPRODUCT($E$220:$E$227,I220:I227) -> 1000 | K228: =SUMPRODUCT($E$220:$E$227,K220:K227) -> 1000 | X228: • use short-acting products
BH229: For more information: https://wormboss.com.au/tests-tools/drench-rotation-versus-combinations-to-combat-drench-resistance/
G231: Wool Cut kg/hd | I231: Total | K231: Wool Price
C232: SHEARING | E232: Number | I232: Greasy kg | K232: cents/kg
C233: Wethers | E233: =AB220-AE220*0.5 -> 985 | G233: ='Wethers Input'!F44 -> 7.5 | I233: =G233*E233 -> 7387.5 | K233: ='Wethers Input'!G44 -> 807.84
C234: TOTAL | E234: =E233 -> 985 | I234: =I233 -> 7387.5
C237: STOCK VALUE | G237: Value
E238: Number | G238: $/head
C239: Wethers | E239: =E199 -> 1000 | G239: =(G213+G210)/2 -> 60
C240: TOTAL | E240: =E239 -> 1000
G244: Hay Cost ($/T) | I244: Kg Fed per Week | K244: No of Weeks Feeding | M244: Total Cost ($)
C245: FEEDING | E245: Number
C246: Wethers | E246: ='Wethers Input'!E70 -> 1000 | G246: ='Wethers Input'!F70 -> 220 | I246: ='Wethers Input'!G70 -> 1.5 | K246: ='Wethers Input'!H70 -> 10 | M246: =(E246*G246*I246*K246)/1000 -> 3300
E247: ='Wethers Input'!E71 -> 0 | G247: ='Wethers Input'!F71 -> 0 | I247: ='Wethers Input'!G71 -> 0 | K247: ='Wethers Input'!H71 -> 0 | M247: =(E247*G247*I247*K247)/1000 -> 0
E248: ='Wethers Input'!E72 -> 0 | G248: ='Wethers Input'!F72 -> 0 | I248: ='Wethers Input'!G72 -> 0 | K248: ='Wethers Input'!H72 -> 0 | M248: =(E248*G248*I248*K248)/1000 -> 0
G249: Grain Cost ($/T) | I249: Kg Fed per Week | K249: No of Weeks Feeding | M249: Total Cost ($)
E250: Number
C251: Wethers | E251: ='Wethers Input'!E76 -> 1000 | G251: ='Wethers Input'!F76 -> 320 | I251: ='Wethers Input'!G76 -> 0 | K251: ='Wethers Input'!H76 -> 0 | M251: =(E251*G251*I251*K251)/1000 -> 0
E252: ='Wethers Input'!E77 -> 0 | G252: ='Wethers Input'!F77 -> 0 | I252: ='Wethers Input'!G77 -> 0 | K252: ='Wethers Input'!H77 -> 0 | M252: =(E252*G252*I252*K252)/1000 -> 0
E253: ='Wethers Input'!E78 -> 0 | G253: ='Wethers Input'!F78 -> 0 | I253: ='Wethers Input'!G78 -> 0 | K253: ='Wethers Input'!H78 -> 0 | M253: =(E253*G253*I253*K253)/1000 -> 0
C254: TOTAL FEED COST | M254: =SUM(M246:M248,M251:M253) -> 3300
C259: GM SENSITIVITY
C260: Gross Margin/DSE | E260: Average Greasy Wool Price (c/Kg)
G261: 750 | I261: 800 | K261: 808 | M261: 950 | O261: 1000 | Q261: 1050
E262: 50 | G262: =(G$261*$E$34*(1-$K$131)/100+$E262*$E$35*(1-$K$124)-($Q$170-$Q$124-$Q$131))/$E$197 -> 21.95359234 | I262: =(I$261*$E$34*(1-$K$131)/100+$E262*$E$35*(1-$K$124)-($Q$170-$Q$124-$Q$131))/$E$197 -> 24.98554546 | K262: =(K$261*$E$34*(1-$K$131)/100+$E262*$E$35*(1-$K$124)-($Q$170-$Q$124-$Q$131))/$E$197 -> 25.47065796 | M262: =(M$261*$E$34*(1-$K$131)/100+$E262*$E$35*(1-$K$124)-($Q$170-$Q$124-$Q$131))/$E$197 -> 34.08140484 | O262: =(O$261*$E$34*(1-$K$131)/100+$E262*$E$35*(1-$K$124)-($Q$170-$Q$124-$Q$131))/$E$197 -> 37.11335796 | Q262: =(Q$261*$E$34*(1-$K$131)/100+$E262*$E$35*(1-$K$124)-($Q$170-$Q$124-$Q$131))/$E$197 -> 40.14531109
E263: 55 | G263: 22.67165596 | I263: 25.70360908 | K263: 26.18872158 | M263: 34.79946846 | O263: 37.83142158 | Q263: 40.86337471
C264: Average Sheep Sale Price($/hd) | E264: 60 | G264: 23.38971958 | I264: 26.4216727 | K264: 26.9067852 | M264: 35.51753208 | O264: 38.5494852 | Q264: 41.58143833
E265: 65 | G265: 24.1077832 | I265: 27.13973632 | K265: 27.62484882 | M265: 36.2355957 | O265: 39.26754882 | Q265: 42.29950195
E266: 70 | G266: 24.82584682 | I266: 27.85779994 | K266: 28.34291244 | M266: 36.95365932 | O266: 39.98561244 | Q266: 43.01756557
E267: 75 | G267: 25.54391043 | I267: 28.57586356 | K267: 29.06097606 | M267: 37.67172293 | O267: 40.70367606 | Q267: 43.73562918
E268: 80 | G268: 26.26197405 | I268: 29.29392718 | K268: 29.77903968 | M268: 38.38978655 | O268: 41.42173968 | Q268: 44.4536928
E269: 85 | G269: 26.98003767 | I269: 30.0119908 | K269: 30.4971033 | M269: 39.10785017 | O269: 42.1398033 | Q269: 45.17175642
E270: 90 | G270: 27.69810129 | I270: 30.73005442 | K270: 31.21516692 | M270: 39.82591379 | O270: 42.85786692 | Q270: 45.88982004
E271: 95 | G271: 28.41616491 | I271: 31.44811804 | K271: 31.93323054 | M271: 40.54397741 | O271: 43.57593054 | Q271: 46.60788366
E272: 100 | G272: 29.13422853 | I272: 32.16618166 | K272: 32.65129416 | M272: 41.26204103 | O272: 44.29399416 | Q272: 47.32594728

Sheet Cleanskin Sheep Input (hidden)
C2: ="CLEANSKIN SHEEP GROSS MARGIN - "&TEXT(m_year,"0000") -> CLEANSKIN SHEEP GROSS MARGIN - 2024
C4: GENERAL INFORMATION
C5: This represents a fully wool shedding self-replacing flock, with no shearing, crutching or lice control. Assumes only one lambing each year. Following are the various assumptions used in the calculation of the Gross Margin. Cells with yellow highlight can be changed. No allowance has been made for pasture expenses such as seed, fertiliser and chemicals. Refer to pasture gross margins in the “Cropping Gross Margin Plan” for annual and perennial pasture costs. Use the livestock gross margin per DSE as income for the pasture gross margin.
C7: Ewes mated | E7: 1000
C8: Age ewes 1st mating | E8: 1 | L8: Average Weaning Perentage
C9: Age ewes sold | E9: 6.5 | M9: Agricultural | N9: Pastoral
C10: Av Weaning % | E10: 1.5 | L10: Av % | M10: 1.5 | N10: 1.3
C11: Ram percentage | E11: 0.025
C12: Years Rams Kept | E12: 4
C13: Flock death Rate | E13: 0.03
C17: LIVESTOCK SALES | E17: Price/Hd | F17: Number | G17: Total | L17: Estimated 2023 Sheep Sale Prices
C18: c.f.a Ewes | E18: 70 | F18: ='Cleanskin Sheep'!AG220 -> 203.9596235 | G18: =E18*ROUND(F18,0) -> 14280 | M18: Agricultural | N18: Pastoral
C19: c.f.a Rams | E19: 25 | F19: ='Cleanskin Sheep'!AG244 -> 5.788387001 | G19: =E19*ROUND(F19,0) -> 150 | L19: Store lambs 35kg lwt | M19: 155 | N19: 145
C20: ewe hoggets | E20: 140 | F20: ='Cleanskin Sheep'!AG222 -> 493.5403765 | G20: =E20*ROUND(F20,0) -> 69160 | L20: Wether lambs 55 kg lwt | M20: 200 | N20: 190
C21: wether lambs | E21: 138 | F21: ='Cleanskin Sheep'!AG230 -> 750 | G21: =E21*ROUND(F21,0) -> 103500 | L21: Cast for age ewes | M21: 170 | N21: 150
L22: Cast for age rams | M22: 140 | N22: 120
L24: Cast for age rams | M24: 140 | N24: 120
C25: TOTAL SALES | F25: =SUM(F18:F23) -> 1453.288387 | G25: =SUM(G18:G23) -> 187090
C28: LIVESTOCK PURCHASES | E28: Price/Hd | F28: Number | G28: Total
C30: Rams | E30: 1000 | F30: =ROUND('Cleanskin Sheep'!AD244,0) -> 7 | G30: =E30*F30 -> 7000
C32: TOTAL PURCHASES | F32: =SUM(F29:F30) -> 7 | G32: =SUM(G29:G30) -> 7000
C54: STOCK HEALTH REQUIREMENTS | E54: =HYPERLINK("http://paraboss.com.au","for more info on drench, lice and blowfly product selection refer to www.paraboss.com.au") -> for more info on drench, lice and blowfly product selection refer to www.paraboss.com.au
G55: Number of times
E56: Number | F56: Drench | G56: Vacc. | H56: Blowfly | I56: Lice
C57: Ewes | E57: ='Cleanskin Sheep'!E220 -> 1000 | F57: 1 | G57: 1
C58: Ewe hoggets | E58: ='Cleanskin Sheep'!E221 -> 750 | F58: 1 | G58: 1
C59: Wether weaners | E59: ='Cleanskin Sheep'!E222 -> 0 | F59: 1 | G59: 1
C60: Lambs | E60: ='Cleanskin Sheep'!E223 -> 1500 | F60: 1 | G60: 2
C61: Rams | E61: ='Cleanskin Sheep'!E224 -> 25 | F61: 2 | G61: 1
C63: TOTAL | E63: =SUM(E57:E61) -> 3275 | F63: =SUMPRODUCT($E$57:$E$61,F57:F61) -> 3300 | G63: =SUMPRODUCT($E$57:$E$61,G57:G61) -> 4775 | H63: =SUMPRODUCT($E$57:$E$61,H57:H61) -> 0 | I63: =SUMPRODUCT($E$57:$E$61,I57:I61) -> 0
C66: FEEDING
C67: HAY | F67: Hay | G67: Kgs Fed | H67: No Weeks | I67: Total
E68: Number | F68: Cost ($/T) | G68: per Week | H68: of Feeding | I68: Cost ($)
C69: Hay | E69: ='Cleanskin Sheep'!E220 -> 1000 | F69: 220 | G69: 20 | H69: 1 | I69: =(H69*G69*E69)/1000*F69 -> 4400
I70: 0
I71: 0
I72: 0
I73: 0
I74: 0
C76: GRAIN | F76: Grain | G76: Kgs Fed | H76: No Weeks | I76: Total
E77: Number | F77: Cost ($/T) | G77: per Week | H77: of Feeding | I77: Cost ($)
C78: Oats/barley | E78: ='Cleanskin Sheep'!E220 -> 1000 | F78: 320 | G78: 24 | H78: 1 | I78: =(H78*G78*E78)/1000*F78 -> 7680
C79: Lupins | E79: ='Cleanskin Sheep'!E221 -> 750 | F79: 370 | G79: 10 | H79: 1 | I79: =(H79*G79*E79)/1000*F79 -> 2775
I80: =(H80*G80*E80)/1000*F80 -> 0
C82: Supplements | G82: Kgs Fed | H82: No weeks | I82: Total
E83: Number | F83: Cost ($/kg) | G83: per week | H83: of Feeding | I83: Cost ($)
I84: =(H84*G84*E84)*F84 -> 0
I85: =(H85*G85*E85)*F85 -> 0
H87: Total Feed Cost | I87: =SUM(I69:I74,I78:I82,I84:I85) -> 14855

Sheet Cleanskin Sheep (hidden)
C1: CLEANSKIN SHEEP
C2: =UPPER(Var_Animal)&" GROSS MARGIN - "&TEXT(m_year,"0000") -> CLEANSKIN SHEEP GROSS MARGIN - 2024
C4: ASSUMPTIONS
O6: Total DSE's | Q6: =E197 -> 2950
C7: No. of breeding ewes | E7: ='Cleanskin Sheep Input'!$E$7 -> 1000 | O7: Stocking Rate (DSE/Ha) | Q7: =E196 -> 6
C32: INCOME | Q32: $
C35: Sales | E35: =ROUND(E214,0) -> 1453 | G35: animals | I35: av price | K35: =G214 -> 128.7356327 | M35: /head | Q35: =I214 -> 187090
C37: Gross Income | Q37: =SUM(Q34:Q35) -> 187090
AA45: STOCK VALUE AND D.S.E REQUIREMENT
C46: VARIABLE COSTS
C75: Marking | K75: Rate
C76: Lamb marking | E76: =E199*E203 -> 1500 | G76: lambs | I76: Reset Rate> | J76: =GM_INFO!C91 | K76: =GM_INFO!C91 -> 1.25 | M76: /head | Q76: =K76*ROUND(E76,0) -> 1875
C77: Ear tags | E77: =E76 -> 1500 | G77: lambs | I77: Reset Rate> | J77: =GM_INFO!C92 | K77: =GM_INFO!C92 -> 0.45 | M77: /head | Q77: =K77*ROUND(E77,0) -> 675
AS79: RAMS | AT79: OPENING | AU79: NATURAL | AV79: PURCHASES | AW79: DEATHS | AX79: % sold | AY79: SALES | AZ79: CLOSING
AS80: AGE | AT80: NUMBERS | AU80: INCREASE | AX80: culled | AZ80: NUMBERS
AS82: 0.5-1.5yr | AV82: =AT83/(1-AX82) -> 0 | AW82: =AT82*$R$81 -> 0 | AZ82: =AT82+AU82+AV82-AW82-AY82 -> 0
AS83: 1.5-2.5yr | AT83: =IF(AY53=3,(AU51*AY51)/(1+(1-AY55)*(1-AX83)*(1+(1-AY55)*(1-AX84)*(1+(1-AY55)*(1-AX85)))),IF(AY53=4,(AU51*AY51)/(1+(1-AY55)*(1-AX83)*(1+(1-AY55)*(1-AX84)*(1+(1-AY55)*(1-AX85)*(1+(1-AY55)*(1-AX86))))),0)) -> 0 | AW83: =AT83*$R$81 -> 0 | AZ83: =AT83+AU83+AV83-AW83-AY83 -> 0
AS84: 2.5-3.5yr | AT84: =AZ83 -> 0 | AW84: =AT84*$R$81 -> 0 | AZ84: =AT84+AU84+AV84-AW84-AY84 -> 0
AS85: 3.5-4.5yr | AT85: =AZ84 -> 0 | AW85: =AT85*$R$81 -> 0 | AX85: =IF(AY53=3,100%,0) -> 0 | AY85: =(AT85-AW85)*AX85 -> 0 | AZ85: =AT85+AU85+AV85-AW85-AY85 -> 0
AS86: 4.5-5.5yr | AT86: =AZ85 -> 0 | AW86: =AT86*$R$81 -> 0 | AX86: =IF(AY53=4,100%,0) -> 0 | AY86: =AT86-AW86 -> 0 | AZ86: =AT86+AU86+AV86-AW86-AY86 -> 0
AT87: =AT82+AT83+AT84+AT85+AT86 -> 0 | AV87: =AV82+AV83+AV84+AV85+AV86 -> 0 | AW87: =AW82+AW83+AW84+AW85+AW86 -> 0 | AY87: =AY82+AY83+AY84+AY85+AY86 -> 0 | AZ87: =AZ82+AZ83+AZ84+AZ85+AZ86 -> 0
AS88: d.s.e's | AT88: =AT87*AE49 -> 0
C89: Animal Health
C90: Drench | E90: =G228 -> 3300 | G90: sheep | I90: Reset Rate> | J90: =GM_INFO!C69 | K90: =GM_INFO!C69 -> 0.552 | M90: /head | Q90: =K90*ROUND(E90,0) -> 1821.6
C91: Vaccinate | E91: =I228 -> 4775 | G91: sheep | I91: Reset Rate> | J91: =GM_INFO!C72 | K91: =GM_INFO!C72 -> 0.328 | M91: /head | Q91: =K91*ROUND(E91,0) -> 1566.2
C92: Blowfly control | E92: =K228 -> 0 | G92: sheep | I92: Reset Rate> | J92: =GM_INFO!C76 | K92: =GM_INFO!C76 -> 1.56 | M92: /head | Q92: =K92*ROUND(E92,0) -> 0
C93: Lice control | E93: =M228 -> 0 | G93: sheep | I93: Reset Rate> | J93: =GM_INFO!C66 | K93: =GM_INFO!C66 -> 1.9875 | M93: /head | Q93: =K93*ROUND(E93,0) -> 0
C104: Stock purchases
C105: Purchases | E105: =ROUND(AD244,0) -> 7 | G105: rams | I105: Reset Rate> | J105: ='Cleanskin Sheep Input'!E30 | K105: ='Cleanskin Sheep Input'!E30 -> 1000 | M105: /head | Q105: =K105*E105 -> 7000
C117: Sale Costs
C118: Freight
C119: ewes | E119: =E210 -> 203.9596235 | G119: sheep | I119: Reset Rate> | J119: =GM_INFO!B161 | K119: =GM_INFO!B162 -> 7 | M119: /head | Q119: =K119*ROUND(E119,0) -> 1428
C120: rams | E120: =E211 -> 5.788387001 | G120: sheep | I120: Reset Rate> | J120: =GM_INFO!B165 | K120: =GM_INFO!B166 -> 7 | M120: /head | Q120: =K120*ROUND(E120,0) -> 42
C121: hoggets | E121: =E212 -> 493.5403765 | G121: sheep | I121: Reset Rate> | J121: =GM_INFO!B166 | K121: =GM_INFO!B167 -> 7 | M121: /head | Q121: =K121*ROUND(E121,0) -> 3458
C122: lambs | E122: =E213 -> 750 | G122: sheep | I122: Reset Rate> | J122: =GM_INFO!B163 | K122: =GM_INFO!B164 -> 7 | M122: /head | Q122: =K122*ROUND(E122,0) -> 5250
C123: Stock selling charges
C124: Commission/insurance | I124: Reset Rate> | J124: =GM_INFO!C98 | K124: =GM_INFO!C98 -> 0.055 | M124: gross $ | Q124: =K124*Q35 -> 10289.95
C125: Yard fees | E125: =E214 -> 1453.288387 | G125: sheep | I125: Reset Rate> | J125: =GM_INFO!C99 | K125: =GM_INFO!C99 -> 0.85 | M125: /head | Q125: =K125*ROUND(E125,0) -> 1235.05
C126: Levy trans-sheep | E126: =SUM(E210:E212) -> 703.288387 | G126: sheep | I126: Reset Rate> | J126: =GM_INFO!C100 | K126: =GM_INFO!C100 -> 0.2 | M126: /head | Q126: =K126*ROUND(E126,0) -> 140.6
C127: Levy trans-lambs | E127: =E213 -> 750 | G127: sheep | I127: Reset Rate> | J127: =GM_INFO!C101 | K127: =GM_INFO!C101 -> 1.5 | M127: /head | Q127: =K127*ROUND(E127,0) -> 1125
C128: SA sheep industry levy | E128: =E214 -> 1453.288387 | G128: sheep | I128: Reset Rate> | J128: =GM_INFO!C102 | K128: =GM_INFO!C102 -> 0.67 | M128: /head | Q128: =K128*ROUND(E128,0) -> 973.51
C143: Feed and Other Costs
C144: Hand Feeding | Q144: ='Cleanskin Sheep Input'!I87 -> 14855
C146: Insurance | E146: =E229 -> 421609.1971 | G146: value | I146: Reset Rate> | J146: =GM_INFO!B157 | K146: =GM_INFO!B158 -> 4.5 | M146: /$'000 | Q146: =K146/1000*E146 -> 1897.241387
C147: Water | E147: =$E$197 -> 2950 | G147: DSE's | I147: Reset Rate> | J147: =GM_INFO!H129 | K147: =GM_INFO!H130 -> 2.5 | M147: /DSE's | Q147: =K147*E147 -> 7375
C148: Veh Fuel, R&M | E148: =$E$197 -> 2950 | G148: DSE's | I148: Reset Rate> | J148: =GM_INFO!H130 | K148: =GM_INFO!H131 -> 1.5 | M148: /DSE's | Q148: =K148*E148 -> 4425
C149: Other | E149: =$E$197 -> 2950 | G149: DSE's | I149: Reset Rate> | J149: =GM_INFO!H131 | K149: =GM_INFO!H132 -> 0.5 | M149: /DSE's | Q149: =K149*E149 -> 1475
C170: TOTAL VARIABLE COSTS | Q170: =SUM(Q48:Q166) -> 66907.15139
C172: GROSS MARGIN TOTAL | Q172: =Q37-Q170 -> 120182.8486
C174: GROSS MARGIN/DSE | Q174: =Q172/Q6 -> 40.73994868
C194: PRODUCTION DATA
C196: Stocking rate (DSE/Ha) | E196: 6 | K196: Culling Rate (% from each group) | AA196: SHEEP GROSS MARGIN
C197: Total DSE's | E197: =O228 -> 2950 | K197: Age Group | M197: Ewes | O197: Wethers | AA197: PRIME LAMB -
C198: SHEEP GRAZING AREA | E198: =E197/E196 -> 491.6666667 | K198: 0.5 | M198: =AF213 -> 0 | O198: =AF227 -> 1
C199: Number of ewes mated | E199: ='Cleanskin Sheep Input'!E7 -> 1000 | K199: 1.5 | M199: 0.6784060158 | O199: 0
C200: Ram percentage | E200: ='Cleanskin Sheep Input'!E11 -> 0.025 | K200: 2.5 | M200: 0.05 | O200: 0
C201: Years rams kept | E201: ='Cleanskin Sheep Input'!E12 -> 4 | K201: 3.5 | M201: 0.05 | O201: 0
C202: Flock death rate | E202: ='Cleanskin Sheep Input'!E13 -> 0.03 | K202: 4.5 | M202: 0.05 | O202: 0 | AA202: Ewes mated | AC202: ='Cleanskin Sheep Input'!E7 -> 1000 | AF202: Ram % | AG202: =E200 -> 0.025
B203: =VLOOKUP(r[0]c3&"No Ops",CHOOSE({1,2},tbl_ops[Name]&tbl_ops[Category],INDIRECT("tbl_ops["&var_crop&"]")),2,0) | C203: Average weaning rate | E203: =AC205 -> 1.5 | K203: 5.5 | M203: 0.05 | O203: 0 | AA203: Age at 1st mating | AC203: ='Cleanskin Sheep Input'!E8 -> 1 | AF203: Price of rams | AG203: ='Cleanskin Sheep Input'!E30 -> 1000
B204: =VLOOKUP(r[0]c3&"No Ops",CHOOSE({1,2},tbl_ops[Name]&tbl_ops[Category],INDIRECT("tbl_ops["&var_crop&"]")),2,0) | C204: Age wethers sold | E204: =AG205 -> 0.5 | K204: 6.5 | M204: 1 | O204: 0 | AA204: Age ewes sold | AC204: ='Cleanskin Sheep Input'!E9 -> 6.5 | AF204: Years rams kept | AG204: =E201 -> 4
B205: =VLOOKUP(r[0]c3&"No Ops",CHOOSE({1,2},tbl_ops[Name]&tbl_ops[Category],INDIRECT("tbl_ops["&var_crop&"]")),2,0) | AA205: Av Weaning % | AC205: ='Cleanskin Sheep Input'!E10 -> 1.5 | AF205: Age wethers sold | AG205: 0.5
B206: =VLOOKUP(r[0]c3&"No Ops",CHOOSE({1,2},tbl_ops[Name]&tbl_ops[Category],INDIRECT("tbl_ops["&var_crop&"]")),2,0) | AA206: dse/ewe | AC206: 1.6 | AF206: Flock death rate | AG206: =E202 -> 0.03
B208: =VLOOKUP(r[0]c3&var_rain,CHOOSE({1,2},tbl_ops[Name]&tbl_ops[Rainfall],INDIRECT("tbl_ops["&var_crop&"]")),2,0)
B209: =VLOOKUP(r[0]c3&var_rain,CHOOSE({1,2},tbl_ops[Name]&tbl_ops[Rainfall],INDIRECT("tbl_ops["&var_crop&"]")),2,0) | C209: SALES | E209: Number | G209: Price/hd | I209: Total
B210: =VLOOKUP(r[0]c3&var_rain,CHOOSE({1,2},tbl_ops[Name]&tbl_ops[Rainfall],INDIRECT("tbl_ops["&var_crop&"]")),2,0) | C210: c.f.a ewes | E210: =AG220 -> 203.9596235 | G210: ='Cleanskin Sheep Input'!E18 -> 70 | I210: =ROUND(E210,0)*G210 -> 14280
B211: =VLOOKUP(r[0]c3&var_rain,CHOOSE({1,2},tbl_ops[Name]&tbl_ops[Rainfall],INDIRECT("tbl_ops["&var_crop&"]")),2,0) | C211: c.f.a rams | E211: =AG244 -> 5.788387001 | G211: ='Cleanskin Sheep Input'!E19 -> 25 | I211: =ROUND(E211,0)*G211 -> 150 | AA211: EWES | AB211: OPENING | AC211: NATURAL | AD211: PURCHASES | AE211: DEATHS | AF211: % sold | AG211: SALES | AH211: CLOSING
C212: Ewe hoggets | E212: =AG222 -> 493.5403765 | G212: ='Cleanskin Sheep Input'!E20 -> 140 | I212: =ROUND(E212,0)*G212 -> 69160 | AA212: AGE | AB212: NUMBERS | AC212: INCREASE | AF212: culled | AH212: NUMBERS
C213: Wether lambs | E213: =AG230 -> 750 | G213: ='Cleanskin Sheep Input'!E21 -> 138 | I213: =ROUND(E213,0)*G213 -> 103500 | AA213: 0-0.5yr | AC213: =AC202*AC205/2 -> 750 | AE213: =AB213*$AG$206 -> 0 | AF213: 0 | AG213: =AC213*AF213 -> 0 | AH213: =AB213+AC213+AD213-AE213-AG213 -> 750
C214: TOTAL | E214: =SUM(E210:E213) -> 1453.288387 | G214: =I214/E214 -> 128.7356327 | I214: =SUM(I210:I213) -> 187090 | AA214: 0.5-1.5yr | AB214: =AH213 -> 750 | AE214: 22.5 | AF214: =(AB214*(1-AG206)-AB215)/(AB214-AE214) -> 0.6784060158 | AG214: =AB214-AE214-AB215 -> 493.5403765 | AH214: 233.9596235
AA215: 1.5-2.5yr | AB215: =AC202/(1+(1-AG206)*(1-AF215)*(1+(1-AG206)*(1-AF216)*(1+(1-AG206)*(1-AF217)*(1+(1-AG206)*(1-AF218))))) -> 233.9596235 | AE215: 7.018788705 | AF215: 0.05 | AG215: =(AB215-AE215)*AF215 -> 11.34704174 | AH215: 215.5937931
AA216: 2.5-3.5yr | AB216: =AH215 -> 215.5937931 | AE216: 6.467813792 | AF216: 0.05 | AG216: =(AB216-AE216)*AF216 -> 10.45629896 | AH216: 198.6696803
AA217: 3.5-4.5yr | AB217: =AH216 -> 198.6696803 | AE217: 5.960090409 | AF217: 0.05 | AG217: =(AB217-AE217)*AF217 -> 9.635479495 | AH217: 183.0741104
E218: Number of Times | AA218: 4.5-5.5yr | AB218: =AH217 -> 183.0741104 | AE218: 5.492223312 | AF218: =IF(AC204=5.5,1,5%) -> 0.05 | AG218: =(AB218-AE218)*AF218 -> 8.879094354 | AH218: =AB218+AC218+AD218-AE218-AG218 -> 168.7027927
C219: STOCK HEALTH REQUIREMENTS | E219: Number | G219: Drench | I219: Vacc. | K219: Blowfly | M219: Lice | O219: DSE | X219: Rotation between different drench groups generally does little to slow development of drench | AA219: 5.5-6.5yr | AB219: =AH218 -> 168.7027927 | AE219: 5.061083782 | AF219: =IF(AC204=6.5,100%,0) -> 1 | AG219: =(AB219-AE219)*AF219 -> 163.641709 | AH219: 0
C220: Ewes | E220: =ROUND('Cleanskin Sheep Input'!E7,0) -> 1000 | G220: ='Cleanskin Sheep Input'!F57 -> 1 | I220: ='Cleanskin Sheep Input'!G57 -> 1 | K220: ='Cleanskin Sheep Input'!H57 -> 0 | M220: ='Cleanskin Sheep Input'!I57 -> 0 | O220: 2 | X220: resistance and should not be used at the expense of these three highly effective practices: | AA220: Ewes | AB220: =SUM(AB215:AB219) -> 1000 | AC220: =SUM(AC213:AC217) -> 750 | AD220: =SUM(AD213:AD219) -> 0 | AE220: =SUM(AE213:AE218) -> 47.43891622 | AG220: =SUM(AG215:AG219) -> 203.9596235 | AH220: =SUM(AH214:AH218) -> 1000
C221: Ewe hoggets | E221: =ROUND(AB222,0) -> 750 | G221: ='Cleanskin Sheep Input'!F58 -> 1 | I221: ='Cleanskin Sheep Input'!G58 -> 1 | K221: ='Cleanskin Sheep Input'!H58 -> 0 | M221: ='Cleanskin Sheep Input'!I58 -> 0 | O221: 1.2 | X221: • use products most effective on your property | AA221: d.s.e's | AB221: =AB214+AC206*(AB215+AB216+AB217+AB218) -> 2080.075532
C222: Wether weaners | E222: =ROUND(AB228,0) -> 0 | G222: ='Cleanskin Sheep Input'!F59 -> 1 | I222: ='Cleanskin Sheep Input'!G59 -> 1 | K222: ='Cleanskin Sheep Input'!H59 -> 0 | M222: ='Cleanskin Sheep Input'!I59 -> 0 | O222: 1 | X222: • use multi-active (combination) products | AA222: Ewe Hoggets | AB222: =AB214 -> 750 | AG222: =AG214 -> 493.5403765 | AH222: =AH213 -> 750
C223: Lambs | E223: =ROUND(AC213+AC227,0) -> 1500 | G223: ='Cleanskin Sheep Input'!F60 -> 1 | I223: ='Cleanskin Sheep Input'!G60 -> 2 | K223: ='Cleanskin Sheep Input'!H60 -> 0 | M223: ='Cleanskin Sheep Input'!I60 -> 0 | O223: 0 | X223: • use short-acting products | AA223: Ewe lambs | AG223: =AG213 -> 0
C224: Rams | E224: =ROUND(AB244,0) -> 25 | G224: ='Cleanskin Sheep Input'!F61 -> 2 | I224: ='Cleanskin Sheep Input'!G61 -> 1 | K224: ='Cleanskin Sheep Input'!H61 -> 0 | M224: ='Cleanskin Sheep Input'!I61 -> 0 | O224: 2 | AA224: WETHERS | AB224: OPENING | AC224: NATURAL | AD224: PURCHASES | AE224: DEATHS | AF224: % sold | AG224: SALES | AH224: CLOSING | BG224: For more information: https://wormboss.com.au/tests-tools/drench-rotation-versus-combinations-to-combat-drench-resistance/
AA225: AGE | AB225: NUMBERS | AC225: INCREASE | AF225: culled | AH225: NUMBERS
AA227: 0-0.5yr | AC227: =AC202*AC205/2 -> 750 | AE227: =AB227*$AG$206 -> 0 | AF227: =IF(AG205=0.5,100%,0) -> 1 | AG227: =AC227*AF227 -> 750 | AH227: =AB227+AC227+AD227-AE227-AG227 -> 0
C228: TOTAL | E228: =SUM(E220:E227) -> 3275 | G228: =SUMPRODUCT($E$220:$E$227,G220:G227) -> 3300 | I228: =SUMPRODUCT($E$220:$E$227,I220:I227) -> 4775 | K228: =SUMPRODUCT($E$220:$E$227,K220:K227) -> 0 | M228: =SUMPRODUCT($E$220:$E$227,M220:M227) -> 0 | O228: =SUMPRODUCT($E$220:$E$227,O220:O227) -> 2950 | AA228: 0.5-1.5yr | AB228: =AH227 -> 0 | AE228: =AB228*$AG$206 -> 0 | AF228: =IF(AG205=1.5,100%,0) -> 0 | AG228: =(AB228-AE228)*AF228 -> 0 | AH228: =AB228+AC228+AD228-AE228-AG228 -> 0
C229: TOTAL VALUE | E229: =E228*G214 -> 421609.1971 | AA229: 1.5-2.5 | AB229: =AH228 -> 0 | AE229: =AB229*$AG$206 -> 0 | AF229: =IF(AG205=2.5,100%,0) -> 0 | AG229: =(AB229-AE229)*AF229 -> 0
AA230: Wth lambs | AB230: =AB227 -> 0 | AC230: =AC227 -> 750 | AD230: =AD227 -> 0 | AE230: 0 | AG230: =AG227 -> 750 | AH230: 0
AA231: Wth hgts | AB231: 0 | AC231: 0 | AD231: 0 | AE231: 0 | AG231: 0 | AH231: 0
AA232: Wethers | AB232: 0 | AC232: 0 | AD232: 0 | AE232: 0 | AG232: 0 | AH232: 0
AA233: d.s.e's | AB233: =AB231+AB232 -> 0
AA236: RAMS | AB236: OPENING | AC236: NATURAL | AD236: PURCHASES | AE236: DEATHS | AF236: % sold | AG236: SALES | AH236: CLOSING
AA237: AGE | AB237: NUMBERS | AC237: INCREASE | AF237: culled | AH237: NUMBERS
AA239: 0.5-1.5yr | AD239: =AB240/(1-AF239) -> 6.538387001 | AH239: =AB239+AC239+AD239-AE239-AG239 -> 6.538387001
AA240: 1.5-2.5yr | AB240: =IF(AG204=3,(AC202*AG202)/(1+(1-AG206)*(1-AF240)*(1+(1-AG206)*(1-AF241)*(1+(1-AG206)*(1-AF242)))),IF(AG204=4,(AC202*AG202)/(1+(1-AG206)*(1-AF240)*(1+(1-AG206)*(1-AF241)*(1+(1-AG206)*(1-AF242)*(1+(1-AG206)*(1-AF243))))),0)) -> 6.538387001 | AE240: =AB240*$AG$206 -> 0.19615161 | AF240: 0 | AG240: =(SUM(AB240:AD240)-AE240)*AF240 -> 0 | AH240: =AB240+AC240+AD240-AE240-AG240 -> 6.342235391
AA241: 2.5-3.5yr | AB241: =AH240 -> 6.342235391 | AE241: =AB241*$AG$206 -> 0.1902670617 | AF241: 0 | AG241: =(SUM(AB241:AD241)-AE241)*AF241 -> 0 | AH241: =AB241+AC241+AD241-AE241-AG241 -> 6.151968329
AA242: 3.5-4.5yr | AB242: =AH241 -> 6.151968329 | AE242: =AB242*$AG$206 -> 0.1845590499 | AF242: =IF(AG204=3,100%,0) -> 0 | AG242: =(SUM(AB242:AD242)-AE242)*AF242 -> 0 | AH242: =AB242+AC242+AD242-AE242-AG242 -> 5.967409279
AA243: 4.5-5.5yr | AB243: =AH242 -> 5.967409279 | AE243: =AB243*$AG$206 -> 0.1790222784 | AF243: =IF(AG204=4,100%,0) -> 1 | AG243: =AB243-AE243 -> 5.788387001 | AH243: =AB243+AC243+AD243-AE243-AG243 -> 0
G244: Hay Cost ($/T) | I244: Kg Fed per Week | K244: No of Weeks Feeding | M244: Total Cost ($) | AB244: =AB239+AB240+AB241+AB242+AB243 -> 25 | AD244: =AD239+AD240+AD241+AD242+AD243 -> 6.538387001 | AE244: =AE239+AE240+AE241+AE242+AE243 -> 0.75 | AG244: =AG239+AG240+AG241+AG242+AG243 -> 5.788387001 | AH244: =AH239+AH240+AH241+AH242+AH243 -> 25
C245: FEEDING | E245: Number | AA245: d.s.e's | AB245: =AB244*2 -> 50
C246: Ewes | E246: ='Cleanskin Sheep Input'!E69 -> 1000 | G246: ='Cleanskin Sheep Input'!F69 -> 220 | I246: ='Cleanskin Sheep Input'!G69 -> 20 | K246: ='Cleanskin Sheep Input'!H69 -> 1 | M246: =(E246*G246*I246*K246)/1000 -> 4400
C247: Weaner | E247: ='Cleanskin Sheep Input'!E70 -> 0 | G247: ='Cleanskin Sheep Input'!F70 -> 0 | I247: ='Cleanskin Sheep Input'!G70 -> 0 | K247: ='Cleanskin Sheep Input'!H70 -> 0 | M247: =(E247*G247*I247*K247)/1000 -> 0
C248: Ewe hoggets | E248: ='Cleanskin Sheep Input'!E71 -> 0 | G248: ='Cleanskin Sheep Input'!F71 -> 0 | I248: ='Cleanskin Sheep Input'!G71 -> 0 | K248: ='Cleanskin Sheep Input'!H71 -> 0 | M248: =(E248*G248*I248*K248)/1000 -> 0
C249: Lambs | E249: ='Cleanskin Sheep Input'!E72 -> 0 | G249: ='Cleanskin Sheep Input'!F72 -> 0 | I249: ='Cleanskin Sheep Input'!G72 -> 0 | K249: ='Cleanskin Sheep Input'!H72 -> 0 | M249: =(E249*G249*I249*K249)/1000 -> 0
C250: Rams | E250: ='Cleanskin Sheep Input'!E73 -> 0 | G250: ='Cleanskin Sheep Input'!F73 -> 0 | I250: ='Cleanskin Sheep Input'!G73 -> 0 | K250: ='Cleanskin Sheep Input'!H73 -> 0 | M250: =(E250*G250*I250*K250)/1000 -> 0
G251: Grain Cost ($/T) | I251: Kg Fed per Week | K251: No of Weeks Feeding | M251: Total Cost ($)
E252: Number
C253: Ewes | E253: ='Cleanskin Sheep Input'!E78 -> 1000 | G253: ='Cleanskin Sheep Input'!F78 -> 320 | I253: ='Cleanskin Sheep Input'!G78 -> 24 | K253: ='Cleanskin Sheep Input'!H78 -> 1 | M253: =(E253*G253*I253*K253)/1000 -> 7680
C254: Weaner | E254: ='Cleanskin Sheep Input'!E79 -> 750 | G254: ='Cleanskin Sheep Input'!F79 -> 370 | I254: ='Cleanskin Sheep Input'!G79 -> 10 | K254: ='Cleanskin Sheep Input'!H79 -> 1 | M254: =(E254*G254*I254*K254)/1000 -> 2775
C255: Ewe hoggets | E255: ='Cleanskin Sheep Input'!E80 -> 0 | G255: ='Cleanskin Sheep Input'!F80 -> 0 | I255: ='Cleanskin Sheep Input'!G80 -> 0 | K255: ='Cleanskin Sheep Input'!H80 -> 0 | M255: =(E255*G255*I255*K255)/1000 -> 0
C256: Lambs | E256: ='Cleanskin Sheep Input'!E81 -> 0 | G256: ='Cleanskin Sheep Input'!F81 -> 0 | I256: ='Cleanskin Sheep Input'!G81 -> 0 | K256: ='Cleanskin Sheep Input'!H81 -> 0 | M256: =(E256*G256*I256*K256)/1000 -> 0
C257: Rams
C258: TOTAL FEED COST | M258: =SUM(M246:M250,M253:M257) -> 14855
C263: GM SENSITIVITY | AB263: Water,Fuel,Other | AE263: =SUM(Q146:Q149) -> 15172.24139 | AF263: Lamb Costs | AG263: No: | AH263: per head
C264: Gross Margin/DSE | E264: Average Weaning % | AB264: Animal health | AE264: =((E220*G220+E224*G224+AB215*G221)*K90+(E220*I220+E224*I224+AB215*I221)*K91+(E220*K220+E224*K224+AB215*K221)*K93) -> 1121.684469
G265: 1.3 | I265: 1.4 | K265: 1.5 | M265: 1.6 | O265: 1.7 | Q265: 1.8 | AB265: Stock Purchase | AE265: =Q105 -> 7000 | AF265: Marking | AG265: =E199*G265 -> 1300 | AH265: =SUM(K76:K77) -> 1.7
E266: 108.7356327 | G266: =(($E$199*(G$265*100)*$E266/200+($E$199*(G$265*100)/200-$AB$215-$AE$214)*$G$212)*(1-$K$124)+SUM($I$210:$I$211)-$AE$273-($E$199*(G$265*100)*$AH$270/100)-($E$199*(G$265*100)/200-$AB$215-$AE$214)*$AC$285)/$E$197 -> 22.51880122 | I266: 25.89556686 | K266: 29.27233251 | M266: 32.64909815 | O266: 36.02586379 | Q266: 39.40262943 | AB266: Freight | AC266: sheep | AE266: =SUM(Q119:Q121) -> 4928 | AF266: Animal health | AH266: =G223*K90+I223*K91+K223*K93 -> 1.208
E267: 113.7356327 | G267: 23.55990292 | I267: 27.0167533 | K267: 30.47360369 | M267: 33.93045408 | O267: 37.38730447 | Q267: 40.84415486 | AC267: Wool | AF267: Freight | AH267: =K122 -> 7
C268: Average Sheep Sale Price($/hd) | E268: 118.7356327 | G268: 24.60100461 | I268: 28.13793975 | K268: 31.67487488 | M268: 35.21181001 | O268: 38.74874515 | Q268: 42.28568028 | AB268: Commission on livestock sales | AE268: =SUM(I210:I212)*K124 -> 4597.45 | AF268: Yard Fees | AH268: =K125 -> 0.85
E269: 123.7356327 | G269: 25.64210631 | I269: 29.25912619 | K269: 32.87614607 | M269: 36.49316595 | O269: 40.11018583 | Q269: 43.7272057 | AB269: Yard fees | AE269: =SUM(E210:E211)*K125 -> 178.2858089 | AF269: Levies | AH269: =SUM(K127:K128) -> 2.17
E270: 128.7356327 | G270: 26.683208 | I270: 30.38031263 | K270: 34.07741725 | M270: 37.77452188 | O270: 41.4716265 | Q270: 45.16873113 | AB270: Levies | AE270: =SUM(E210:E211)*K126 -> 41.9496021 | AF270: TOTAL | AH270: =SUM(AH265:AH269) -> 12.928
E271: 133.7356327 | G271: 27.7243097 | I271: 31.50149907 | K271: 35.27868844 | M271: 39.05587781 | O271: 42.83306718 | Q271: 46.61025655 | AB271: SASheep Industry | AE271: =SUM(E210:E211)*K128 -> 140.531167
E272: 138.7356327 | G272: 28.76541139 | I272: 32.62268551 | K272: 36.47995963 | M272: 40.33723374 | O272: 44.19450786 | Q272: 48.05178198 | AB272: Feed & other costs | AE272: =M253+M246+AB215*G254*I254*K254/1000 -> 12945.65061
E273: 143.7356327 | G273: 29.80651309 | I273: 33.74387195 | K273: 37.68123081 | M273: 41.61858967 | O273: 45.55594854 | Q273: 49.4933074 | AE273: =SUM(AE263:AE272) -> 46125.79304
E274: 148.7356327 | G274: 30.84761478 | I274: 34.86505839 | K274: 38.882502 | M274: 42.89994561 | O274: 46.91738922 | Q274: 50.93483282
E275: 153.7356327 | G275: 31.88871648 | I275: 35.98624483 | K275: 40.08377318 | M275: 44.18130154 | O275: 48.27882989 | Q275: 52.37635825
E276: 158.7356327 | G276: 32.92981817 | I276: 37.10743127 | K276: 41.28504437 | M276: 45.46265747 | O276: 49.64027057 | Q276: 53.81788367
AC277: Sale Ewe Hog Cost
C279: FLOCK STRUCTURE | E279: This table shows the number of merino sheep in each age group at mating | AB279: Feed | AC279: =G254*K254/1000 -> 0.37
E280: Age Group | AC280: =G221*K90+I221*K91+K221*K92+M221*K93 -> 0.88
C281: Class of Sheep | E281: 0.5 y.o. | G281: 1.5 y.o. | I281: 2.5 y.o. | K281: 3.5 y.o. | M281: 4.5 y.o. | O281: 5.5 y.o. | Q281: 6.5 y.o. | AC281: =K121 -> 7
C282: Ewes | E282: =$AB214 -> 750 | G282: =$AB215 -> 233.9596235 | I282: =$AB216 -> 215.5937931 | K282: =$AB217 -> 198.6696803 | M282: =$AB218 -> 183.0741104 | O282: =$AB219 -> 168.7027927 | Q282: 0 | AC282: =K125 -> 0.85
C283: Wethers | E283: =$AB228 -> 0 | G283: =$AB229 -> 0 | I283: 0 | K283: 0 | M283: 0 | O283: 0 | Q283: 0 | AC283: =K126 -> 0.2
C284: Rams | G284: =$AB240 -> 6.538387001 | I284: =$AB241 -> 6.342235391 | K284: =$AB242 -> 6.151968329 | M284: =$AB243 -> 5.967409279 | O284: 0 | Q284: 0 | AC284: =K128 -> 0.67
AB285: Total | AC285: =SUM(AC279:AC284) -> 9.97

Sheet Beef Input (hidden)
C2: ="BEEF GROSS MARGIN - "&TEXT(m_year,"0000") -> BEEF GROSS MARGIN - 2024
C4: GENERAL INFORMATION
C5: Cells with yellow highlight can be changed. No allowance has been made for pasture expenses such as seed, fertiliser and chemicals. Refer to pasture gross margins in the “Cropping Gross Margin Plan” for annual and perennial pasture costs. Use the livestock gross margin per DSE as income for the pasture gross margin.
C7: Breeding Cow | E7: 14.5 | F7: DSE
C8: Calf Weaning | E8: 0.9
C9: Herd Deaths | E9: 0.03
C10: Cows c.f.a | E10: 10 | F10: years old
C11: Carry over calf | E11: 8 | F11: DSE
C12: Weaned @ | E12: 8 | F12: months
C13: Heifers mated @ | E13: 15 | F13: months
C14: Stocking rate | E14: 5 | F14: DSE/ha
C15: Cow breeding herd | E15: 100
C16: Bull Percentage | E16: 0.03
C17: Vealers bought for | E17: 1134
C18: sold for | E18: 1800
C19: after | E19: 3 | F19: years
C20: carryover to heavier weights | E20: 0.5 | F20: including heifer replacements
C21: months extra carry over | E21: 6
C22: Drench cows | E22: 2 | F22: x
C23: Drench calves | E23: 1 | F23: x
C24: Bulls bought for | E24: 9000
C25: Supplementary Feed
C26: Hay | E26: 68 | F26: tonne
C27: Grain | E27: 0 | F27: tonne

Sheet Beef (hidden)
C1: BEEF
C2: =UPPER(Var_Animal)&" GROSS MARGIN - "&TEXT(m_year,"0000") -> BEEF GROSS MARGIN - 2024
C4: ASSUMPTIONS | E4: (Breeding young cattle for local trade, grass fattened)
C7: Breeding Cow | E7: ='Beef Input'!$E$7 -> 14.5 | G7: DSE | O7: Cow breeding herd | Q7: ='Beef Input'!E15 -> 100
C8: Calf Weaning | E8: ='Beef Input'!E8 -> 0.9 | O8: Cows replaced per year | Q8: =(Q7/E10)+(Q7*E9) -> 13
C9: Herd Deaths | E9: ='Beef Input'!E9 -> 0.03 | O9: Bull Percentage | Q9: ='Beef Input'!E16 -> 0.03
C10: Cows c.f.a | E10: ='Beef Input'!E10 -> 10 | G10: years old | O10: Bulls bought for | Q10: ='Beef Input'!E17 -> 1134
C11: Uses | E11: =Q8 -> 13 | G11: heifers as replacements | O11: sold for | Q11: ='Beef Input'!E18 -> 1800
C12: Carry over calf | E12: ='Beef Input'!E11 -> 8 | G12: DSE | O12: after | Q12: ='Beef Input'!E19 -> 3 | R12: years
C13: Weaned @ | E13: ='Beef Input'!E12 -> 8 | G13: months | O13: carryover to heavier weights | Q13: ='Beef Input'!E20 -> 0.5
C14: Heifers mated @ | E14: ='Beef Input'!E13 -> 15 | G14: months | O14: months extra carry over | Q14: ='Beef Input'!E21 -> 6
C15: Stocking rate | E15: ='Beef Input'!E14 -> 5 | G15: DSE/ha | O15: Herd DSE | Q15: =(Q7*E7)+(Q7*Q9*20)+(E11*E12*((E14-E13)/12))+(E11*E7*(24-E14)/12)+(E36*E12) -> 1960.041667
C16: Area required | E16: =Q15/E15 -> 392.0083333 | G16: hectares | O16: Drench cows | Q16: ='Beef Input'!E22 -> 2
O17: Drench calves | Q17: ='Beef Input'!E23 -> 1
C32: INCOME | Q32: $
I34: kg liveweight | M34: /kg L/W
B35: Stock Sales | D35: vealers | E35: =(1-Q13)*(Q7*E8) -> 45 | G35: Reset Rate> | H35: =GM_INFO!B170 | I35: =GM_INFO!B171 -> 280 | K35: Reset Rate> | L35: =GM_INFO!D170 | M35: =GM_INFO!D171 -> 2.68 | Q35: =M35*I35*E35 -> 33768
D36: yearlings | E36: =ROUND(((Q7*E8)-E35-E11)*(1-E9),0) -> 31 | G36: Reset Rate> | H36: =GM_INFO!B171 | I36: =GM_INFO!B172 -> 400 | K36: Reset Rate> | L36: =GM_INFO!D171 | M36: 2.2 | Q36: =M36*I36*E36 -> 27280
B37: Culls | D37: cows | E37: =Q8*(1-E9)^E10 -> 9.58651365 | G37: Reset Rate> | H37: =GM_INFO!B172 | I37: =GM_INFO!B173 -> 550 | K37: Reset Rate> | L37: =GM_INFO!D172 | M37: =GM_INFO!D173 -> 1.9 | Q37: =M37*I37*E37 -> 10017.90676
D38: bull | E38: =Q7*Q9/Q12 -> 1 | Q38: ='Beef Input'!E18*E38 -> 1800
C41: Gross Income | Q41: =SUM(Q35:Q38) -> 72865.90676
C46: VARIABLE COSTS
C75: Bull Purchases | K75: Rate
C76: No. of Bulls | E76: =E38 -> 1 | G76: bulls | I76: Reset Rate> | J76: ='Beef Input'!E24 | K76: ='Beef Input'!E24 -> 9000 | M76: total | Q76: =K76*ROUND(E76,0) -> 9000
C89: Veterinary & Medicines
C90: Drench - cows 2x calves 1x | E90: =(Q7*Q16)+Q17*(Q7*E8) -> 290 | G90: head | I90: Reset Rate> | J90: =GM_INFO!D112 | K90: =GM_INFO!D112 -> 4.895 | M90: /head | Q90: =K90*ROUND(E90,0) -> 1419.55
C91: Ear Tags | E91: =Q7*E8 -> 90 | G91: head | I91: Reset Rate> | J91: =GM_INFO!D123 | K91: =GM_INFO!D124 -> 4.75 | M91: /tag | Q91: =K91*ROUND(E91,0) -> 427.5
C92: Lice Treatments | E92: =Q7 -> 100 | G92: head | I92: Reset Rate> | J92: =GM_INFO!D112 | K92: =GM_INFO!D116 -> 2.25 | M92: /dose | Q92: =K92*ROUND(E92,0) -> 225
C93: Vaccine (5 in 1) | E93: =Q7*E8*2 -> 180 | G93: head | I93: Reset Rate> | J93: =GM_INFO!D114 | K93: =GM_INFO!D114 -> 0.68 | M93: /dose | Q93: =K93*ROUND(E93,0) -> 122.4
C117: Sale Costs and other
C119: Insurance | E119: =(Q7*800)+(3*2500)+(Q7*E8*350) -> 119000 | I119: Reset Rate> | J119: =GM_INFO!B157 | K119: =GM_INFO!B158 -> 4.5 | M119: /$1000 | Q119: =K119*ROUND(E119,0)/1000 -> 535.5
C120: Water | E120: =Q15 -> 1960.041667 | G120: dse's | I120: Reset Rate> | J120: =GM_INFO!I129 | K120: =GM_INFO!I130 -> 2.5 | Q120: =K120*ROUND(E120,0) -> 4900
C121: Veh Fuel, R&M | E121: =Q15 -> 1960.041667 | G121: dse's | I121: Reset Rate> | J121: =GM_INFO!I130 | K121: =GM_INFO!I131 -> 1.5 | Q121: =K121*ROUND(E121,0) -> 2940
C122: Other | E122: =Q15 -> 1960.041667 | G122: dse's | I122: Reset Rate> | J122: =GM_INFO!I131 | K122: =GM_INFO!I132 -> 0.5 | Q122: =K122*ROUND(E122,0) -> 980
C123: Transport: | E123: =SUM(E35:E38) -> 86.58651365 | G123: head | I123: Reset Rate> | J123: =GM_INFO!D126 | K123: =GM_INFO!D127 -> 30 | M123: /head | Q123: =K123*E123 -> 2597.595409
C125: Commission | I125: Reset Rate> | J125: =GM_INFO!C98 | K125: =GM_INFO!C98 -> 0.055 | Q125: =Q41*K125 -> 4007.624872
C126: Levies | I126: Reset Rate> | J126: =GM_INFO!D127 | K126: =GM_INFO!D128 -> 5 | M126: /head | Q126: =K126*SUM(E35:E38) -> 432.9325682
C143: Supplementary Feed
C145: Grain
C146: Hay | E146: ='Beef Input'!E26 -> 68 | G146: tonne | I146: Reset Rate> | J146: =GM_INFO!D132 | K146: =GM_INFO!D133 -> 220 | M146: /tonne | Q146: =K146*E146 -> 14960
C147: Grain | E147: ='Beef Input'!E27 -> 0 | G147: tonne | I147: Reset Rate> | J147: =GM_INFO!D133 | K147: =GM_INFO!D134 -> 300 | M147: /tonne | Q147: =K147*E147 -> 0
C148: Blocks/ Mineral Mix | E148: =Q7 -> 100 | G148: @ | I148: Reset Rate> | J148: =GM_INFO!D135 | K148: =GM_INFO!D136 -> 5.5 | M148: /head | Q148: =K148*E148 -> 550
C170: TOTAL VARIABLE COSTS | Q170: =SUM(Q48:Q166) -> 43098.10285
C172: GROSS MARGIN TOTAL | Q172: =Q41-Q170 -> 29767.80391
C174: GROSS MARGIN/DSE | Q174: =$Q$172/Q15 -> 15.1873322
C176: GROSS MARGIN/COW | Q176: =$Q$172/Q7 -> 297.6780391
C178: GROSS MARGIN/HA | Q178: =$Q$172/E16 -> 75.93666099
B203: =VLOOKUP(r[0]c3&"No Ops",CHOOSE({1,2},tbl_ops[Name]&tbl_ops[Category],INDIRECT("tbl_ops["&var_crop&"]")),2,0)
B204: =VLOOKUP(r[0]c3&"No Ops",CHOOSE({1,2},tbl_ops[Name]&tbl_ops[Category],INDIRECT("tbl_ops["&var_crop&"]")),2,0)
B205: =VLOOKUP(r[0]c3&"No Ops",CHOOSE({1,2},tbl_ops[Name]&tbl_ops[Category],INDIRECT("tbl_ops["&var_crop&"]")),2,0)
B206: =VLOOKUP(r[0]c3&"No Ops",CHOOSE({1,2},tbl_ops[Name]&tbl_ops[Category],INDIRECT("tbl_ops["&var_crop&"]")),2,0)
B208: =VLOOKUP(r[0]c3&var_rain,CHOOSE({1,2},tbl_ops[Name]&tbl_ops[Rainfall],INDIRECT("tbl_ops["&var_crop&"]")),2,0)
B209: =VLOOKUP(r[0]c3&var_rain,CHOOSE({1,2},tbl_ops[Name]&tbl_ops[Rainfall],INDIRECT("tbl_ops["&var_crop&"]")),2,0)
B210: =VLOOKUP(r[0]c3&var_rain,CHOOSE({1,2},tbl_ops[Name]&tbl_ops[Rainfall],INDIRECT("tbl_ops["&var_crop&"]")),2,0)
B211: =VLOOKUP(r[0]c3&var_rain,CHOOSE({1,2},tbl_ops[Name]&tbl_ops[Rainfall],INDIRECT("tbl_ops["&var_crop&"]")),2,0)
C259: GM SENSITIVITY
C260: Gross Margin per Cow | E260: ($/kg Liveweight(yearlings/steers))
G261: 3.7 | I261: 3.9 | K261: 4.1 | M261: 4.3 | O261: 4.5
E262: 0.6 | G262: =(((($Q$7*$E262*$Q$13-$E$11-1)*G$261*$I$36)+(($Q$7*$E262)*(1-$Q$13)*G$261*$I$35)+($E$37*$I$37*$M$37)+$Q$38)-$Q$170)/$Q$7 -> 234.7980391 | I262: =(((($Q$7*$E262*$Q$13-$E$11-1)*I$261*$I$36)+(($Q$7*$E262)*(1-$Q$13)*I$261*$I$35)+($E$37*$I$37*$M$37)+$Q$38)-$Q$170)/$Q$7 -> 264.3980391 | K262: =(((($Q$7*$E262*$Q$13-$E$11-1)*K$261*$I$36)+(($Q$7*$E262)*(1-$Q$13)*K$261*$I$35)+($E$37*$I$37*$M$37)+$Q$38)-$Q$170)/$Q$7 -> 293.9980391 | M262: =(((($Q$7*$E262*$Q$13-$E$11-1)*M$261*$I$36)+(($Q$7*$E262)*(1-$Q$13)*M$261*$I$35)+($E$37*$I$37*$M$37)+$Q$38)-$Q$170)/$Q$7 -> 323.5980391 | O262: =(((($Q$7*$E262*$Q$13-$E$11-1)*O$261*$I$36)+(($Q$7*$E262)*(1-$Q$13)*O$261*$I$35)+($E$37*$I$37*$M$37)+$Q$38)-$Q$170)/$Q$7 -> 353.1980391
E263: 0.65 | G263: =(((($Q$7*$E263*$Q$13-$E$11-1)*G$261*$I$36)+(($Q$7*$E263)*(1-$Q$13)*G$261*$I$35)+($E$37*$I$37*$M$37)+$Q$38)-$Q$170)/$Q$7 -> 297.6980391 | I263: =(((($Q$7*$E263*$Q$13-$E$11-1)*I$261*$I$36)+(($Q$7*$E263)*(1-$Q$13)*I$261*$I$35)+($E$37*$I$37*$M$37)+$Q$38)-$Q$170)/$Q$7 -> 330.6980391 | K263: =(((($Q$7*$E263*$Q$13-$E$11-1)*K$261*$I$36)+(($Q$7*$E263)*(1-$Q$13)*K$261*$I$35)+($E$37*$I$37*$M$37)+$Q$38)-$Q$170)/$Q$7 -> 363.6980391 | M263: =(((($Q$7*$E263*$Q$13-$E$11-1)*M$261*$I$36)+(($Q$7*$E263)*(1-$Q$13)*M$261*$I$35)+($E$37*$I$37*$M$37)+$Q$38)-$Q$170)/$Q$7 -> 396.6980391 | O263: =(((($Q$7*$E263*$Q$13-$E$11-1)*O$261*$I$36)+(($Q$7*$E263)*(1-$Q$13)*O$261*$I$35)+($E$37*$I$37*$M$37)+$Q$38)-$Q$170)/$Q$7 -> 429.6980391
C264: Weaning % | E264: 0.7 | G264: 360.5980391 | I264: 396.9980391 | K264: 433.3980391 | M264: 469.7980391 | O264: 506.1980391
E265: 0.75 | G265: 423.4980391 | I265: 463.2980391 | K265: 503.0980391 | M265: 542.8980391 | O265: 582.6980391
E266: 0.8 | G266: 486.3980391 | I266: 529.5980391 | K266: 572.7980391 | M266: 615.9980391 | O266: 659.1980391
E267: 0.85 | G267: 549.2980391 | I267: 595.8980391 | K267: 642.4980391 | M267: 689.0980391 | O267: 735.6980391
E268: 0.9 | G268: 612.1980391 | I268: 662.1980391 | K268: 712.1980391 | M268: 762.1980391 | O268: 812.1980391
E269: 0.95 | G269: 675.0980391 | I269: 728.4980391 | K269: 781.8980391 | M269: 835.2980391 | O269: 888.6980391
E270: 1 | G270: 737.9980391 | I270: 794.7980391 | K270: 851.5980391 | M270: 908.3980391 | O270: 965.1980391
C275: GM SENSITIVITY
C276: Gross Margin per DSE | E276: ($/kg Liveweight(yearlings/steers))
G277: 3.7 | I277: 3.9 | K277: 4.1 | M277: 4.3 | O277: 4.5
E278: 0.6 | G278: =(((($Q$7*$E278*$Q$13-$E$11-1)*G$277*$I$36)+(($Q$7*$E278)*(1-$Q$13)*G$277*$I$35)+($E$37*$I$37*$M$37)+$Q$38)-$Q$170)/$Q$15 -> 11.97923713 | I278: =(((($Q$7*$E278*$Q$13-$E$11-1)*I$277*$I$36)+(($Q$7*$E278)*(1-$Q$13)*I$277*$I$35)+($E$37*$I$37*$M$37)+$Q$38)-$Q$170)/$Q$15 -> 13.48940911 | K278: =(((($Q$7*$E278*$Q$13-$E$11-1)*K$277*$I$36)+(($Q$7*$E278)*(1-$Q$13)*K$277*$I$35)+($E$37*$I$37*$M$37)+$Q$38)-$Q$170)/$Q$15 -> 14.99958109 | M278: =(((($Q$7*$E278*$Q$13-$E$11-1)*M$277*$I$36)+(($Q$7*$E278)*(1-$Q$13)*M$277*$I$35)+($E$37*$I$37*$M$37)+$Q$38)-$Q$170)/$Q$15 -> 16.50975307 | O278: =(((($Q$7*$E278*$Q$13-$E$11-1)*O$277*$I$36)+(($Q$7*$E278)*(1-$Q$13)*O$277*$I$35)+($E$37*$I$37*$M$37)+$Q$38)-$Q$170)/$Q$15 -> 18.01992504
E279: 0.65 | G279: =(((($Q$7*$E279*$Q$13-$E$11-1)*G$277*$I$36)+(($Q$7*$E279)*(1-$Q$13)*G$277*$I$35)+($E$37*$I$37*$M$37)+$Q$38)-$Q$170)/$Q$15 -> 15.18835258 | I279: =(((($Q$7*$E279*$Q$13-$E$11-1)*I$277*$I$36)+(($Q$7*$E279)*(1-$Q$13)*I$277*$I$35)+($E$37*$I$37*$M$37)+$Q$38)-$Q$170)/$Q$15 -> 16.87199026 | K279: =(((($Q$7*$E279*$Q$13-$E$11-1)*K$277*$I$36)+(($Q$7*$E279)*(1-$Q$13)*K$277*$I$35)+($E$37*$I$37*$M$37)+$Q$38)-$Q$170)/$Q$15 -> 18.55562794 | M279: =(((($Q$7*$E279*$Q$13-$E$11-1)*M$277*$I$36)+(($Q$7*$E279)*(1-$Q$13)*M$277*$I$35)+($E$37*$I$37*$M$37)+$Q$38)-$Q$170)/$Q$15 -> 20.23926562 | O279: =(((($Q$7*$E279*$Q$13-$E$11-1)*O$277*$I$36)+(($Q$7*$E279)*(1-$Q$13)*O$277*$I$35)+($E$37*$I$37*$M$37)+$Q$38)-$Q$170)/$Q$15 -> 21.9229033
C280: Weaning % | E280: 0.7 | G280: 18.39746804 | I280: 20.25457142 | K280: 22.11167479 | M280: 23.96877817 | O280: 25.82588155
E281: 0.75 | G281: 21.60658349 | I281: 23.63715257 | K281: 25.66772165 | M281: 27.69829072 | O281: 29.7288598
E282: 0.8 | G282: 24.81569894 | I282: 27.01973372 | K282: 29.2237685 | M282: 31.42780328 | O282: 33.63183805
E283: 0.85 | G283: 28.02481439 | I283: 30.40231487 | K283: 32.77981535 | M283: 35.15731583 | O283: 37.53481631
E284: 0.9 | G284: 31.23392985 | I284: 33.78489603 | K284: 36.3358622 | M284: 38.88682838 | O284: 41.43779456
E285: 0.95 | G285: 34.4430453 | I285: 37.16747718 | K285: 39.89190906 | M285: 42.61634094 | O285: 45.34077281
E286: 1 | G286: 37.65216075 | I286: 40.55005833 | K286: 43.44795591 | M286: 46.34585349 | O286: 49.24375107

Sheet Beef Trading Input (hidden)
C2: ="BEEF TRADING GROSS MARGIN - "&TEXT(m_year,"0000") -> BEEF TRADING GROSS MARGIN - 2024
C4: GENERAL INFORMATION
C5: Cells with yellow highlight can be changed. No allowance has been made for pasture expenses such as seed, fertiliser and chemicals. Refer to pasture gross margins in the “Cropping Gross Margin Plan” for annual and perennial pasture costs. Use the livestock gross margin per DSE as income for the pasture gross margin.
C7: Vealers | E7: 8 | F7: DSE
C8: Yearlings | E8: 12 | F8: DSE
C9: Herd Deaths | E9: 0.02
C10: Purchases-Vealers | E10: 200
C14: Stocking rate | E14: 10 | F14: DSE/ha
C15: Vealers Purchased at | E15: 649.6 | F15: /head
C18: Stock Sales-vealers
C20: Feeds | E20: 35 | F20: kg/DSE hay equivalent supplement
C22: Drench vealers | E22: 1 | F22: x
C25: Supplementary Feed
C27: Grain | E27: 0 | F27: tonne
C29: Cattle Prices | D29: Agricultural areas | E29: Agricultural | F29: Pastoral
C30: Vealers 280 kg | D30: 1700 | E30: 1700 | F30: 1600
C31: Yearling 400 kg | D31: 2000 | E31: 2000
C32: Yearling 420 kg | D32: 2100 | E32: 2100
C33: Cull cows 550 kg | D33: 1650 | E33: 1650 | F33: 1500
C34: Young stock 280 kg lwt | F34: 1600
C35: Bullocks 500 kg lwt | F35: 2000
C37: Cattle Purchases | E37: Agricultural | F37: Pastoral
C38: Bulls | D38: 12000 | E38: 12000 | F38: 8000
C39: Store vealers for grass finishing | D39: 1700 | E39: 1700
C40: Steer 240 kg lwt for feedlot | D40: 1500 | E40: 1500

Sheet Beef Trading (hidden)
C1: BEEF TRADING
C2: =UPPER(Var_Animal)&" GROSS MARGIN - "&TEXT(m_year,"0000") -> BEEF TRADING GROSS MARGIN - 2024
C4: ASSUMPTIONS | E4: (Finishing young cattle for local trade, grass fattened)
C9: Herd Deaths | E9: ='Beef Trading Input'!E9 -> 0.02
C10: Vealers | E10: ='Beef Trading Input'!E7 -> 8 | G10: DSE
C11: Yearlings | E11: ='Beef Trading Input'!E8 -> 12 | G11: DSE
C13: Herd DSE | E13: =AVERAGE(E10:E11)*E36 -> 1960
C14: Drench vealers | E14: ='Beef Trading Input'!E22 -> 1
C15: Stocking rate | E15: ='Beef Trading Input'!E14 -> 10 | G15: DSE/ha
C16: Area required | E16: =E13/E15 -> 196 | G16: hectares
C17: Feeds | E17: ='Beef Trading Input'!E20 -> 35 | G17: kg/DSE hay equivalent supplement
C32: INCOME | Q32: $
I34: kg liveweight | M34: /kg L/W
B35: Stock Sales | D35: vealers | E35: ='Beef Trading Input'!E18 -> 0 | G35: Reset Rate> | H35: =GM_INFO!B175 | I35: =GM_INFO!B176 -> 280 | K35: Reset Rate> | L35: =GM_INFO!D170 | M35: =GM_INFO!D171 -> 2.68 | Q35: =M35*I35*E35 -> 0
D36: yearlings | E36: =ROUND(E76-(E76*E9),3)-E35 -> 196 | G36: Reset Rate> | H36: =GM_INFO!B176 | I36: =GM_INFO!B177 -> 420 | K36: Reset Rate> | L36: =GM_INFO!D171 | M36: =GM_INFO!D172 -> 2.38 | Q36: =M36*I36*E36 -> 195921.6
G37: Reset Rate> | H37: =GM_INFO!B122 | K37: Reset Rate> | L37: =GM_INFO!D122 | Q37: =M37*I37*E37 -> 0
Q38: ='Beef Trading Input'!E18*E38 -> 0
C41: Gross Income | Q41: =SUM(Q35:Q38) -> 195921.6
C46: VARIABLE COSTS
C75: Purchases | K75: Rate
C76: Vealers | E76: ='Beef Trading Input'!E10 -> 200 | I76: Reset Rate> | J76: ='Beef Trading Input'!E15 | K76: ='Beef Trading Input'!E15 -> 649.6 | M76: head | Q76: =K76*ROUND(E76,0) -> 129920
C77: Transport | E77: ='Beef Trading Input'!E10 -> 200 | I77: Reset Rate> | J77: =GM_INFO!B167 | K77: =GM_INFO!B168 -> 30 | M77: head | Q77: =K77*ROUND(E77,0) -> 6000
C89: Veterinary & Medicines
C90: Drench - vealers 1x | E90: =E76 -> 200 | G90: head | I90: Reset Rate> | J90: =GM_INFO!D112 | K90: =GM_INFO!D117 -> 6.6 | M90: /head | Q90: =K90*ROUND(E90,0) -> 1320
C91: Ear Tags NLIS | E91: 196 | G91: head | I91: Reset Rate> | J91: =GM_INFO!D123 | K91: =GM_INFO!D124 -> 4.75 | M91: /tag | Q91: =K91*ROUND(E91,0) -> 931
C92: Lice Treatments | E92: =E76 -> 200 | G92: head | I92: Reset Rate> | J92: =GM_INFO!D112 | K92: =GM_INFO!D116 -> 2.25 | M92: /dose | Q92: =K92*ROUND(E92,0) -> 450
C93: Vaccine (7 in 1) | E93: =E76 -> 200 | G93: head | I93: Reset Rate> | J93: =GM_INFO!D114 | K93: =GM_INFO!D115 -> 3.3 | M93: /dose | Q93: =K93*ROUND(E93,0) -> 660
C117: Sale Costs and other
C119: Insurance | E119: =Q76 -> 129920 | I119: Reset Rate> | J119: =GM_INFO!B157 | K119: =GM_INFO!B158*0.5 -> 2.25 | M119: /$1000 | Q119: =K119*ROUND(E119,0)/1000 -> 292.32
C120: Water | E120: =E13 -> 1960 | G120: dse's | I120: Reset Rate> | J120: =GM_INFO!J129 | K120: =GM_INFO!J130 -> 2.5 | Q120: =K120*ROUND(E120,0) -> 4900
C121: Veh Fuel, R&M | E121: =E13 -> 1960 | G121: dse's | I121: Reset Rate> | J121: =GM_INFO!J130 | K121: =GM_INFO!J131 -> 1.5 | Q121: =K121*ROUND(E121,0) -> 2940
C122: Other | E122: =E13 -> 1960 | G122: dse's | I122: Reset Rate> | J122: =GM_INFO!J131 | K122: =GM_INFO!J132 -> 0.5 | Q122: =K122*ROUND(E122,0) -> 980
C123: Transport: | E123: =SUM(E35:E38) -> 196 | G123: head | I123: Reset Rate> | J123: =GM_INFO!D126 | K123: =GM_INFO!D127 -> 30 | M123: /head | Q123: =K123*E123 -> 5880
C125: Commission | I125: Reset Rate> | J125: =GM_INFO!C98 | K125: =GM_INFO!C98 -> 0.055 | Q125: =Q41*K125 -> 10775.688
C126: Levies | I126: Reset Rate> | J126: =GM_INFO!D127 | K126: =GM_INFO!D128 -> 5 | M126: /head | Q126: =K126*SUM(E35:E38) -> 980
C143: Supplementary Feed
C146: Hay | E146: =(E17*E13)/1000 -> 68.6 | G146: tonne | I146: Reset Rate> | J146: =GM_INFO!D132 | K146: =GM_INFO!D133 -> 220 | M146: /tonne | Q146: =K146*E146 -> 15092
C147: Grain | E147: ='Beef Trading Input'!E27 -> 0 | G147: tonne | I147: Reset Rate> | J147: =GM_INFO!D133 | K147: =GM_INFO!D134 -> 300 | M147: /tonne | Q147: =K147*E147 -> 0
C148: Blocks/ Mineral Mix | E148: =Q7 -> 0 | G148: @ | I148: Reset Rate> | J148: =GM_INFO!D135 | K148: =GM_INFO!D136 -> 5.5 | M148: /head | Q148: =K148*E148 -> 0
C170: TOTAL VARIABLE COSTS | Q170: =SUM(Q48:Q166) -> 181121.008
C172: GROSS MARGIN TOTAL | Q172: =Q41-Q170 -> 14800.592
C174: GROSS MARGIN/DSE | Q174: =Q172/E13 -> 7.551322449
C178: GROSS MARGIN/HA | Q178: =Q172/E16 -> 75.51322449
B203: =VLOOKUP(r[0]c3&"No Ops",CHOOSE({1,2},tbl_ops[Name]&tbl_ops[Category],INDIRECT("tbl_ops["&var_crop&"]")),2,0)
B204: =VLOOKUP(r[0]c3&"No Ops",CHOOSE({1,2},tbl_ops[Name]&tbl_ops[Category],INDIRECT("tbl_ops["&var_crop&"]")),2,0)
B205: =VLOOKUP(r[0]c3&"No Ops",CHOOSE({1,2},tbl_ops[Name]&tbl_ops[Category],INDIRECT("tbl_ops["&var_crop&"]")),2,0)
B206: =VLOOKUP(r[0]c3&"No Ops",CHOOSE({1,2},tbl_ops[Name]&tbl_ops[Category],INDIRECT("tbl_ops["&var_crop&"]")),2,0)
B208: =VLOOKUP(r[0]c3&var_rain,CHOOSE({1,2},tbl_ops[Name]&tbl_ops[Rainfall],INDIRECT("tbl_ops["&var_crop&"]")),2,0)
B209: =VLOOKUP(r[0]c3&var_rain,CHOOSE({1,2},tbl_ops[Name]&tbl_ops[Rainfall],INDIRECT("tbl_ops["&var_crop&"]")),2,0)
B210: =VLOOKUP(r[0]c3&var_rain,CHOOSE({1,2},tbl_ops[Name]&tbl_ops[Rainfall],INDIRECT("tbl_ops["&var_crop&"]")),2,0)
B211: =VLOOKUP(r[0]c3&var_rain,CHOOSE({1,2},tbl_ops[Name]&tbl_ops[Rainfall],INDIRECT("tbl_ops["&var_crop&"]")),2,0)
C275: GM SENSITIVITY
C276: Gross Margin per DSE | E276: ($/kg Liveweight(yearlings/steers))
G277: 1.98 | I277: 2.18 | K277: 2.38 | M277: 2.58 | O277: 2.78
E278: 1.72 | G278: =(((((G$277*$I$36)*($E$36/$E$76)-($I$35*$E278))/10-(SUM($Q$77:$Q$166)/$E$13)))) -> 7.213836735 | I278: 15.44583673 | K278: 23.67783673 | M278: 31.90983673 | O278: 40.14183673
E279: 1.92 | G279: 1.613836735 | I279: 9.845836735 | K279: 18.07783673 | M279: 26.30983673 | O279: 34.54183673
C280: $/kg Liveweight Purchases (Vealers) | E280: 2.12 | G280: -3.986163265 | I280: 4.245836735 | K280: 12.47783673 | M280: 20.70983673 | O280: 28.94183673
E281: 2.32 | G281: -9.586163265 | I281: -1.354163265 | K281: 6.877836735 | M281: 15.10983673 | O281: 23.34183673
E282: 2.52 | G282: -15.18616327 | I282: -6.954163265 | K282: 1.277836735 | M282: 9.509836735 | O282: 17.74183673
E283: 2.72 | G283: -20.78616327 | I283: -12.55416327 | K283: -4.322163265 | M283: 3.909836735 | O283: 12.14183673
E284: 2.92 | G284: -26.38616327 | I284: -18.15416327 | K284: -9.922163265 | M284: -1.690163265 | O284: 6.541836735
E285: 3.12 | G285: -31.98616327 | I285: -23.75416327 | K285: -15.52216327 | M285: -7.290163265 | O285: 0.9418367347
E286: 3.3 | G286: -37.02616327 | I286: -28.79416327 | K286: -20.56216327 | M286: -12.33016327 | O286: -4.098163265

Sheet Beef Feed Lot Input (hidden)
C2: ="BEEF FEED LOT GROSS MARGIN - "&TEXT(m_year,"0000") -> BEEF FEED LOT GROSS MARGIN - 2024
C4: GENERAL INFORMATION
C5: This sheet not used. Please enter all data in the Beef Feed Lot sheet

Sheet Beef Feed Lot (hidden)
C1: BEEF FEED LOT
C2: =UPPER(Var_Animal)&" GROSS MARGIN - "&TEXT(m_year,"0000") -> BEEF FEED LOT GROSS MARGIN - 2024
C4: ASSUMPTIONS | E4: ('Local supermarket, 210kg HSCW Carcase, AUSMEAT Fat Score 3-4)
C8: Steer Costs:
C9: Steer purchase | E9: =I9*M9 -> 960 | G9: for | I9: 240 | K9: kg@ | M9: 4 | O9: /kg liveweight
C10: Transport In | E10: 30 | G10: /head | M10: Average weight gain | O10: 1.8 | Q10: kg/hd/day
C11: Est. dressing % | E11: 0.55 | M11: Carcase weight specification | O11: =ROUND((E11*O12),0) -> 230 | Q11: kg HSCW
M12: Final liveweight in lot | O12: 418 | Q12: kg
M13: Avge liveweight in lot | O13: 329 | Q13: kg
M14: Est. time on feed | O14: 100 | Q14: days
C15: Feed Costs: | M15: Avge daily Feed intake | O15: =O13*0.035 -> 11.515 | Q15: kg
C16: Total feed consumed | G16: =ROUNDDOWN(O14*O15,0) -> 1151 | I16: kg | M16: (3.5% of Liveweight)
C17: Feed Wastage | E17: 0.05 | G17: =G16*E17 -> 57.55 | I17: kg | M17: Death Rate | O17: 0.01
C18: Feed cost per tonne | G18: 265 | I18: without premix / supplement
C32: INCOME | Q32: $
C35: Finished steers | E35: 0.97 | G35: % Steer @ | H35: =GM_INFO!B125 | I35: =O11 -> 230 | K35: kg carcass @ | L35: =GM_INFO!D120 | M35: 9.7 | O35: /kg HSCW | Q35: =M35*I35*E35 -> 2164.07
C36: Poor performers sold at 30 days | E36: =SUM(1,-E35,-E37) -> 0.02 | G36: % Steer @ | H36: =GM_INFO!B126 | I36: 240 | K36: kg liveweight | L36: =GM_INFO!D121 | M36: 6.3 | O36: /kg LVWT | Q36: =M36*I36*E36 -> 30.24
C37: Deaths | E37: =O17 -> 0.01 | G37: % Steer @ | H37: =GM_INFO!B122 | I37: 0 | L37: =GM_INFO!D122 | M37: 0 | Q37: 0
Q38: ='Beef Feed Lot Input'!E18*E38 -> 0
D39: TOTAL (must be 100%) | E39: =SUM(E35:E38) -> 1
C41: Gross Income | Q41: =SUM(Q35:Q38) -> 2194.31
C46: VARIABLE COSTS
C75: Purchases | K75: Rate
C76: Steer purchase | E76: 1 | G76: head | K76: 1500 | M76: /head | Q76: =K76*ROUND(E76,0) -> 1500
C77: Feeding Out & Feed
C78: Feed purchased | E78: =(E35*(G16+G17)+(E36*(G16+G17)*30/O14)) -> 1179.5448 | G78: kg | K78: =G18 -> 265 | M78: /tonne | Q78: =E78*K78/1000 -> 312.579372
C79: Premix cost per tonne mixed feed | E79: =E78 -> 1179.5448 | G79: kg | I79: Reset Rate> | J79: =GM_INFO!I118 | K79: =GM_INFO!I119 -> 50 | M79: /tonne | Q79: =E79*K79/1000 -> 58.97724
C80: Milling costs + Labour | E80: 1 | I80: Reset Rate> | J80: =GM_INFO!I119 | K80: =GM_INFO!I120 -> 28 | M80: /head | Q80: 28
C81: Water | E81: 1 | I81: Reset Rate> | J81: =GM_INFO!I120 | K81: =GM_INFO!I121 -> 20 | M81: /head | Q81: 20
C89: Veterinary & Medicines
C90: Drench, Dectomax | E90: 1 | G90: head | I90: Reset Rate> | J90: =GM_INFO!I111 | K90: =GM_INFO!I111 -> 5.64 | M90: /head | Q90: =K90*ROUND(E90,0) -> 5.64
C91: Ear Tags | E91: 1 | G91: head | I91: Reset Rate> | J91: =GM_INFO!I112 | K91: =GM_INFO!I112 -> 0.5 | M91: /tag | Q91: 0.5
C92: HGP implant , Synovex | E92: 0 | G92: head | I92: Reset Rate> | J92: =GM_INFO!I113 | K92: =GM_INFO!I113 -> 2.5 | M92: /dose | Q92: 0
C93: Lice Treatments | E93: 0 | G93: head | I93: Reset Rate> | J93: =GM_INFO!I114 | K93: =GM_INFO!I114 -> 0 | M93: /dose | Q93: 0
C94: Vaccine | E94: 1 | G94: head | I94: Reset Rate> | J94: =GM_INFO!I115 | K94: =GM_INFO!I116 -> 0.58 | M94: /dose | Q94: 0.58
C95: Veterinary | E95: 1 | G95: head | I95: Reset Rate> | J95: =GM_INFO!I116 | K95: =GM_INFO!I117 -> 1.25 | M95: /dose | Q95: 1.25
C96: Vitamin injection | E96: 0 | G96: head | I96: Reset Rate> | J96: =GM_INFO!I117 | K96: =GM_INFO!I118 -> 1.5 | M96: /dose | Q96: 0
C116: Losses | E116: 0.006 | G116: % | J116: =(Q76+Q78)*E116 | K116: =(Q76+Q78)*E116 -> 10.87547623 | M116: /head | Q116: =K116 -> 10.87547623
C117: Sale Costs and other
C119: Insurance | E119: =Q76 -> 1500 | I119: Reset Rate> | J119: =GM_INFO!I121 | K119: =GM_INFO!I122 -> 3 | M119: /$1000 | Q119: =K119*ROUND(E119,0)/1000 -> 4.5
C122: Transport In | E122: 1 | G122: dse's | I122: Reset Rate> | J122: =GM_INFO!I122 | K122: =GM_INFO!I123 -> 15 | Q122: =K122*ROUND(E122,0) -> 15
C123: Transport Out | E123: 1 | G123: head | I123: Reset Rate> | J123: =GM_INFO!I123 | K123: =GM_INFO!I124 -> 30 | M123: /head | Q123: =K123*E123 -> 30
C125: Commission | I125: Reset Rate> | J125: =GM_INFO!I124 | K125: =GM_INFO!I125 -> 0.055 | Q125: =Q41*K125 -> 120.68705
C126: Levies | I126: Reset Rate> | J126: =GM_INFO!I125 | K126: =GM_INFO!I126 -> 5 | M126: /head | Q126: =K126*SUM(E35:E36) -> 4.95
C143: Accreditation costs on a 600 hd/year throughput | Q143: 1
C170: TOTAL VARIABLE COSTS | Q170: =SUM(Q48:Q166) -> 2114.539138
C172: GROSS MARGIN PER HEAD | Q172: =Q41-Q170 -> 79.77086177
C174: Current interest rate | E174: 0.05
C175: Interest on cattle | K175: =K76*E174*O14/365 -> 20.54794521
C176: Interest on feed | K176: =Q78*E174*O14/365 -> 4.281909205
C178: GROSS MARGIN AFTER INTEREST | Q178: =SUM(Q172,-K175,-K176) -> 54.94100736
C180: Break even sale price :-- c/kg on purchase price, costs & interest | Q180: =((Q170+K175+K176-Q36)/(E35*I35))*100 -> 945.3738201
C182: Break even purchase price :-- c/kg on sale price & costs | Q182: =(-K176-K175+Q35-SUM(Q78:Q166))/I9*100 -> 635.2920864
B203: =VLOOKUP(r[0]c3&"No Ops",CHOOSE({1,2},tbl_ops[Name]&tbl_ops[Category],INDIRECT("tbl_ops["&var_crop&"]")),2,0)
B204: =VLOOKUP(r[0]c3&"No Ops",CHOOSE({1,2},tbl_ops[Name]&tbl_ops[Category],INDIRECT("tbl_ops["&var_crop&"]")),2,0)
B205: =VLOOKUP(r[0]c3&"No Ops",CHOOSE({1,2},tbl_ops[Name]&tbl_ops[Category],INDIRECT("tbl_ops["&var_crop&"]")),2,0)
B206: =VLOOKUP(r[0]c3&"No Ops",CHOOSE({1,2},tbl_ops[Name]&tbl_ops[Category],INDIRECT("tbl_ops["&var_crop&"]")),2,0)
B208: =VLOOKUP(r[0]c3&var_rain,CHOOSE({1,2},tbl_ops[Name]&tbl_ops[Rainfall],INDIRECT("tbl_ops["&var_crop&"]")),2,0)
B209: =VLOOKUP(r[0]c3&var_rain,CHOOSE({1,2},tbl_ops[Name]&tbl_ops[Rainfall],INDIRECT("tbl_ops["&var_crop&"]")),2,0)
B210: =VLOOKUP(r[0]c3&var_rain,CHOOSE({1,2},tbl_ops[Name]&tbl_ops[Rainfall],INDIRECT("tbl_ops["&var_crop&"]")),2,0)
B211: =VLOOKUP(r[0]c3&var_rain,CHOOSE({1,2},tbl_ops[Name]&tbl_ops[Rainfall],INDIRECT("tbl_ops["&var_crop&"]")),2,0)
C275: GM SENSITIVITY
C276: Gross Margin | E276: Per head ($/kg HSCW Carcase)
G277: 9.1 | H277: 5.5 | I277: 9.4 | J277: 6.5 | K277: 9.7 | M277: 10 | O277: 10.3
E278: 235 | G278: =($E$35*$I$35*G$277)+($E$36*$I$36*$M$36)-$Q$170+$Q$78-(($E$78*$E278)/1000) -> -18.70279423 | H278: -821.8627942 | I278: 48.22720577 | J278: -598.7627942 | K278: 115.1572058 | L278: -2048.912794 | M278: 182.0872058 | N278: -2048.912794 | O278: 249.0172058
E279: 245 | G279: -30.49824223 | H279: -833.6582422 | I279: 36.43175777 | J279: -610.5582422 | K279: 103.3617578 | L279: -2060.708242 | M279: 170.2917578 | N279: -2060.708242 | O279: 237.2217578
C280: Feed Cost/tonne | E280: 255 | G280: -42.29369023 | H280: -845.4536902 | I280: 24.63630977 | J280: -622.3536902 | K280: 91.56630977 | L280: -2072.50369 | M280: 158.4963098 | N280: -2072.50369 | O280: 225.4263098
E281: 265 | G281: -54.08913823 | H281: -857.2491382 | I281: 12.84086177 | J281: -634.1491382 | K281: 79.77086177 | L281: -2084.299138 | M281: 146.7008618 | N281: -2084.299138 | O281: 213.6308618
E282: 275 | G282: -65.88458623 | H282: -869.0445862 | I282: 1.045413768 | J282: -645.9445862 | K282: 67.97541377 | L282: -2096.094586 | M282: 134.9054138 | N282: -2096.094586 | O282: 201.8354138
E283: 285 | G283: -77.68003423 | H283: -880.8400342 | I283: -10.75003423 | J283: -657.7400342 | K283: 56.17996577 | L283: -2107.890034 | M283: 123.1099658 | N283: -2107.890034 | O283: 190.0399658
E284: 295 | G284: -89.47548223 | H284: -892.6354822 | I284: -22.54548223 | J284: -669.5354822 | K284: 44.38451777 | L284: -2119.685482 | M284: 111.3145178 | N284: -2119.685482 | O284: 178.2445178
E285: 305 | G285: -101.2709302 | H285: -904.4309302 | I285: -34.34093023 | J285: -681.3309302 | K285: 32.58906977 | L285: -2131.48093 | M285: 99.51906977 | N285: -2131.48093 | O285: 166.4490698
E286: 315 | G286: -113.0663782 | H286: -916.2263782 | I286: -46.13637823 | J286: -693.1263782 | K286: 20.79362177 | L286: -2143.276378 | M286: 87.72362177 | N286: -2143.276378 | O286: 154.6536218
